{"text_format":"1","workbook":"xlsx","n_sheets":5,"sheets":["Gesamtspielplan","Makros","Hallenliste","Einstellungen","HVW-Staffelinfo Termine"],"not_rendered":{"charts":0,"images":0,"macros":1,"external_links":2,"defined_names":5,"comments":2,"pivot_tables":0},"unopened":[],"bounds":{"document_bytes":16777216,"sheet_cells":100000,"rows_first":2000,"rows_last":500,"rows_between":2000,"halvings":0,"cell_chars":16384,"cell_head_chars":4096},"cells_cut":0,"cells_raw":0,"read":"whole","date_system":"1900"}

{"sheet":"Gesamtspielplan","index":0,"n_rows":51,"n_cols":14,"rows_kept":51,"cut":false,"hidden":false,"merged":[]}
["Woche","M","Tag","Datum","Zeit","Spiel","von","bis","Heimmannschaft HPlö","Auswärtsmannschaft","Liga","H-Nr","Halleninformation","Ergebnis"]
[{"$f":"IF(D2=\"\",\"\",YEAR(D2+IF(WEEKDAY(DATE(YEAR(D2),1,1),2)<4,0,-1)) & \" / \" & REPT(\"0\", 2-LEN(WEEKNUM(D2,21))) & WEEKNUM(D2,21))","v":""},null,null,null,null,null,null,null,"Letzte Änderung:","06.09.2023",null,null,null,"HPlö"]
["2023 / 41","mU10",{"$f":"TEXT(D3,\"TTT\")","v":"So"},"2023-10-15",null,null,null,null,"Alpla HC Hard","1. Spieltag","mU10",8109,null,"HPlö"]
["2023 / 41","wu10",{"$f":"TEXT(D4,\"TTT\")","v":"So"},"2023-10-15",null,null,{"$f":"IF(#REF!=\"J\",IF(#REF!=\"\",\"\",IF(#REF!=0,\"\",IF(#REF!=\"\",\"\",#REF!+(#REF!/60/24)))),\"\")","v":{"$error":"#REF!"}},null,"Alpla HC Hard","1. Spieltag","wu10",8109,{"$f":"IF(#REF!=\"J\",\"\",IF($L4=\"\",\"\",IF(ISNA(VLOOKUP($L4,Hallenliste!$A$2:$B$1003,1,FALSE)),\"????\",VLOOKUP($L4,Hallenliste!$A$2:$B$1003,2,FALSE))))","v":{"$error":"#REF!"}},"HPlö"]
["2023 / 41","U08",{"$f":"TEXT(D5,\"TTT\")","v":"So"},"2023-10-15",null,null,{"$f":"IF(#REF!=\"J\",IF($E5=\"\",\"\",IF(#REF!=0,\"\",IF(#REF!=\"\",\"\",$E5+(#REF!/60/24)))),\"\")","v":{"$error":"#REF!"}},null,"Bregenz Handball","1. Spieltag","U08",8107,{"$f":"IF(#REF!=\"J\",\"\",IF($L5=\"\",\"\",IF(ISNA(VLOOKUP($L5,[1]Hallenliste!$A$2:$B$1002,1,FALSE)),\"????\",VLOOKUP($L5,[1]Hallenliste!$A$2:$B$1002,2,FALSE))))","v":{"$error":"#REF!"}},"HPlö"]
["",null,null,null,null,null,null,null,null,null,null,null,{"$f":"IF(#REF!=\"J\",\"\",IF($L6=\"\",\"\",IF(ISNA(VLOOKUP($L6,Hallenliste!$A$2:$B$1003,1,FALSE)),\"????\",VLOOKUP($L6,Hallenliste!$A$2:$B$1003,2,FALSE))))","v":{"$error":"#REF!"}},"HPlö"]
[{"$f":"IF(D7=\"\",\"\",YEAR(D7+IF(WEEKDAY(DATE(YEAR(D7),1,1),2)<4,0,-1)) & \" / \" & REPT(\"0\", 2-LEN(WEEKNUM(D7,21))) & WEEKNUM(D7,21))","v":"2023 / 43"},null,{"$f":"TEXT(D7,\"TTT\")","v":"Do"},"2023-10-26",null,{"$f":"IF(#REF!=\"J\",IF($E7=\"\",\"\",IF(#REF!=0,\"\",IF(#REF!=\"\",\"\",$E7-(#REF!/60/24)))),\"\")","v":{"$error":"#REF!"}},{"$f":"IF(#REF!=\"J\",IF($E7=\"\",\"\",IF(#REF!=0,\"\",IF(#REF!=\"\",\"\",$E7+(#REF!/60/24)))),\"\")","v":{"$error":"#REF!"}},"Info","Nationalfeiertag","Österreich",null,null,{"$f":"IF(#REF!=\"J\",\"\",IF($L7=\"\",\"\",IF(ISNA(VLOOKUP($L7,Hallenliste!$A$2:$B$1003,1,FALSE)),\"????\",VLOOKUP($L7,Hallenliste!$A$2:$B$1003,2,FALSE))))","v":{"$error":"#REF!"}},"HPlö"]
[{"$f":"IF(D8=\"\",\"\",YEAR(D8+IF(WEEKDAY(DATE(YEAR(D8),1,1),2)<4,0,-1)) & \" / \" & REPT(\"0\", 2-LEN(WEEKNUM(D8,21))) & WEEKNUM(D8,21))","v":"2023 / 43"},null,{"$f":"TEXT(D8,\"TTT\")","v":"Fr"},"2023-10-27",null,{"$f":"IF(#REF!=\"J\",IF($E8=\"\",\"\",IF(#REF!=0,\"\",IF(#REF!=\"\",\"\",$E8-(#REF!/60/24)))),\"\")","v":{"$error":"#REF!"}},{"$f":"IF(#REF!=\"J\",IF($E8=\"\",\"\",IF(#REF!=0,\"\",IF(#REF!=\"\",\"\",$E8+(#REF!/60/24)))),\"\")","v":{"$error":"#REF!"}},"Info","Beginn Herbstferien","Österreich",null,null,{"$f":"IF(#REF!=\"J\",\"\",IF($L8=\"\",\"\",IF(ISNA(VLOOKUP($L8,Hallenliste!$A$2:$B$1003,1,FALSE)),\"????\",VLOOKUP($L8,Hallenliste!$A$2:$B$1003,2,FALSE))))","v":{"$error":"#REF!"}},"HPlö"]
[]
[{"$f":"IF(D10=\"\",\"\",YEAR(D10+IF(WEEKDAY(DATE(YEAR(D10),1,1),2)<4,0,-1)) & \" / \" & REPT(\"0\", 2-LEN(WEEKNUM(D10,21))) & WEEKNUM(D10,21))","v":"2023 / 45"},"mU10",{"$f":"TEXT(D10,\"TTT\")","v":"So"},"2023-11-12",null,null,null,null,"TS Dornbirn","2. Spieltag","mU10",8016,{"$f":"IF(#REF!=\"J\",\"\",IF($L10=\"\",\"\",IF(ISNA(VLOOKUP($L10,Hallenliste!$A$2:$B$1003,1,FALSE)),\"????\",VLOOKUP($L10,Hallenliste!$A$2:$B$1003,2,FALSE))))","v":{"$error":"#REF!"}},"HPlö"]
["2023 / 45","U08",{"$f":"TEXT(D11,\"TTT\")","v":"So"},"2023-11-12",null,null,{"$f":"IF(#REF!=\"J\",IF($E11=\"\",\"\",IF(#REF!=0,\"\",IF(#REF!=\"\",\"\",$E11+(#REF!/60/24)))),\"\")","v":{"$error":"#REF!"}},null,"Alpla HC Hard","2. Spieltag","U08",8109,null,"HPlö"]
[{"$f":"IF(D12=\"\",\"\",YEAR(D12+IF(WEEKDAY(DATE(YEAR(D12),1,1),2)<4,0,-1)) & \" / \" & REPT(\"0\", 2-LEN(WEEKNUM(D12,21))) & WEEKNUM(D12,21))","v":""},null,null,null,null,null,null,null,null,null,null,null,{"$f":"IF(#REF!=\"J\",\"\",IF($L12=\"\",\"\",IF(ISNA(VLOOKUP($L12,Hallenliste!$A$2:$B$1003,1,FALSE)),\"????\",VLOOKUP($L12,Hallenliste!$A$2:$B$1003,2,FALSE))))","v":{"$error":"#REF!"}},"HPlö"]
["2023 / 46","wu10",{"$f":"TEXT(D13,\"TTT\")","v":"So"},"2023-11-19",null,null,{"$f":"IF(#REF!=\"J\",IF(#REF!=\"\",\"\",IF(#REF!=0,\"\",IF(#REF!=\"\",\"\",#REF!+(#REF!/60/24)))),\"\")","v":{"$error":"#REF!"}},null,"BW Feldkirch","2. Spieltag","wu10",8068,null,"HPlö"]
["",null,null,null,null,null,null,null,null,null,null,null,{"$f":"IF(#REF!=\"J\",\"\",IF($L14=\"\",\"\",IF(ISNA(VLOOKUP($L14,Hallenliste!$A$2:$B$1003,1,FALSE)),\"????\",VLOOKUP($L14,Hallenliste!$A$2:$B$1003,2,FALSE))))","v":{"$error":"#REF!"}},"HPlö"]
["2023 / 47","mU10",{"$f":"TEXT(D15,\"TTT\")","v":"So"},"2023-11-26",null,null,null,null,"HC Hohenems","3. Spieltag","mU10",8034,{"$f":"IF(#REF!=\"J\",\"\",IF($L15=\"\",\"\",IF(ISNA(VLOOKUP($L15,[1]Hallenliste!$A$2:$B$1002,1,FALSE)),\"????\",VLOOKUP($L15,[1]Hallenliste!$A$2:$B$1002,2,FALSE))))","v":{"$error":"#REF!"}},"HPlö"]
[{"$f":"IF(D16=\"\",\"\",YEAR(D16+IF(WEEKDAY(DATE(YEAR(D16),1,1),2)<4,0,-1)) & \" / \" & REPT(\"0\", 2-LEN(WEEKNUM(D16,21))) & WEEKNUM(D16,21))","v":""},null,null,null,null,null,null,null,null,null,null,null,{"$f":"IF(#REF!=\"J\",\"\",IF($L16=\"\",\"\",IF(ISNA(VLOOKUP($L16,Hallenliste!$A$2:$B$1003,1,FALSE)),\"????\",VLOOKUP($L16,Hallenliste!$A$2:$B$1003,2,FALSE))))","v":{"$error":"#REF!"}},"HPlö"]
["2023 / 48","wu10",{"$f":"TEXT(D17,\"TTT\")","v":"So"},"2023-12-03",null,null,{"$f":"IF(#REF!=\"J\",IF(#REF!=\"\",\"\",IF(#REF!=0,\"\",IF(#REF!=\"\",\"\",#REF!+(#REF!/60/24)))),\"\")","v":{"$error":"#REF!"}},null,"HC Lustenau","3. Spieltag","wu10",8055,{"$f":"IF(#REF!=\"J\",\"\",IF($L17=\"\",\"\",IF(ISNA(VLOOKUP($L17,Hallenliste!$A$2:$B$1003,1,FALSE)),\"????\",VLOOKUP($L17,Hallenliste!$A$2:$B$1003,2,FALSE))))","v":{"$error":"#REF!"}},"HPlö"]
["",null,null,null,null,null,null,null,null,null,null,null,{"$f":"IF(#REF!=\"J\",\"\",IF($L18=\"\",\"\",IF(ISNA(VLOOKUP($L18,Hallenliste!$A$2:$B$1003,1,FALSE)),\"????\",VLOOKUP($L18,Hallenliste!$A$2:$B$1003,2,FALSE))))","v":{"$error":"#REF!"}},"HPlö"]
[{"$f":"IF(D19=\"\",\"\",YEAR(D19+IF(WEEKDAY(DATE(YEAR(D19),1,1),2)<4,0,-1)) & \" / \" & REPT(\"0\", 2-LEN(WEEKNUM(D19,21))) & WEEKNUM(D19,21))","v":"2023 / 49"},"U08",{"$f":"TEXT(D19,\"TTT\")","v":"So"},"2023-12-10",null,null,{"$f":"IF(#REF!=\"J\",IF($E19=\"\",\"\",IF(#REF!=0,\"\",IF(#REF!=\"\",\"\",$E19+(#REF!/60/24)))),\"\")","v":{"$error":"#REF!"}},null,"HcB Lauterach","3. Spieltag","U08",8114,{"$f":"IF(#REF!=\"J\",\"\",IF($L19=\"\",\"\",IF(ISNA(VLOOKUP($L19,Hallenliste!$A$2:$B$1003,1,FALSE)),\"????\",VLOOKUP($L19,Hallenliste!$A$2:$B$1003,2,FALSE))))","v":{"$error":"#REF!"}},"HPlö"]
["",null,null,null,null,null,null,null,null,null,null,null,{"$f":"IF(#REF!=\"J\",\"\",IF($L20=\"\",\"\",IF(ISNA(VLOOKUP($L20,Hallenliste!$A$2:$B$1003,1,FALSE)),\"????\",VLOOKUP($L20,Hallenliste!$A$2:$B$1003,2,FALSE))))","v":{"$error":"#REF!"}},"HPlö"]
["2024 / 03","wu10",{"$f":"TEXT(D21,\"TTT\")","v":"So"},"2024-01-21",null,null,{"$f":"IF(#REF!=\"J\",IF(#REF!=\"\",\"\",IF(#REF!=0,\"\",IF(#REF!=\"\",\"\",#REF!+(#REF!/60/24)))),\"\")","v":{"$error":"#REF!"}},null,"HC Hohenems","4. Spieltag","wu10",8034,{"$f":"IF(#REF!=\"J\",\"\",IF($L21=\"\",\"\",IF(ISNA(VLOOKUP($L21,[1]Hallenliste!$A$2:$B$1002,1,FALSE)),\"????\",VLOOKUP($L21,[1]Hallenliste!$A$2:$B$1002,2,FALSE))))","v":{"$error":"#REF!"}},"HPlö"]
["2024 / 03","mU10",{"$f":"TEXT(D22,\"TTT\")","v":"So"},"2024-01-21",null,null,null,null,"BW Feldkirch","4. Spieltag","mU10",8068,{"$f":"IF(#REF!=\"J\",\"\",IF($L22=\"\",\"\",IF(ISNA(VLOOKUP($L22,[1]Hallenliste!$A$2:$B$1002,1,FALSE)),\"????\",VLOOKUP($L22,[1]Hallenliste!$A$2:$B$1002,2,FALSE))))","v":{"$error":"#REF!"}},"HPlö"]
["2024 / 03","U08",{"$f":"TEXT(D23,\"TTT\")","v":"So"},"2024-01-21",null,null,{"$f":"IF(#REF!=\"J\",IF($E23=\"\",\"\",IF(#REF!=0,\"\",IF(#REF!=\"\",\"\",$E23+(#REF!/60/24)))),\"\")","v":{"$error":"#REF!"}},null,"HC Lustenau","4. Spieltag","U08",8055,{"$f":"IF(#REF!=\"J\",\"\",IF($L23=\"\",\"\",IF(ISNA(VLOOKUP($L23,[1]Hallenliste!$A$2:$B$1002,1,FALSE)),\"????\",VLOOKUP($L23,[1]Hallenliste!$A$2:$B$1002,2,FALSE))))","v":{"$error":"#REF!"}},"HPlö"]
["",null,null,null,null,null,null,null,null,null,null,null,{"$f":"IF(#REF!=\"J\",\"\",IF($L24=\"\",\"\",IF(ISNA(VLOOKUP($L24,Hallenliste!$A$2:$B$1003,1,FALSE)),\"????\",VLOOKUP($L24,Hallenliste!$A$2:$B$1003,2,FALSE))))","v":{"$error":"#REF!"}},"HPlö"]
[{"$f":"IF(D25=\"\",\"\",YEAR(D25+IF(WEEKDAY(DATE(YEAR(D25),1,1),2)<4,0,-1)) & \" / \" & REPT(\"0\", 2-LEN(WEEKNUM(D25,21))) & WEEKNUM(D25,21))","v":"2024 / 05"},null,{"$f":"TEXT(D25,\"TTT\")","v":"Sa"},"2024-02-03",null,{"$f":"IF(#REF!=\"J\",IF($E25=\"\",\"\",IF(#REF!=0,\"\",IF(#REF!=\"\",\"\",$E25-(#REF!/60/24)))),\"\")","v":{"$error":"#REF!"}},{"$f":"IF(#REF!=\"J\",IF($E25=\"\",\"\",IF(#REF!=0,\"\",IF(#REF!=\"\",\"\",$E25+(#REF!/60/24)))),\"\")","v":{"$error":"#REF!"}},"Info","Beginn Semesterferien","Vorarlberg"]
["",null,null,null,null,null,null,null,null,null,null,null,{"$f":"IF(#REF!=\"J\",\"\",IF($L26=\"\",\"\",IF(ISNA(VLOOKUP($L26,Hallenliste!$A$2:$B$1003,1,FALSE)),\"????\",VLOOKUP($L26,Hallenliste!$A$2:$B$1003,2,FALSE))))","v":{"$error":"#REF!"}},"HPlö"]
["2024 / 06",null,{"$f":"TEXT(D27,\"TTT\")","v":"So"},"2024-02-11",null,{"$f":"IF(#REF!=\"J\",IF($E27=\"\",\"\",IF(#REF!=0,\"\",IF(#REF!=\"\",\"\",$E27-(#REF!/60/24)))),\"\")","v":{"$error":"#REF!"}},{"$f":"IF(#REF!=\"J\",IF($E27=\"\",\"\",IF(#REF!=0,\"\",IF(#REF!=\"\",\"\",$E27+(#REF!/60/24)))),\"\")","v":{"$error":"#REF!"}},"Info","Ende Semesterferien","Faschingssonntag"]
[{"$f":"IF(D28=\"\",\"\",YEAR(D28+IF(WEEKDAY(DATE(YEAR(D28),1,1),2)<4,0,-1)) & \" / \" & REPT(\"0\", 2-LEN(WEEKNUM(D28,21))) & WEEKNUM(D28,21))","v":""},null,null,null,null,null,null,null,null,null,null,null,{"$f":"IF(#REF!=\"J\",\"\",IF($L28=\"\",\"\",IF(ISNA(VLOOKUP($L28,Hallenliste!$A$2:$B$1003,1,FALSE)),\"????\",VLOOKUP($L28,Hallenliste!$A$2:$B$1003,2,FALSE))))","v":{"$error":"#REF!"}},"HPlö"]
[{"$f":"IF(D29=\"\",\"\",YEAR(D29+IF(WEEKDAY(DATE(YEAR(D29),1,1),2)<4,0,-1)) & \" / \" & REPT(\"0\", 2-LEN(WEEKNUM(D29,21))) & WEEKNUM(D29,21))","v":"2024 / 07"},"U08",{"$f":"TEXT(D29,\"TTT\")","v":"So"},"2024-02-18",null,null,{"$f":"IF(#REF!=\"J\",IF($E29=\"\",\"\",IF(#REF!=0,\"\",IF(#REF!=\"\",\"\",$E29+(#REF!/60/24)))),\"\")","v":{"$error":"#REF!"}},null,"HC Hohenems","5. Spieltag","U08",8034,null,"HPlö"]
["2024 / 07","mU10",{"$f":"TEXT(D30,\"TTT\")","v":"So"},"2024-02-18",null,null,null,null,"Bregenz Handball","5. Spieltag","mU10",8107,{"$f":"IF(#REF!=\"J\",\"\",IF($L30=\"\",\"\",IF(ISNA(VLOOKUP($L30,Hallenliste!$A$2:$B$1003,1,FALSE)),\"????\",VLOOKUP($L30,Hallenliste!$A$2:$B$1003,2,FALSE))))","v":{"$error":"#REF!"}},"HPlö"]
["2024 / 07","wu10",{"$f":"TEXT(D31,\"TTT\")","v":"So"},"2024-02-18",null,null,{"$f":"IF(#REF!=\"J\",IF(#REF!=\"\",\"\",IF(#REF!=0,\"\",IF(#REF!=\"\",\"\",#REF!+(#REF!/60/24)))),\"\")","v":{"$error":"#REF!"}},null,"SSV Dornbirn Schoren","5. Spieltag","wu10",8016,{"$f":"IF(#REF!=\"J\",\"\",IF($L31=\"\",\"\",IF(ISNA(VLOOKUP($L31,[1]Hallenliste!$A$2:$B$1002,1,FALSE)),\"????\",VLOOKUP($L31,[1]Hallenliste!$A$2:$B$1002,2,FALSE))))","v":{"$error":"#REF!"}},"HPlö"]
["",null,null,null,null,null,null,null,null,null,null,null,{"$f":"IF(#REF!=\"J\",\"\",IF($L32=\"\",\"\",IF(ISNA(VLOOKUP($L32,Hallenliste!$A$2:$B$1003,1,FALSE)),\"????\",VLOOKUP($L32,Hallenliste!$A$2:$B$1003,2,FALSE))))","v":{"$error":"#REF!"}},"HPlö"]
["2024 / 11","mU10",{"$f":"TEXT(D33,\"TTT\")","v":"So"},"2024-03-17",null,null,null,null,"HC Lustenau","6. Spieltag","mU10",8055,null,"HPlö"]
["2024 / 11","wu10",{"$f":"TEXT(D34,\"TTT\")","v":"So"},"2024-03-17",null,null,{"$f":"IF(#REF!=\"J\",IF(#REF!=\"\",\"\",IF(#REF!=0,\"\",IF(#REF!=\"\",\"\",#REF!+(#REF!/60/24)))),\"\")","v":{"$error":"#REF!"}},null,"Bregenz Handball","6. Spieltag","wu10",8107,null,"HPlö"]
["2024 / 11","U08",{"$f":"TEXT(D35,\"TTT\")","v":"So"},"2024-03-17",null,null,{"$f":"IF(#REF!=\"J\",IF($E35=\"\",\"\",IF(#REF!=0,\"\",IF(#REF!=\"\",\"\",$E35+(#REF!/60/24)))),\"\")","v":{"$error":"#REF!"}},null,"BW Feldkirch","6. Spieltag","U08",8068,null,"HPlö"]
["",null,null,null,null,null,null,null,null,null,null,null,null,"HPlö"]
[{"$f":"IF(D37=\"\",\"\",YEAR(D37+IF(WEEKDAY(DATE(YEAR(D37),1,1),2)<4,0,-1)) & \" / \" & REPT(\"0\", 2-LEN(WEEKNUM(D37,21))) & WEEKNUM(D37,21))","v":"2024 / 12"},null,{"$f":"TEXT(D37,\"TTT\")","v":"Sa"},"2024-03-23",null,{"$f":"IF(#REF!=\"J\",IF($E37=\"\",\"\",IF(#REF!=0,\"\",IF(#REF!=\"\",\"\",$E37-(#REF!/60/24)))),\"\")","v":{"$error":"#REF!"}},{"$f":"IF(#REF!=\"J\",IF($E37=\"\",\"\",IF(#REF!=0,\"\",IF(#REF!=\"\",\"\",$E37+(#REF!/60/24)))),\"\")","v":{"$error":"#REF!"}},"Info","Beginn Osterferien"]
[{"$f":"IF(D38=\"\",\"\",YEAR(D38+IF(WEEKDAY(DATE(YEAR(D38),1,1),2)<4,0,-1)) & \" / \" & REPT(\"0\", 2-LEN(WEEKNUM(D38,21))) & WEEKNUM(D38,21))","v":""},null,null,null,null,null,null,null,null,null,null,null,null,"HPlö"]
[{"$f":"IF(D39=\"\",\"\",YEAR(D39+IF(WEEKDAY(DATE(YEAR(D39),1,1),2)<4,0,-1)) & \" / \" & REPT(\"0\", 2-LEN(WEEKNUM(D39,21))) & WEEKNUM(D39,21))","v":"2024 / 13"},null,{"$f":"TEXT(D39,\"TTT\")","v":"So"},"2024-03-31",null,{"$f":"IF(#REF!=\"J\",IF($E39=\"\",\"\",IF(#REF!=0,\"\",IF(#REF!=\"\",\"\",$E39-(#REF!/60/24)))),\"\")","v":{"$error":"#REF!"}},{"$f":"IF(#REF!=\"J\",IF($E39=\"\",\"\",IF(#REF!=0,\"\",IF(#REF!=\"\",\"\",$E39+(#REF!/60/24)))),\"\")","v":{"$error":"#REF!"}},null,"Ostern"]
[{"$f":"IF(D40=\"\",\"\",YEAR(D40+IF(WEEKDAY(DATE(YEAR(D40),1,1),2)<4,0,-1)) & \" / \" & REPT(\"0\", 2-LEN(WEEKNUM(D40,21))) & WEEKNUM(D40,21))","v":"2024 / 14"},null,{"$f":"TEXT(D40,\"TTT\")","v":"Mo"},"2024-04-01",null,{"$f":"IF(#REF!=\"J\",IF($E40=\"\",\"\",IF(#REF!=0,\"\",IF(#REF!=\"\",\"\",$E40-(#REF!/60/24)))),\"\")","v":{"$error":"#REF!"}},{"$f":"IF(#REF!=\"J\",IF($E40=\"\",\"\",IF(#REF!=0,\"\",IF(#REF!=\"\",\"\",$E40+(#REF!/60/24)))),\"\")","v":{"$error":"#REF!"}},null,"Ostermontag"]
[{"$f":"IF(D41=\"\",\"\",YEAR(D41+IF(WEEKDAY(DATE(YEAR(D41),1,1),2)<4,0,-1)) & \" / \" & REPT(\"0\", 2-LEN(WEEKNUM(D41,21))) & WEEKNUM(D41,21))","v":"2024 / 14"},null,{"$f":"TEXT(D41,\"TTT\")","v":"Mo"},"2024-04-01",null,{"$f":"IF(#REF!=\"J\",IF($E41=\"\",\"\",IF(#REF!=0,\"\",IF(#REF!=\"\",\"\",$E41-(#REF!/60/24)))),\"\")","v":{"$error":"#REF!"}},{"$f":"IF(#REF!=\"J\",IF($E41=\"\",\"\",IF(#REF!=0,\"\",IF(#REF!=\"\",\"\",$E41+(#REF!/60/24)))),\"\")","v":{"$error":"#REF!"}},"Info","Ende Osterferien"]
[{"$f":"IF(D42=\"\",\"\",YEAR(D42+IF(WEEKDAY(DATE(YEAR(D42),1,1),2)<4,0,-1)) & \" / \" & REPT(\"0\", 2-LEN(WEEKNUM(D42,21))) & WEEKNUM(D42,21))","v":""},null,null,null,null,null,null,null,null,null,null,null,null,"HPlö"]
[{"$f":"IF(D43=\"\",\"\",YEAR(D43+IF(WEEKDAY(DATE(YEAR(D43),1,1),2)<4,0,-1)) & \" / \" & REPT(\"0\", 2-LEN(WEEKNUM(D43,21))) & WEEKNUM(D43,21))","v":"2024 / 14"},null,{"$f":"TEXT(D43,\"TTT\")","v":"So"},"2024-04-07",null,{"$f":"IF(#REF!=\"J\",IF($E43=\"\",\"\",IF(#REF!=0,\"\",IF(#REF!=\"\",\"\",$E43-(#REF!/60/24)))),\"\")","v":{"$error":"#REF!"}},{"$f":"IF(#REF!=\"J\",IF($E43=\"\",\"\",IF(#REF!=0,\"\",IF(#REF!=\"\",\"\",$E43+(#REF!/60/24)))),\"\")","v":{"$error":"#REF!"}},null,"Weisser Sonntag"]
[{"$f":"IF(D44=\"\",\"\",YEAR(D44+IF(WEEKDAY(DATE(YEAR(D44),1,1),2)<4,0,-1)) & \" / \" & REPT(\"0\", 2-LEN(WEEKNUM(D44,21))) & WEEKNUM(D44,21))","v":""},null,null,null,null,null,null,null,null,null,null,null,null,"HPlö"]
["2024 / 15","wu10",{"$f":"TEXT(D45,\"TTT\")","v":"So"},"2024-04-14",null,null,{"$f":"IF(#REF!=\"J\",IF(#REF!=\"\",\"\",IF(#REF!=0,\"\",IF(#REF!=\"\",\"\",#REF!+(#REF!/60/24)))),\"\")","v":{"$error":"#REF!"}},null,"offen","7. Spieltag","wu10",null,null,"HPlö"]
["2024 / 15","mU10",{"$f":"TEXT(D46,\"TTT\")","v":"So"},"2024-04-14",null,null,null,null,"HcB Lauterach","7. Spieltag","mU10",8114,null,"HPlö"]
["2024 / 15","U08",{"$f":"TEXT(D47,\"TTT\")","v":"So"},"2024-04-14",null,null,{"$f":"IF(#REF!=\"J\",IF($E47=\"\",\"\",IF(#REF!=0,\"\",IF(#REF!=\"\",\"\",$E47+(#REF!/60/24)))),\"\")","v":{"$error":"#REF!"}},null,"SSV Dornbirn Schoren","7. Spieltag","U08",8016,{"$f":"IF(#REF!=\"J\",\"\",IF($L47=\"\",\"\",IF(ISNA(VLOOKUP($L47,Hallenliste!$A$2:$B$1003,1,FALSE)),\"????\",VLOOKUP($L47,Hallenliste!$A$2:$B$1003,2,FALSE))))","v":{"$error":"#REF!"}},"HPlö"]
["",null,null,null,null,null,null,null,null,null,null,null,null,"HPlö"]
[{"$f":"IF(D49=\"\",\"\",YEAR(D49+IF(WEEKDAY(DATE(YEAR(D49),1,1),2)<4,0,-1)) & \" / \" & REPT(\"0\", 2-LEN(WEEKNUM(D49,21))) & WEEKNUM(D49,21))","v":"2024 / 17"},"U08",{"$f":"TEXT(D49,\"TTT\")","v":"Sa"},"2024-04-27",null,null,{"$f":"IF(#REF!=\"J\",IF($E49=\"\",\"\",IF(#REF!=0,\"\",IF(#REF!=\"\",\"\",$E49+(#REF!/60/24)))),\"\")","v":{"$error":"#REF!"}},null,"TS Dornbirn","8. Spieltag","U08",8016,null,"HPlö"]
[{"$f":"IF(D50=\"\",\"\",YEAR(D50+IF(WEEKDAY(DATE(YEAR(D50),1,1),2)<4,0,-1)) & \" / \" & REPT(\"0\", 2-LEN(WEEKNUM(D50,21))) & WEEKNUM(D50,21))","v":"2024 / 17"},"mU10",{"$f":"TEXT(D50,\"TTT\")","v":"So"},"2024-04-28",null,null,null,null,"Finale","Finalspieltag","mU10-VL-ER",null,null,"HPlö"]
["2024 / 17","wu10","So","2024-04-28",null,null,{"$f":"IF(#REF!=\"J\",IF(#REF!=\"\",\"\",IF(#REF!=0,\"\",IF(#REF!=\"\",\"\",#REF!+(#REF!/60/24)))),\"\")","v":{"$error":"#REF!"}},"Finale","Finale","Finalspieltag","wU10-VL-ER",null,null,"HPlö"]

{"sheet":"Makros","index":1,"n_rows":27,"n_cols":13,"rows_kept":27,"cut":false,"hidden":false,"merged":[]}
["WB","Datwert",null,null,"Anzeigen ab",null,"Datum als Zahl",null,null,null,null,null,"Makro mit: Alt-F11 dann \"Makros\" - \"VBAProjectHCL Gesamtspielpaln.xlam\""]
["J",{"$f":"\">\"&$G$2","v":">44773"},null,null,"2022-08-01",null,{"$f":"DATEVALUE(TEXT(E2,\"TT.MM.JJJJ\"))-1","v":44773}]
[null,null,null,null,null,null,null,null,null,null,null,null,"Strg-R"]
[null,null,null,null,null,null,null,null,null,null,null,null,"DC auf DieseARbeitsmappe"]
[null,null,null,null,null,null,null,null,null,null,null,null,"Strg-i = Standardsortierung"]
["TB","AB","DB","Datwert"]
["J",null,null,{"$f":"\">\"&$G$2","v":">44773"}]
[null,"J",null,{"$f":"\">\"&$G$2","v":">44773"}]
[null,null,"J",{"$f":"\">\"&$G$2","v":">44773"}]
[]
[null,null,null,null,null,"Datei-Grundname"]
[null,null,null,null,null,"HCL-Spiele ab"]
[null,null,null,null,"Datum wie oben","Sicherungs-Verzeichnis"]
[null,null,null,null,null,"C:\\temp\\"]
[null,null,null,null,null,"Mailversand an:"]
[null,null,null,null,null,"boesch.bob@gmail.com"]
[]
[]
[]
[]
[null,"Datwert"]
[null,{"$f":"\">\"&#REF!","v":{"$error":"#REF!"}}]
["WB","Datwert"]
["J","09.11.2008"]
[]
[null,null,null,null,"1.Halbjahr",2019,null,"ab Woche",32]
[null,null,null,null,"2.Halbjahr",2020,null,"ab Woche",1]

{"sheet":"Hallenliste","index":2,"n_rows":863,"n_cols":13,"rows_kept":863,"cut":false,"hidden":false,"merged":[]}
["Halle","Halleninfo - HB","google maps","km erm.am","Kurzname","Name","Land","Plz","Stadt","Strasse","Telefon","Bez#","Bezirk"]
[1001,{"$f":"IF(C2=\"\",\"\",C2&\" km;\")&F2&\";\"&H2&\" \"&I2&\",\"&J2","v":"Wildeckhalle;74232 Abstatt,Beilsteiner Straße"},null,null,"Abstatt","Wildeckhalle","D",74232,"Abstatt","Beilsteiner Straße","07062-67770",1,"Heilbronn-Franken"]
[1002,"Sporthalle Amorbachschule;74172 Neckarsulm-Amorbach,Grenchenstraße 2",null,null,"Amorbach","Sporthalle Amorbachschule","D",74172,"Neckarsulm-Amorbach","Grenchenstraße 2","07132-9830110",1,"Heilbronn-Franken"]
[1003,"Glück-Auf-Halle;74177 Bad Friedrichshall,Fahräckerstraße",null,null,"Bad Fr'hall 1","Glück-Auf-Halle","D",74177,"Bad Friedrichshall","Fahräckerstraße","07136-24649",1,"Heilbronn-Franken"]
[1004,"Kocherwaldhalle beim Gymnasium;74177 Bad Friedrichshall,Hohestraße",null,null,"Bad Fr'hall 2","Kocherwaldhalle beim Gymnasium","D",74177,"Bad Friedrichshall","Hohestraße","07136-9535-13",1,"Heilbronn-Franken"]
[1005,"Mühltalhalle;74906 Bad Rappenau,Heinsheimer Straße 65",null,null,"Bad Rappenau 1","Mühltalhalle","D",74906,"Bad Rappenau","Heinsheimer Straße 65","07264-1609",1,"Heilbronn-Franken"]
[1006,"Kraichgauhalle;74906 Bad Rappenau,Wagnerstraße 9",null,null,"Bad Rappenau 2","Kraichgauhalle","D",74906,"Bad Rappenau","Wagnerstraße 9","07264-3778",1,"Heilbronn-Franken"]
[1007,"Stauferhalle;74206 Bad Wimpfen,Fronhäuserstraße",null,null,"Bad Wimpfen","Stauferhalle","D",74206,"Bad Wimpfen","Fronhäuserstraße","07063-53190",1,"Heilbronn-Franken"]
[1008,"Langhanshalle;71717 Beilstein,Dammstraße",null,null,"Beilstein","Langhanshalle","D",71717,"Beilstein","Dammstraße","07062-3232",1,"Heilbronn-Franken"]
[1009,"Böllingertalhalle;74078 Heilbronn-Biberach,Bibersteige",null,null,"Biberach (HN)","Böllingertalhalle","D",74078,"Heilbronn-Biberach","Bibersteige","07066-7465",1,"Heilbronn-Franken"]
[1010,"Sporthalle auf der Schanz;74080 Heilbronn-Böckingen,Kraichgauplatz 17",null,null,"Böckingen","Sporthalle auf der Schanz","D",74080,"Heilbronn-Böckingen","Kraichgauplatz 17","07131-41594  (Hm.)",1,"Heilbronn-Franken"]
[1011,"Verbandssporthalle;74336 Brackenheim,Im Hirn",null,null,"Brackenheim 1","Verbandssporthalle","D",74336,"Brackenheim","Im Hirn","07135-9829-26",1,"Heilbronn-Franken"]
[1013,"Sport- und Spielhalle;74722 Buchen,Dr.-Fritz-Schmitt-Ring",null,null,"Buchen 1","Sport- und Spielhalle","D",74722,"Buchen","Dr.-Fritz-Schmitt-Ring","06281-4498",1,"Heilbronn-Franken"]
[1014,"Großsporthalle;74564 Crailsheim,Beuerlbacher Straße",null,null,"Crailsheim 1","Großsporthalle","D",74564,"Crailsheim","Beuerlbacher Straße","07951-468027",1,"Heilbronn-Franken"]
[1015,"Karlsberg-Sporthalle;74564 Crailsheim,Auf dem Volksfestplatz",null,null,"Crailsheim 2","Karlsberg-Sporthalle","D",74564,"Crailsheim","Auf dem Volksfestplatz",null,1,"Heilbronn-Franken"]
[1016,"Großsporthalle;75031 Eppingen,Berliner Ring",null,null,"Eppingen","Großsporthalle","D",75031,"Eppingen","Berliner Ring","07262-604214",1,"Heilbronn-Franken"]
[1018,"Sandberghalle;74223 Flein,Talheimer Straße",null,null,"Flein 1","Sandberghalle","D",74223,"Flein","Talheimer Straße","07131-252070",1,"Heilbronn-Franken"]
[1019,"Leintalhalle;74078 Heilbronn-Frankenbach,Würzburger Straße",null,null,"Frankenbach","Leintalhalle","D",74078,"Heilbronn-Frankenbach","Würzburger Straße","07131-483503",1,"Heilbronn-Franken"]
[1020,"Sporthalle;74363 Güglingen,An der Weinsteige",null,null,"Güglingen","Sporthalle","D",74363,"Güglingen","An der Weinsteige","07135-16247",1,"Heilbronn-Franken"]
[1021,"Sporthalle;74831 Gundelsheim,Oststraße 53",null,null,"Gundelsheim","Sporthalle","D",74831,"Gundelsheim","Oststraße 53","06269-45024",1,"Heilbronn-Franken"]
[1022,"Sporthalle Maibachschule;74076 Heilbronn,Paulinenstraße 38",null,null,"Heilbronn 1","Sporthalle Maibachschule","D",74076,"Heilbronn","Paulinenstraße 38","07131-2481",1,"Heilbronn-Franken"]
[1023,"Mönchseehalle;74072 Heilbronn,Karlstraße",null,null,"Heilbronn 2","Mönchseehalle","D",74072,"Heilbronn","Karlstraße","07131-2452",1,"Heilbronn-Franken"]
[1024,"Sporthalle Gustav-v.-Schmoller-Schule;74072 Heilbronn,Schützenstraße",null,null,"Heilbronn 3","Sporthalle Gustav-v.-Schmoller-Schule","D",74072,"Heilbronn","Schützenstraße","07131-2493",1,"Heilbronn-Franken"]
[1026,"Stauwehrhalle;74081 Heilbronn-Horkheim,Nussäckerstraße",null,null,"Horkheim","Stauwehrhalle","D",74081,"Heilbronn-Horkheim","Nussäckerstraße","07131-255515",1,"Heilbronn-Franken"]
[1027,"Schozachtalhalle;74360 Ilsfeld,Beim Schulzentrum",null,null,"Ilsfeld","Schozachtalhalle","D",74360,"Ilsfeld","Beim Schulzentrum","07062-63945",1,"Heilbronn-Franken"]
[1028,"Eberhard-Gienger-Halle;74653 Künzelsau,Jahnstraße",null,null,"Künzelsau","Eberhard-Gienger-Halle","D",74653,"Künzelsau","Jahnstraße","07940-4084",1,"Heilbronn-Franken"]
[1029,"Sporthalle;74348 Lauffen am Neckar,Charlottenstraße",null,null,"Lauffen/Neckar","Sporthalle","D",74348,"Lauffen am Neckar","Charlottenstraße","07133-12911",1,"Heilbronn-Franken"]
[1030,"Eichbotthalle;74211 Leingarten,Beim Freibad",null,null,"Leingarten","Eichbotthalle","D",74211,"Leingarten","Beim Freibad","07131-402140",1,"Heilbronn-Franken"]
[1031,"Jagsttalhalle;74219 Möckmühl,Schulzentrum",null,null,"Möckmühl","Jagsttalhalle","D",74219,"Möckmühl","Schulzentrum","06298-20272",1,"Heilbronn-Franken"]
[1032,"Jahnhalle;74821 Mosbach,Hammerweg 7",null,null,"Mosbach 1","Jahnhalle","D",74821,"Mosbach","Hammerweg 7","06261-18300",1,"Heilbronn-Franken"]
[1033,"Ludwig-Erhard-Sporthalle;74821 Mosbach,Im Katzhorn",null,null,"Mosbach 2","Ludwig-Erhard-Sporthalle","D",74821,"Mosbach","Im Katzhorn","06261-922029",1,"Heilbronn-Franken"]
[1034,"Pattberghalle;74821 Mosbach-Neckarelz,Schulzentrum",null,null,"Neckarelz","Pattberghalle","D",74821,"Mosbach-Neckarelz","Schulzentrum","06261-63193",1,"Heilbronn-Franken"]
[1035,"Römerhalle;74078 Heilbronn-Neckargartach,Römerstraße",null,null,"Neckargartach","Römerhalle","D",74078,"Heilbronn-Neckargartach","Römerstraße","07131-24884",1,"Heilbronn-Franken"]
[1036,"Ballei-Sporthalle;74172 Neckarsulm,Felix-Wankel-Straße",null,null,"Neckarsulm 1","Ballei-Sporthalle","D",74172,"Neckarsulm","Felix-Wankel-Straße","07132-35279",1,"Heilbronn-Franken"]
[1037,"Pichterichhalle;74172 Neckarsulm,Pichterichstraße",null,null,"Neckarsulm 2","Pichterichhalle","D",74172,"Neckarsulm","Pichterichstraße","07132-35277",1,"Heilbronn-Franken"]
[1038,"Helmbundhalle 1;74196 Neuenstadt,Gymnasiumstraße",null,null,"Neuenstadt 1","Helmbundhalle 1","D",74196,"Neuenstadt","Gymnasiumstraße","07139-480235",1,"Heilbronn-Franken"]
[1039,"Sporthalle;74226 Nordheim,Breibachweg",null,null,"Nordheim","Sporthalle","D",74226,"Nordheim","Breibachweg","07133-988244",1,"Heilbronn-Franken"]
[1040,"Neckarhalle;74847 Obrigheim,Schubertstraße",null,null,"Obrigheim","Neckarhalle","D",74847,"Obrigheim","Schubertstraße","06261-61261",1,"Heilbronn-Franken"]
[1041,"Sporthalle;74229 Oedheim,Schulzentrum",null,null,"Oedheim","Sporthalle","D",74229,"Oedheim","Schulzentrum","07136-912840",1,"Heilbronn-Franken"]
[1042,"Hohenlohe-Halle;74613 Öhringen,Pfaffenmühlweg",null,null,"Oehringen 1","Hohenlohe-Halle","D",74613,"Öhringen","Pfaffenmühlweg","07941-35588",1,"Heilbronn-Franken"]
[1044,"Sporthalle beim Wirtschaftsgymnasium;74613 Öhringen,Austraße",null,null,"Oehringen 3","Sporthalle beim Wirtschaftsgymnasium","D",74613,"Öhringen","Austraße","07941-61041",1,"Heilbronn-Franken"]
[1045,"Creutzfelder Sporthalle;74629 Pfedelbach,Pestalozzistraße 20",null,null,"Pfedelbach 1","Creutzfelder Sporthalle","D",74629,"Pfedelbach","Pestalozzistraße 20","07941-63172",1,"Heilbronn-Franken"]
[1046,"Schenkenseehalle 1;74523 Schwäbisch Hall,Schenkenseestraße",null,null,"Schw. Hall 1","Schenkenseehalle 1","D",74523,"Schwäbisch Hall","Schenkenseestraße","0791-9324052",1,"Heilbronn-Franken"]
[1047,"Sporthalle beim Schulzentrum West;74523 Schwäbisch Hall,Schulzentrum-West",null,null,"Schw. Hall 2","Sporthalle beim Schulzentrum West","D",74523,"Schwäbisch Hall","Schulzentrum-West","0791-9552-71",1,"Heilbronn-Franken"]
[1048,"Sporthalle Ost;74081 Heilbronn-Sontheim,Max-von-Laue-Straße",null,null,"Sontheim (HN)","Sporthalle Ost","D",74081,"Heilbronn-Sontheim","Max-von-Laue-Straße","07131-56-2442 / 56-2472",1,"Heilbronn-Franken"]
[1049,"Stettenfelshalle;74199 Untergruppenbach,Obergruppenbacher Straße",null,null,"Untergruppenbach","Stettenfelshalle","D",74199,"Untergruppenbach","Obergruppenbacher Straße","07131-701780",1,"Heilbronn-Franken"]
[1050,"Weibertreuhalle;74189 Weinsberg,Rossäckerstraße",null,null,"Weinsberg 1","Weibertreuhalle","D",74189,"Weinsberg","Rossäckerstraße","07134-8154",1,"Heilbronn-Franken"]
[1051,"Rossäckerhalle;74189 Weinsberg,Rossäckerstraße",null,null,"Weinsberg 2","Rossäckerhalle","D",74189,"Weinsberg","Rossäckerstraße","07134-8124",1,"Heilbronn-Franken"]
[1052,"Walter-Hohmann-Schulsporthalle;74736 Hardheim,Bürgermeister-Henn-Straße",null,null,"Hardheim","Walter-Hohmann-Schulsporthalle","D",74736,"Hardheim","Bürgermeister-Henn-Straße","06283-222150",1,"Heilbronn-Franken"]
[1053,"Neue Sporthalle;97993 Creglingen,Kieselallee",null,null,"Creglingen","Neue Sporthalle","D",97993,"Creglingen","Kieselallee","07933-912121",1,"Heilbronn-Franken"]
[1054,"Halle am Schuttrain;74081 Heilbronn,Hermann-Wolf-Straße 35",null,null,"Heilbronn 5","Halle am Schuttrain","D",74081,"Heilbronn","Hermann-Wolf-Straße 35",null,1,"Heilbronn-Franken"]
[1055,"Sporthalle an der Schanz;74629 Pfedelbach,Weststraße 38",null,null,"Pfedelbach 2","Sporthalle an der Schanz","D",74629,"Pfedelbach","Weststraße 38","07941-988631",1,"Heilbronn-Franken"]
[1056,"Sporthalle Bühl;74382 Neckarwestheim,Liebensteinstraße",null,null,"Neckarwestheim","Sporthalle Bühl","D",74382,"Neckarwestheim","Liebensteinstraße","07133-18449",1,"Heilbronn-Franken"]
[1057,"Schenkenseehalle 2;74523 Schwäbisch Hall,Schenkenseestraße",null,null,"Schw. Hall 3","Schenkenseehalle 2","D",74523,"Schwäbisch Hall","Schenkenseestraße",null,1,"Heilbronn-Franken"]
[1058,"Sporthalle bei der Kopernikus-Realschule;97980 Bad Mergentheim,Kopernikusstraße 6",null,null,"Bad Mergentheim","Sporthalle bei der Kopernikus-Realschule","D",97980,"Bad Mergentheim","Kopernikusstraße 6","07931-57-237  (Hm.)",1,"Heilbronn-Franken"]
[1059,"SportCentrum;74182 Obersulm,August-Thalheimer-Straße",null,null,"Obersulm","SportCentrum","D",74182,"Obersulm","August-Thalheimer-Straße","07130-405733",1,"Heilbronn-Franken"]
[1060,"Wörthalle;97941 Tauberbischofsheim,Am Wört",null,null,"TBB 1","Wörthalle","D",97941,"Tauberbischofsheim","Am Wört",null,1,"Heilbronn-Franken"]
[1061,"Grünewaldhalle;97941 Tauberbischofsheim,An der Festhalle",null,null,"TBB 2","Grünewaldhalle","D",97941,"Tauberbischofsheim","An der Festhalle",null,1,"Heilbronn-Franken"]
[1062,"Nibelungen-Halle;74731 Walldürn,Theodor-Heuss-Ring",null,null,"Walldürn","Nibelungen-Halle","D",74731,"Walldürn","Theodor-Heuss-Ring","06282-280",1,"Heilbronn-Franken"]
[1063,"Tauber-Franken-Sporthalle;97922 Lauda-Königshofen,Hauptstraße",null,null,"Königshofen 1","Tauber-Franken-Sporthalle","D",97922,"Lauda-Königshofen","Hauptstraße","09343-1701",1,"Heilbronn-Franken"]
[1064,"Sporthalle;97922 Lauda-Königshofen,Becksteiner Straße 58",null,null,"Lauda","Sporthalle","D",97922,"Lauda-Königshofen","Becksteiner Straße 58","09343-65303",1,"Heilbronn-Franken"]
[1065,"Sporthalle;74582 Gerabronn,Jahnstraße",null,null,"Gerabronn","Sporthalle","D",74582,"Gerabronn","Jahnstraße","07952-60446",1,"Heilbronn-Franken"]
[1066,"Sporthalle des TV Flein;74223 Flein,Talheimer Straße",null,null,"Flein 2","Sporthalle des TV Flein","D",74223,"Flein","Talheimer Straße",null,1,"Heilbronn-Franken"]
[1067,"Großsporthalle;74532 Ilshofen,Gartenstraße 1",null,null,"Ilshofen","Großsporthalle","D",74532,"Ilshofen","Gartenstraße 1",null,1,"Heilbronn-Franken"]
[1068,"Sporthalle Buchsmühle;74239 Hardthausen,Buchssteige",null,null,"Hardthausen","Sporthalle Buchsmühle","D",74239,"Hardthausen","Buchssteige",null,1,"Heilbronn-Franken"]
[1069,{"$f":"IF(C66=\"\",\"\",C66&\" km;\")&F66&\";\"&H66&\" \"&I66&\",\"&J66","v":"Großsporthalle 2;75031 Eppingen,Berlinger Ring 18/1"},null,null,"Eppingen 2","Großsporthalle 2","D",75031,"Eppingen","Berlinger Ring 18/1","07262-920-1118",1,"Heilbronn-Franken"]
[1070,"Sporthalle;74746 Höpfingen,Jahnstraße 12",null,null,"Höpfingen","Sporthalle","D",74746,"Höpfingen","Jahnstraße 12","06283-22060",1,"Heilbronn-Franken"]
[1071,"Sportzentrum Odenwald;74722 Buchen,Henry-Dunant-Straße",null,null,"Buchen 2","Sportzentrum Odenwald","D",74722,"Buchen","Henry-Dunant-Straße",null,1,"Heilbronn-Franken"]
[1072,"Pestalozzi-Sporthalle;97941 Tauberbischofsheim,Pestalozziallee 12",null,null,"TBB 3","Pestalozzi-Sporthalle","D",97941,"Tauberbischofsheim","Pestalozziallee 12",null,1,"Heilbronn-Franken"]
[1073,"Sporthalle;74670 Forchtenberg,Im Spitzen 4",null,null,"Forchtenberg","Sporthalle","D",74670,"Forchtenberg","Im Spitzen 4",null,1,"Heilbronn-Franken"]
[1074,"Hirtenwiesenhalle;74564 Crailsheim,Bürgermeister-Demuth-Allee 2",null,null,"Crailsheim 3","Hirtenwiesenhalle","D",74564,"Crailsheim","Bürgermeister-Demuth-Allee 2","07951-277747",1,"Heilbronn-Franken"]
[1075,"Helmbundhalle 2;74196 Neuenstadt,Gymnasiumstraße 22",null,null,"Neuenstadt 2","Helmbundhalle 2","D",74196,"Neuenstadt","Gymnasiumstraße 22",null,1,"Heilbronn-Franken"]
[1076,"Dreifachsporthalle;63897 Miltenberg-Nord,Nikolaus-Fasel-Straße",null,null,"Miltenberg","Dreifachsporthalle","D",63897,"Miltenberg-Nord","Nikolaus-Fasel-Straße","09371-951928",1,"Heilbronn-Franken"]
[1077,"Neue Sporthalle;74336 Brackenheim,Im Hirn",null,null,"Brackenheim 2","Neue Sporthalle","D",74336,"Brackenheim","Im Hirn",null,1,"Heilbronn-Franken"]
[2001,"Sporthalle Holzäcker;71563 Affalterbach,Holzäcker 1",null,null,"Affalterbach","Sporthalle Holzäcker","D",71563,"Affalterbach","Holzäcker 1","07144-38569",2,"Enz-Murr"]
[2002,"Sporthalle Regental;71686 Remseck-Aldingen,Meslay-du-Maine-Straße",null,null,"Aldingen","Sporthalle Regental","D",71686,"Remseck-Aldingen","Meslay-du-Maine-Straße","07146-289270 / 289275",2,"Enz-Murr"]
[2003,"Rundsporthalle;71679 Asperg,Königsberger Straße",null,null,"Asperg","Rundsporthalle","D",71679,"Asperg","Königsberger Straße","07141-65470",2,"Enz-Murr"]
[2004,"Karl-Euerle-Sporthalle;71522 Backnang,Maubacher Höhe",null,null,"Backnang 1","Karl-Euerle-Sporthalle","D",71522,"Backnang","Maubacher Höhe","07191-894350",2,"Enz-Murr"]
[2005,"Sporthalle beim Berufschulzentrum;71522 Backnang,Heininger Weg 43/3",null,null,"Backnang 2","Sporthalle beim Berufschulzentrum","D",71522,"Backnang","Heininger Weg 43/3","07191-896-291 / 896-293",2,"Enz-Murr"]
[2006,"Sporthalle bei der Mörikeschule;71522 Backnang,Rötlensweg",null,null,"Backnang 3","Sporthalle bei der Mörikeschule","D",71522,"Backnang","Rötlensweg","07191-86138",2,"Enz-Murr"]
[2008,"Neckarhalle;74354 Besigheim,Jahnstraße",null,null,"Besigheim","Neckarhalle","D",74354,"Besigheim","Jahnstraße","07143-374-243",2,"Enz-Murr"]
[2009,"Gymnasium-Sporthalle;74321 Bietigheim-Bissingen,Ellentalstraße",null,null,"Bietigheim 1","Gymnasium-Sporthalle","D",74321,"Bietigheim-Bissingen","Ellentalstraße","07142-74527",2,"Enz-Murr"]
[2011,"Sporthalle am Viadukt;74321 Bietigheim-Bissingen,Holzgartenstraße 28",null,null,"Bietigheim 3","Sporthalle am Viadukt","D",74321,"Bietigheim-Bissingen","Holzgartenstraße 28","07142-74524",2,"Enz-Murr"]
[2012,"Bruchwaldhalle;74321 Bietigheim-Bissingen,Marbacher Weg",null,null,"Bissingen 1","Bruchwaldhalle","D",74321,"Bietigheim-Bissingen","Marbacher Weg","07142-21056",2,"Enz-Murr"]
[2013,"Jahnhalle;74321 Bietigheim-Bissingen,Blumenstraße",null,null,"Bissingen 2","Jahnhalle","D",74321,"Bietigheim-Bissingen","Blumenstraße","07142-30695",2,"Enz-Murr"]
[2014,"Sporthalle1 Bönnigheim;74357 Bönnigheim,Schulstraße",null,null,"Bönnigheim 1","Sporthalle1 Bönnigheim","D",74357,"Bönnigheim","Schulstraße","07143-8852-50",2,"Enz-Murr"]
[2015,"Sporthalle Linsenhalde BBW Paulinenpflege;71364 Winnenden,Forststraße 4",null,null,"Schelmenholz","Sporthalle Linsenhalde BBW Paulinenpflege","D",71364,"Winnenden","Forststraße 4","07195-6953-47/-48/-49",2,"Enz-Murr"]
[2016,"Sporthalle Glemsaue;71254 Ditzingen,Grönigerstraße",null,null,"Ditzingen 1","Sporthalle Glemsaue","D",71254,"Ditzingen","Grönigerstraße","07156-32106",2,"Enz-Murr"]
[2017,"Sporthalle Konrad-Kocher-Schule;71254 Ditzingen,Gottfried-Keller-Straße",null,null,"Ditzingen 2","Sporthalle Konrad-Kocher-Schule","D",71254,"Ditzingen","Gottfried-Keller-Straße",null,2,"Enz-Murr"]
[2018,"Hermann-Batz-Halle;71634 Ludwigsburg-Eglosheim,Tammer Straße 20",null,null,"Eglosheim 1","Hermann-Batz-Halle","D",71634,"Ludwigsburg-Eglosheim","Tammer Straße 20","07141-33242",2,"Enz-Murr"]
[2019,"Schulsporthalle;71665 Vaihingen-Enzweihingen,Steinestraße 59",null,null,"Enzweihingen","Schulsporthalle","D",71665,"Vaihingen-Enzweihingen","Steinestraße 59","07042-17244",2,"Enz-Murr"]
[2020,"Stadthalle;71691 Freiberg/Neckar,Am Marktplatz",null,null,"Freiberg/N 1","Stadthalle","D",71691,"Freiberg/Neckar","Am Marktplatz","07141-278174",2,"Enz-Murr"]
[2021,"Wasensporthalle;71691 Freiberg/Neckar,Wasenstraße",null,null,"Freiberg/N 2","Wasensporthalle","D",71691,"Freiberg/Neckar","Wasenstraße","07141-270415",2,"Enz-Murr"]
[2023,"Wunnensteinhalle;71723 Großbottwar,",null,null,"Großbottwar","Wunnensteinhalle","D",71723,"Großbottwar",null,"07148-5775",2,"Enz-Murr"]
[2024,"Sporthalle;74343 Sachsenheim-Großsachsenheim,An der Burgfeldschule",null,null,"Großsachsenheim","Sporthalle","D",74343,"Sachsenheim-Großsachsenheim","An der Burgfeldschule","07147-28230",2,"Enz-Murr"]
[2025,"Sporthalle bei der Schule;71282 Hemmingen,Eberdinger Straße",null,null,"Hemmingen 1","Sporthalle bei der Schule","D",71282,"Hemmingen","Eberdinger Straße","07150-947755",2,"Enz-Murr"]
[2026,"Neue Sporthalle;71282 Hemmingen,Eberdinger Straße",null,null,"Hemmingen 2","Neue Sporthalle","D",71282,"Hemmingen","Eberdinger Straße","07150-826147",2,"Enz-Murr"]
[2027,"Sporthalle Kugelberg;71642 Ludwigsburg-Hoheneck,Am Kugelberg 30",null,null,"Hoheneck","Sporthalle Kugelberg","D",71642,"Ludwigsburg-Hoheneck","Am Kugelberg 30","07141-910-2261 / 251921",2,"Enz-Murr"]
[2028,"Stromberg-Sporthalle;75428 Illingen,",null,null,"Illingen","Stromberg-Sporthalle","D",75428,"Illingen",null,"07042-824235",2,"Enz-Murr"]
[2029,"Bottwartalhalle;71711 Steinheim-Kleinbottwar,Bottwarstraße 5",null,null,"Kleinbottwar","Bottwartalhalle","D",71711,"Steinheim-Kleinbottwar","Bottwarstraße 5","07148-7117",2,"Enz-Murr"]
[2030,"Sporthalle am See;71665 Vaihingen/Enz-Kleinglattbach,Im See 6",null,null,"Kleinglattbach","Sporthalle am See","D",71665,"Vaihingen/Enz-Kleinglattbach","Im See 6","07042-14113",2,"Enz-Murr"]
[2032,"Sporthalle Ost;70806 Kornwestheim,Theodor-Heuss-Straße",null,null,"Kornwestheim 2","Sporthalle Ost","D",70806,"Kornwestheim","Theodor-Heuss-Straße","07154-202-7501 oder -7502",2,"Enz-Murr"]
[2033,"Stadionhalle;70806 Kornwestheim,Am Sportplatz 1",null,null,"Kornwestheim 3","Stadionhalle","D",70806,"Kornwestheim","Am Sportplatz 1","07154-202460",2,"Enz-Murr"]
[2035,"Rundsporthalle;71636 Ludwigsburg,Kurfürstenstraße 23",null,null,"Ludwigsburg 2","Rundsporthalle","D",71636,"Ludwigsburg","Kurfürstenstraße 23","07141-910550",2,"Enz-Murr"]
[2036,"Sporthalle Alleenstraße (beim Forum);71634 Ludwigsburg,Alleenstraße",null,null,"Ludwigsburg 3","Sporthalle Alleenstraße (beim Forum)","D",71634,"Ludwigsburg","Alleenstraße","07141-910-2640",2,"Enz-Murr"]
[2037,"Sporthalle Carl-Schäfer-Schule;71634 Ludwigsburg,Hohenzollernstraße",null,null,"Ludwigsburg 4","Sporthalle Carl-Schäfer-Schule","D",71634,"Ludwigsburg","Hohenzollernstraße","07141-96020",2,"Enz-Murr"]
[2038,"Sporthalle beim Bildungszentrum West;71634 Ludwigsburg,Heinrich-Schweitzer-Straße 2",null,null,"Ludwigsburg 5","Sporthalle beim Bildungszentrum West","D",71634,"Ludwigsburg","Heinrich-Schweitzer-Straße 2","07141-910-2628",2,"Enz-Murr"]
[2039,"Sporthalle Rotbäumlesfeld;71634 Ludwigsburg,Danziger Straße",null,null,"Ludwigsburg 6","Sporthalle Rotbäumlesfeld","D",71634,"Ludwigsburg","Danziger Straße",null,2,"Enz-Murr"]
[2040,"Karl-Nusser-Halle;71672 Marbach/Neckar,Bildungszentrum",null,null,"Marbach/N 1","Karl-Nusser-Halle","D",71672,"Marbach/Neckar","Bildungszentrum","07144-102-313",2,"Enz-Murr"]
[2041,"Stadionhalle;71672 Marbach/Neckar,Am Leiselstein 4",null,null,"Marbach/N 2","Stadionhalle","D",71672,"Marbach/Neckar","Am Leiselstein 4","07144-102-288",2,"Enz-Murr"]
[2042,"Neue Sporthalle;71706 Markgröningen,Schwieberdinger Weg",null,null,"Markgröningen 1","Neue Sporthalle","D",71706,"Markgröningen","Schwieberdinger Weg","07145-26315",2,"Enz-Murr"]
[2043,"Sonnenbrunnenhalle;71696 Möglingen,Ludwigsburger Straße",null,null,"Möglingen 1","Sonnenbrunnenhalle","D",71696,"Möglingen","Ludwigsburger Straße",null,2,"Enz-Murr"]
[2044,"Stadionhalle;71696 Möglingen,Ludwigsburger Straße 1",null,null,"Möglingen 2","Stadionhalle","D",71696,"Möglingen","Ludwigsburger Straße 1","07141-486447",2,"Enz-Murr"]
[2045,"Käsberghalle;74395 Mundelsheim,Karl-Epple-Straße 13",null,null,"Mundelsheim","Käsberghalle","D",74395,"Mundelsheim","Karl-Epple-Straße 13","07143-50549 oder 50084",2,"Enz-Murr"]
[2046,"Sporthalle beim Gymnasium;71540 Murrhardt,Rudi-Gehring-Straße 1",null,null,"Murrhardt","Sporthalle beim Gymnasium","D",71540,"Murrhardt","Rudi-Gehring-Straße 1","07192-8155",2,"Enz-Murr"]
[2047,"Sporthalle;71549 Auenwald-Oberbrüden,Bruckenwiesen 2",null,null,"Oberbrüden","Sporthalle","D",71549,"Auenwald-Oberbrüden","Bruckenwiesen 2","07191-56529 / 56907",2,"Enz-Murr"]
[2048,"Sporthalle In den Bäderwiesen;71720 Oberstenfeld,",null,null,"Oberstenfeld","Sporthalle In den Bäderwiesen","D",71720,"Oberstenfeld",null,"07062-5289",2,"Enz-Murr"]
[2049,"Gemeindehalle;71570 Oppenweiler,Jahnstraße",null,null,"Oppenweiler","Gemeindehalle","D",71570,"Oppenweiler","Jahnstraße","07191-44841",2,"Enz-Murr"]
[2050,"Mehrzweckhalle;71640 Ludwigsburg-Oßweil,Fellbacher Straße 21",null,null,"Oßweil","Mehrzweckhalle","D",71640,"Ludwigsburg-Oßweil","Fellbacher Straße 21","07141-860696",2,"Enz-Murr"]
[2051,"Sporthalle;71634 Ludwigsburg-Pflugfelden,Kleines Feldle",null,null,"Pflugfelden 1","Sporthalle","D",71634,"Ludwigsburg-Pflugfelden","Kleines Feldle","07141-9102251 (Vereinsheim)",2,"Enz-Murr"]
[2052,"Sporthalle Römerhügel;71634 Ludwigsburg-Pflugfelden,Römerhügelweg 53",null,null,"Pflugfelden 2","Sporthalle Römerhügel","D",71634,"Ludwigsburg-Pflugfelden","Römerhügelweg 53","07141-464014  (Hm.)",2,"Enz-Murr"]
[2054,"Sporthalle am Hardtwald;71672 Marbach-Rielingshausen,Sportanlag.Turnerbund",null,null,"Rielingshausen","Sporthalle am Hardtwald","D",71672,"Marbach-Rielingshausen","Sportanlag.Turnerbund","07144-39356 (Vereinsheim)",2,"Enz-Murr"]
[2055,"Sporthalle Herrenwiesen;71701 Schwieberdingen,Herrenwiesen",null,null,"Schwieberdingen 1","Sporthalle Herrenwiesen","D",71701,"Schwieberdingen","Herrenwiesen","07150-353739",2,"Enz-Murr"]
[2056,"Felsenberghalle;71701 Schwieberdingen,Markgröninger Straße 142",null,null,"Schwieberdingen 2","Felsenberghalle","D",71701,"Schwieberdingen","Markgröninger Straße 142","07150-397454",2,"Enz-Murr"]
[2057,"Riedhalle;71711 Steinheim/Murr,Höpfigheimer Straße",null,null,"Steinheim/Murr","Riedhalle","D",71711,"Steinheim/Murr","Höpfigheimer Straße","07144-2630",2,"Enz-Murr"]
[2058,"Sporthalle;71560 Sulzbach/Murr,",null,null,"Sulzbach/Murr","Sporthalle","D",71560,"Sulzbach/Murr",null,"07193-5139",2,"Enz-Murr"]
[2059,"Schulsporthalle;71732 Tamm,",null,null,"Tamm 1","Schulsporthalle","D",71732,"Tamm",null,"07141-606220",2,"Enz-Murr"]
[2060,"Sporthalle beim Bildungszentrum;71554 Weissach i.T-Unterweissach,Aichholzhof",null,null,"Unterweissach","Sporthalle beim Bildungszentrum","D",71554,"Weissach i.T-Unterweissach","Aichholzhof","07191-35200",2,"Enz-Murr"]
[2061,"Sporthalle;71665 Vaihingen/Enz,Alter Postweg 12",null,null,"Vaihingen/Enz 1","Sporthalle","D",71665,"Vaihingen/Enz","Alter Postweg 12","07042-4555",2,"Enz-Murr"]
[2062,{"$f":"IF(C130=\"\",\"\",C130&\" km;\")&F130&\";\"&H130&\" \"&I130&\",\"&J130","v":"Heckengäuhalle 1;71287 Weissach,Hölderlinstraße 1"},null,null,"Weissach 1","Heckengäuhalle 1","D",71287,"Weissach","Hölderlinstraße 1","07044-930005",2,"Enz-Murr"]
[2063,"Lindenhalle;75446 Wiernsheim,",null,null,"Wiernsheim","Lindenhalle","D",75446,"Wiernsheim",null,"07044-8930 o. 8957",2,"Enz-Murr"]
[2064,"Mehrzweckhalle;71720 Oberstenfeld-Gronau,Hermann-Helber-Straße 7",null,null,"Gronau","Mehrzweckhalle","D",71720,"Oberstenfeld-Gronau","Hermann-Helber-Straße 7","07062-2391900",2,"Enz-Murr"]
[2065,"Sporthalle 2;74357 Bönnigheim,Schulstraße",null,null,"Bönnigheim 2","Sporthalle 2","D",74357,"Bönnigheim","Schulstraße",null,2,"Enz-Murr"]
[2066,"Sporthalle;71739 Oberriexingen,Mühlstraße 25",null,null,"Oberriexingen","Sporthalle","D",71739,"Oberriexingen","Mühlstraße 25","07042-978100",2,"Enz-Murr"]
[2067,"Alte Sporthalle;71706 Markgröningen,Schwieberdinger Weg",null,null,"Markgröningen 2","Alte Sporthalle","D",71706,"Markgröningen","Schwieberdinger Weg","07145-26315",2,"Enz-Murr"]
[2068,"Sporthalle Seehansen;71254 Ditzingen-Hirschlanden,Seehansen 5",null,null,"Hirschlanden","Sporthalle Seehansen","D",71254,"Ditzingen-Hirschlanden","Seehansen 5",null,2,"Enz-Murr"]
[2069,"Heckengäuhalle 2;71287 Weissach,Hölderlinstraße",null,null,"Weissach 2","Heckengäuhalle 2","D",71287,"Weissach","Hölderlinstraße",null,2,"Enz-Murr"]
[2070,"Sporthalle;71287 Weissach-Flacht,Tiefenbronner Weg 3",null,null,"Flacht","Sporthalle","D",71287,"Weissach-Flacht","Tiefenbronner Weg 3","07044-930214",2,"Enz-Murr"]
[2071,"Aurainhalle;74321 Bietigheim-Bissingen,Hans-Stangenberger-Straße",null,null,"Bietigheim 4","Aurainhalle","D",74321,"Bietigheim-Bissingen","Hans-Stangenberger-Straße","07142-918130",2,"Enz-Murr"]
[2072,"Sporthalle beim Stromberg-Gymnasium;71665 Vaihingen/Enz,Nebenweg 1",null,null,"Vaihingen/Enz 2","Sporthalle beim Stromberg-Gymnasium","D",71665,"Vaihingen/Enz","Nebenweg 1","07042-950380",2,"Enz-Murr"]
[2073,"Sporthalle Innenstadt;71634 Ludwigsburg,Karlstraße 29",null,null,"Ludwigsburg 7","Sporthalle Innenstadt","D",71634,"Ludwigsburg","Karlstraße 29",null,2,"Enz-Murr"]
[2074,"Sporthalle in der Au;71726 Benningen,Beihinger Straße 70",null,null,"Benningen 2","Sporthalle in der Au","D",71726,"Benningen","Beihinger Straße 70",null,2,"Enz-Murr"]
[2075,"Sporthalle Egelsee;71732 Tamm,Ludwigsaburger Straße 19",null,null,"Tamm 2","Sporthalle Egelsee","D",71732,"Tamm","Ludwigsaburger Straße 19","07141-601000",2,"Enz-Murr"]
[2076,"Halle bei der Berufschule;70806 Kornwestheim-Pattonville,John-F.-Kennedy-Allee 8",null,null,"Pattonville","Halle bei der Berufschule","D",70806,"Kornwestheim-Pattonville","John-F.-Kennedy-Allee 8","07141-281087",2,"Enz-Murr"]
[2077,"Erich-Lillich-Halle;71634 Ludwigsburg-Eglosheim,Tammer Straße 20",null,null,"Eglosheim 2","Erich-Lillich-Halle","D",71634,"Ludwigsburg-Eglosheim","Tammer Straße 20","07141-",2,"Enz-Murr"]
[3001,"Sporthalle;73553 Alfdorf,Obere Schloßstraße 132",null,null,"Alfdorf","Sporthalle","D",73553,"Alfdorf","Obere Schloßstraße 132","07172-309-33",3,"Rems-Stuttgart"]
[3002,"Sporthalle;71384 Weinstadt-Beutelsbach,Im Obenhinaus 5",null,null,"Beutelsbach","Sporthalle","D",71384,"Weinstadt-Beutelsbach","Im Obenhinaus 5","07151-68488",3,"Rems-Stuttgart"]
[3003,"Gemeindehalle;71336 Waiblingen-Bittenfeld,Waldstraße 2",null,null,"Bittenfeld","Gemeindehalle","D",71336,"Waiblingen-Bittenfeld","Waldstraße 2","07146-876325",3,"Rems-Stuttgart"]
[3004,"Ballspielhalle;70195 Stuttgart-Botnang,Kauffmannstraße 39",null,null,"Botnang 1","Ballspielhalle","D",70195,"Stuttgart-Botnang","Kauffmannstraße 39","0711-695168",3,"Rems-Stuttgart"]
[3006,"Elly-Heuss-Knapp-Gymnasium;70372 Stuttgart-Bad Cannstatt,Remstalstraße 35",null,null,"Cannstatt 1","Elly-Heuss-Knapp-Gymnasium","D",70372,"Stuttgart-Bad Cannstatt","Remstalstraße 35","0711-523100",3,"Rems-Stuttgart"]
[3007,"Molly-Schauffele-Sporthalle;70372 Stuttgart-Bad Cannstatt,Mercedesstraße 87",null,null,"Cannstatt 2","Molly-Schauffele-Sporthalle","D",70372,"Stuttgart-Bad Cannstatt","Mercedesstraße 87","0711-216-3240",3,"Rems-Stuttgart"]
[3008,"Sporthalle TV Cannstatt;70376 Stuttgart-Bad Cannstatt,Am Schnarrenberg",null,null,"Cannstatt 3","Sporthalle TV Cannstatt","D",70376,"Stuttgart-Bad Cannstatt","Am Schnarrenberg","0711-52089481",3,"Rems-Stuttgart"]
[3009,"Sporthalle Albschule;70597 Stuttgart-Degerloch,Albstraße 80 F",null,null,"Degerloch 1","Sporthalle Albschule","D",70597,"Stuttgart-Degerloch","Albstraße 80 F","0711-7655629",3,"Rems-Stuttgart"]
[3010,"Sporthalle Bildungszentrum;71384 Weinstadt-Endersbach,Beutelsbacher Straße",null,null,"Endersbach","Sporthalle Bildungszentrum","D",71384,"Weinstadt-Endersbach","Beutelsbacher Straße","07151-660796",3,"Rems-Stuttgart"]
[3011,"Gäuäcker-Sporthalle 1;70736 Fellbach,Bühlstraße 141",null,null,"Fellbach 1","Gäuäcker-Sporthalle 1","D",70736,"Fellbach","Bühlstraße 141","0711-573048",3,"Rems-Stuttgart"]
[3012,"Gäuäcker-Sporthalle 2;70736 Fellbach,Bühlstraße 145",null,null,"Fellbach 2","Gäuäcker-Sporthalle 2","D",70736,"Fellbach","Bühlstraße 145","0711-573048",3,"Rems-Stuttgart"]
[3013,"Zeppelinhalle;70736 Fellbach,Thomas-Mann-Straße 53",null,null,"Fellbach 3","Zeppelinhalle","D",70736,"Fellbach","Thomas-Mann-Straße 53","0711-582620",3,"Rems-Stuttgart"]
[3014,"Hugo-Kunzi-Sporthalle;70469 Stuttgart-Feuerbach,Am Sportpark 4",null,null,"Feuerbach 1","Hugo-Kunzi-Sporthalle","D",70469,"Stuttgart-Feuerbach","Am Sportpark 4","0711-817692",3,"Rems-Stuttgart"]
[3015,"Jahn-Sporthalle;70469 Stuttgart-Feuerbach,Wiener Straße 76 A",null,null,"Feuerbach 2","Jahn-Sporthalle","D",70469,"Stuttgart-Feuerbach","Wiener Straße 76 A","0711-852306",3,"Rems-Stuttgart"]
[3016,"Schulzentrum;70437 Stuttgart-Freiberg,Adalbert-Stifter-Straße 40",null,null,"Freiberg (S)","Schulzentrum","D",70437,"Stuttgart-Freiberg","Adalbert-Stifter-Straße 40","0711-841075",3,"Rems-Stuttgart"]
[3017,"Stegwiesenhalle;73630 Remshalden-Geradstetten,Stegwiesenweg 1",null,null,"Geradstetten","Stegwiesenhalle","D",73630,"Remshalden-Geradstetten","Stegwiesenweg 1","07151-73929",3,"Rems-Stuttgart"]
[3018,"Sporthalle Brückentor;70839 Gerlingen,Beim Brückentor",null,null,"Gerlingen 1","Sporthalle Brückentor","D",70839,"Gerlingen","Beim Brückentor","07156-205291",3,"Rems-Stuttgart"]
[3019,"Stadthalle;70839 Gerlingen,Hauptstraße 43",null,null,"Gerlingen 2","Stadthalle","D",70839,"Gerlingen","Hauptstraße 43","07156-205203",3,"Rems-Stuttgart"]
[3020,"Jahnhalle;73630 Remshalden-Grunbach,Bahnhofstraße 29/1",null,null,"Grunbach","Jahnhalle","D",73630,"Remshalden-Grunbach","Bahnhofstraße 29/1","07151-75201",3,"Rems-Stuttgart"]
[3021,"Sporthalle Steinenbergschule;70329 Stuttgart-Hedelfingen,Am Steinenberg 5 A",null,null,"Hedelfingen","Sporthalle Steinenbergschule","D",70329,"Stuttgart-Hedelfingen","Am Steinenberg 5 A","0711-424050",3,"Rems-Stuttgart"]
[3022,"Gemeindehalle;71336 Waiblingen-Hohenacker,Rechbergstraße",null,null,"Hohenacker","Gemeindehalle","D",71336,"Waiblingen-Hohenacker","Rechbergstraße","07151-98703778",3,"Rems-Stuttgart"]
[3023,"Ballspielhalle;71404 Korb,Brucknerstraße",null,null,"Korb","Ballspielhalle","D",71404,"Korb","Brucknerstraße","07151-9334-39",3,"Rems-Stuttgart"]
[3024,"Sporthalle;70825 Korntal-Münchingen,Martin-Luther-Straße 32",null,null,"Korntal 1","Sporthalle","D",70825,"Korntal-Münchingen","Martin-Luther-Straße 32","0711-8367270",3,"Rems-Stuttgart"]
[3025,"Schäfersfeldhalle;73547 Lorch,Auf dem Schäfersfeld",null,null,"Lorch","Schäfersfeldhalle","D",73547,"Lorch","Auf dem Schäfersfeld","07172-186-398",3,"Rems-Stuttgart"]
[3026,"Rembrandhalle;70567 Stuttgart-Möhringen,Sigmaringer Straße 85",null,null,"Möhringen","Rembrandhalle","D",70567,"Stuttgart-Möhringen","Sigmaringer Straße 85","0711-713624",3,"Rems-Stuttgart"]
[3027,"Sporthalle Schulzentrum;70378 Stuttgart-Neugereut,Seeadlerstraße 3 A",null,null,"Neugereut","Sporthalle Schulzentrum","D",70378,"Stuttgart-Neugereut","Seeadlerstraße 3 A","0711-535375",3,"Rems-Stuttgart"]
[3028,"Sporthalle Friedensschule;71336 Waiblingen-Neustadt,Ringstraße 26",null,null,"Neustadt","Sporthalle Friedensschule","D",71336,"Waiblingen-Neustadt","Ringstraße 26","07151-92050315",3,"Rems-Stuttgart"]
[3029,"Sporthalle;70736 Fellbach-Oeffingen,Albert-Eise Weg 3",null,null,"Oeffingen","Sporthalle","D",70736,"Fellbach-Oeffingen","Albert-Eise Weg 3","0711-516134",3,"Rems-Stuttgart"]
[3030,"Sporthalle;70599 Stuttgart-Plieningen,Im Wolfer 36",null,null,"Plieningen","Sporthalle","D",70599,"Stuttgart-Plieningen","Im Wolfer 36","0711-456492",4,"Esslingen-Teck"]
[3031,"Hohberg-Halle;73655 Plüderhausen,Kantstraße",null,null,"Plüderhausen","Hohberg-Halle","D",73655,"Plüderhausen","Kantstraße","07181-9995581",3,"Rems-Stuttgart"]
[3032,"Rumoldhalle;71394 Kernen-Rommelshausen,Stettener Straße",null,null,"Rommelshausen","Rumoldhalle","D",71394,"Kernen-Rommelshausen","Stettener Straße","07151-4014-184",3,"Rems-Stuttgart"]
[3033,"Wieslaufhalle;73635 Rudersberg,Welzheimer Straße",null,null,"Rudersberg","Wieslaufhalle","D",73635,"Rudersberg","Welzheimer Straße","07183-3005-74",3,"Rems-Stuttgart"]
[3034,"Sporthalle Linsenhalde BBW Paulinenpflege;71364 Winnenden-Schelmenholz,Forststraße 4",null,null,"Schelmenholz","Sporthalle Linsenhalde BBW Paulinenpflege","D",71364,"Winnenden-Schelmenholz","Forststraße 4","07195-6953-47/-48/-49",3,"Rems-Stuttgart"]
[3035,"Sporthalle beim Schulzentrum;70736 Fellbach-Schmiden,Remstaler Straße 38",null,null,"Schmiden 1","Sporthalle beim Schulzentrum","D",70736,"Fellbach-Schmiden","Remstaler Straße 38","0711-5851-658/-639",3,"Rems-Stuttgart"]
[3036,"Neue Sporthalle;70736 Fellbach-Schmiden,Remstalstraße 40",null,null,"Schmiden 2","Neue Sporthalle","D",70736,"Fellbach-Schmiden","Remstalstraße 40","0711-5851633",3,"Rems-Stuttgart"]
[3037,"Sporthalle beim Berufschulzentrum;73614 Schorndorf,Grabenstraße",null,null,"Schorndorf 1","Sporthalle beim Berufschulzentrum","D",73614,"Schorndorf","Grabenstraße","07181-604-450",3,"Rems-Stuttgart"]
[3038,"218,6 km;Sporthalle Grauhalde;73614 Schorndorf,Rehhaldenweg 10",218.6,"2018-07-07","Schorndorf 2","Sporthalle Grauhalde","D",73614,"Schorndorf","Rehhaldenweg 10","07181-600681",3,"Rems-Stuttgart"]
[3039,"Karl-Wahl-Sporthalle;73614 Schorndorf,Schlichtener Straße",null,null,"Schorndorf 3","Karl-Wahl-Sporthalle","D",73614,"Schorndorf","Schlichtener Straße","07181-602-488",3,"Rems-Stuttgart"]
[3040,"Sporthalle Rainbrunnen;73614 Schorndorf,Störerweg 15",null,null,"Schorndorf 4","Sporthalle Rainbrunnen","D",73614,"Schorndorf","Störerweg 15","07181-602-493",3,"Rems-Stuttgart"]
[3041,"Fritz-Ulrich-Halle;71409 Schwaikheim,Badstraße",null,null,"Schwaikheim 1","Fritz-Ulrich-Halle","D",71409,"Schwaikheim","Badstraße","07195-965012",3,"Rems-Stuttgart"]
[3042,"Gemeindehalle;71409 Schwaikheim,Rosenstraße",null,null,"Schwaikheim 2","Gemeindehalle","D",71409,"Schwaikheim","Rosenstraße","07195-965014",3,"Rems-Stuttgart"]
[3043,"Sporthalle beim Schulzentrum;70619 Stuttgart-Sillenbuch,Richard-Schmid-Straße 25 A",null,null,"Sillenbuch 1","Sporthalle beim Schulzentrum","D",70619,"Stuttgart-Sillenbuch","Richard-Schmid-Straße 25 A","0711-4797703",3,"Rems-Stuttgart"]
[3044,"Sporthalle;70439 Stuttgart-Stammheim,Münchinger Straße 60",null,null,"Stammheim (S)","Sporthalle","D",70439,"Stuttgart-Stammheim","Münchinger Straße 60","0711-801061",3,"Rems-Stuttgart"]
[3045,"Sporthalle;71394 Kernen-Stetten,Dinkelstraße 8",null,null,"Stetten i.R.","Sporthalle","D",71394,"Kernen-Stetten","Dinkelstraße 8","07151-276226",3,"Rems-Stuttgart"]
[3047,"Sporthalle beim Schickardt-Gymnasium;70199 Stuttgart-Süd,Mörikestraße 66",null,null,"Stuttgart 2","Sporthalle beim Schickardt-Gymnasium","D",70199,"Stuttgart-Süd","Mörikestraße 66","0711-6498190",3,"Rems-Stuttgart"]
[3048,"SporthalleTivoli bei der Liederhalle;70176 Stuttgart-West,Forststraße 15",null,null,"Stuttgart 3","SporthalleTivoli bei der Liederhalle","D",70176,"Stuttgart-West","Forststraße 15","0711-2264821",3,"Rems-Stuttgart"]
[3049,"Sporthalle West;70193 Stuttgart-West,Bebelstraße 28",null,null,"Stuttgart 4","Sporthalle West","D",70193,"Stuttgart-West","Bebelstraße 28","0711-639040",3,"Rems-Stuttgart"]
[3050,"Zeppelinhalle;70190 Stuttgart-Ost,Neckarstraße 149/1",null,null,"Stuttgart 5","Zeppelinhalle","D",70190,"Stuttgart-Ost","Neckarstraße 149/1","0711-260796",3,"Rems-Stuttgart"]
[3051,{"$f":"IF(C194=\"\",\"\",C194&\" km;\")&F194&\";\"&H194&\" \"&I194&\",\"&J194","v":"NWS-Halle;70190 Stuttgart-Ost,Stöckachstraße 48"},null,null,"Stuttgart 6","NWS-Halle","D",70190,"Stuttgart-Ost","Stöckachstraße 48","0711-289-0",3,"Rems-Stuttgart"]
[3052,"Sporthalle Lindenschule;70327 Stuttgart-Untertürkheim,Beim Inselkraftwerk 1",null,null,"Untertürkheim","Sporthalle Lindenschule","D",70327,"Stuttgart-Untertürkheim","Beim Inselkraftwerk 1","0172-7631764",3,"Rems-Stuttgart"]
[3053,"Wittumhalle;73660 Urbach,Schrainstraße 24",null,null,"Urbach","Wittumhalle","D",73660,"Urbach","Schrainstraße 24","07181-85885",3,"Rems-Stuttgart"]
[3054,"Alte Sporthalle beim Berufschulzentrum;71332 Waiblingen,Steinbeisstraße 4",null,null,"Waiblingen 1","Alte Sporthalle beim Berufschulzentrum","D",71332,"Waiblingen","Steinbeisstraße 4","07151-50030",3,"Rems-Stuttgart"]
[3055,"Neue Sporthalle beim Berufschulzentrum;71332 Waiblingen,Steinbeisstraße 10-16",null,null,"Waiblingen 2","Neue Sporthalle beim Berufschulzentrum","D",71332,"Waiblingen","Steinbeisstraße 10-16","07151-5004-0",3,"Rems-Stuttgart"]
[3056,"Rundsporthalle;71332 Waiblingen,Oberer Ring",null,null,"Waiblingen 3","Rundsporthalle","D",71332,"Waiblingen","Oberer Ring","07151-21356",3,"Rems-Stuttgart"]
[3057,"Saliersporthalle;71334 Waiblingen,Im Sämann",null,null,"Waiblingen 4","Saliersporthalle","D",71334,"Waiblingen","Im Sämann","07151-200811",3,"Rems-Stuttgart"]
[3058,"Neue Staufer-Sporthalle;71332 Waiblingen,Mayenner Straße",null,null,"Waiblingen 5","Neue Staufer-Sporthalle","D",71332,"Waiblingen","Mayenner Straße","07151-56815-679",3,"Rems-Stuttgart"]
[3059,"Flatow-Sporthalle;70327 Stuttgart-Wangen,Giengener Straße 1",null,null,"Wangen (S)","Flatow-Sporthalle","D",70327,"Stuttgart-Wangen","Giengener Straße 1","0711-216-5017",3,"Rems-Stuttgart"]
[3060,"Bronnbachhalle;73614 Schorndorf-Weiler,Jahnstraße",null,null,"Weiler","Bronnbachhalle","D",73614,"Schorndorf-Weiler","Jahnstraße","07181-41123",3,"Rems-Stuttgart"]
[3061,"Sporthalle Spechtweg;70499 Stuttgart-Weilimdorf,Spechtweg 40 B",null,null,"Weilimdorf","Sporthalle Spechtweg","D",70499,"Stuttgart-Weilimdorf","Spechtweg 40 B","0711-861919",3,"Rems-Stuttgart"]
[3062,"Justinus-Kerner-Halle;73642 Welzheim,Lindenstraße",null,null,"Welzheim","Justinus-Kerner-Halle","D",73642,"Welzheim","Lindenstraße","07182-8008-53",3,"Rems-Stuttgart"]
[3063,"Stadionhalle;71364 Winnenden,Albertviller Straße",null,null,"Winnenden 1","Stadionhalle","D",71364,"Winnenden","Albertviller Straße","07195-177106",3,"Rems-Stuttgart"]
[3064,"Stöckachhalle;71364 Winnenden,Kelterstraße 2",null,null,"Winnenden 2","Stöckachhalle","D",71364,"Winnenden","Kelterstraße 2","07195-178721",3,"Rems-Stuttgart"]
[3065,"Salierhalle;73650 Winterbach,Lerchenstraße 51",null,null,"Winterbach 1","Salierhalle","D",73650,"Winterbach","Lerchenstraße 51","07181-700642",3,"Rems-Stuttgart"]
[3066,"Ballspielhalle;73650 Winterbach,Lerchenstraße 51",null,null,"Winterbach 2","Ballspielhalle","D",73650,"Winterbach","Lerchenstraße 51","07181-42253",3,"Rems-Stuttgart"]
[3067,"Sporthalle Talwiesen;70437 Stuttgart-Zuffenhausen,Haldenrainstraße 35",null,null,"Zuffenhausen","Sporthalle Talwiesen","D",70437,"Stuttgart-Zuffenhausen","Haldenrainstraße 35","0711-874790",3,"Rems-Stuttgart"]
[3068,"Hanns-Martin-Schleyer-Halle;70372 Stuttgart-Bad Cannstatt,Mercedesstraße 69",null,null,"Cannstatt 4","Hanns-Martin-Schleyer-Halle","D",70372,"Stuttgart-Bad Cannstatt","Mercedesstraße 69","0711-9554-30",3,"Rems-Stuttgart"]
[3069,"Ballsporthalle;70329 Stuttgart,Augsburger Straße 581",null,null,"Obertürkheim","Ballsporthalle","D",70329,"Stuttgart","Augsburger Straße 581",null,3,"Rems-Stuttgart"]
[3070,"Spitalwald-Halle;70619 Stuttgart,Spitalwald 1",null,null,"Sillenbuch 2","Spitalwald-Halle","D",70619,"Stuttgart","Spitalwald 1","0711-478727",3,"Rems-Stuttgart"]
[3071,"PORSCHE Arena;70372 Stuttgart-Bad Cannstatt,Mercedesstraße 69",null,null,"Cannstatt 5","PORSCHE Arena","D",70372,"Stuttgart-Bad Cannstatt","Mercedesstraße 69","0711-9554-452",3,"Rems-Stuttgart"]
[3072,"Sporthalle am Karls-Gymnasium;70178 Stuttgart-Süd,Tübinger Straße 38",null,null,"Stuttgart 7","Sporthalle am Karls-Gymnasium","D",70178,"Stuttgart-Süd","Tübinger Straße 38","0172-7398108",3,"Rems-Stuttgart"]
[3073,"Sporthalle Teichwiesen;70825 Korntal-Münchingen,Feuerseeweg",null,null,"Korntal 2","Sporthalle Teichwiesen","D",70825,"Korntal-Münchingen","Feuerseeweg",null,3,"Rems-Stuttgart"]
[4001,"221 km;Sporthalle;73776 Altbach,An der Neckarbrücke",221,null,"Altbach","Sporthalle","D",73776,"Altbach","An der Neckarbrücke","07153-21550",4,"Esslingen-Teck"]
[4002,"Ermstalhalle;72574 Bad Urach,Immanuel-Kant-Straße",null,null,"Bad Urach","Ermstalhalle","D",72574,"Bad Urach","Immanuel-Kant-Straße","07125-407658",4,"Esslingen-Teck"]
[4003,"Sporthalle;73734 Esslingen-Berkheim,Schulstraße 56",null,null,"Berkheim","Sporthalle","D",73734,"Esslingen-Berkheim","Schulstraße 56","0711-3166341",4,"Esslingen-Teck"]
[4004,"Sporthalle beim Eduard-Spranger-Gymnasium;70794 Filderstadt-Bernhausen,Tübinger Straße",null,null,"Bernhausen 1","Sporthalle beim Eduard-Spranger-Gymnasium","D",70794,"Filderstadt-Bernhausen","Tübinger Straße","0711-7003338",4,"Esslingen-Teck"]
[4005,"Rundsporthalle;70794 Filderstadt-Bernhausen,Dombaslerstraße",null,null,"Bernhausen 2","Rundsporthalle","D",70794,"Filderstadt-Bernhausen","Dombaslerstraße","0711-7003273",4,"Esslingen-Teck"]
[4006,"tus-Halle beim Fernsehturm;70597 Stuttgart-Degerloch,Königsträßle 37",null,null,"Degerloch 2","tus-Halle beim Fernsehturm","D",70597,"Stuttgart-Degerloch","Königsträßle 37","0711-9766110 (GS)",4,"Esslingen-Teck"]
[4007,"213,7 km;Hermann-Ertinger-Sporthalle;73779 Deizisau,Altbacher Straße",213.7,"2018-07-11","Deizisau 1","Hermann-Ertinger-Sporthalle","D",73779,"Deizisau","Altbacher Straße","07153-22716",4,"Esslingen-Teck"]
[4008,"Sporthalle 2;73779 Deizisau,Altbacher Straße",null,null,"Deizisau 2","Sporthalle 2","D",73779,"Deizisau","Altbacher Straße","07153-22716",4,"Esslingen-Teck"]
[4009,"220 km;Sporthalle;73770 Denkendorf,Lenaustraße 3",220,null,"Denkendorf 1","Sporthalle","D",73770,"Denkendorf","Lenaustraße 3","0711-3464479",4,"Esslingen-Teck"]
[4010,"220 km;Großsporthalle Albert-Schweitzer-Schule;73770 Denkendorf,Lenaustraße 3",220,null,"Denkendorf 2","Großsporthalle Albert-Schweitzer-Schule","D",73770,"Denkendorf","Lenaustraße 3","0711-3464479",4,"Esslingen-Teck"]
[4011,"Sporthalle Neuwiesen;72581 Dettingen/Erms,Hülbener Straße",null,null,"Dettingen/E.","Sporthalle Neuwiesen","D",72581,"Dettingen/Erms","Hülbener Straße","07123-87735",4,"Esslingen-Teck"]
[4013,"Raichberghalle;73061 Ebersbach/Fils,Bünzwanger Straße 35",null,null,"Ebersbach 2","Raichberghalle","D",73061,"Ebersbach/Fils","Bünzwanger Straße 35","07163-3600",4,"Esslingen-Teck"]
[4014,"Sporthalle P.M.Hahn-Gymnasium;70771 Leinfelden-Echterdingen,Schimmelwiesenstraße 24",null,null,"Echterdingen 1","Sporthalle P.M.Hahn-Gymnasium","D",70771,"Leinfelden-Echterdingen","Schimmelwiesenstraße 24","0711-1600271",4,"Esslingen-Teck"]
[4015,"Neckar-Sporthalle beim Freibad;73728 Esslingen,Dammstraße 1",null,null,"Esslingen 1","Neckar-Sporthalle beim Freibad","D",73728,"Esslingen","Dammstraße 1","0711-3512-2761",4,"Esslingen-Teck"]
[4016,"222,3 km;Schelztor-Sporthalle;73728 Esslingen,Schelztorstraße 4",222.3,"2018-07-07","Esslingen 2","Schelztor-Sporthalle","D",73728,"Esslingen","Schelztorstraße 4","0711-3512-2505",4,"Esslingen-Teck"]
[4017,"Falkensteinhalle;72582 Grabenstetten,Böhringer Straße10/2",null,null,"Grabenstetten","Falkensteinhalle","D",72582,"Grabenstetten","Böhringer Straße10/2","07382-7146",4,"Esslingen-Teck"]
[4020,"196 km;Walter-Jacob-Halle;73230 Kirchheim/Teck,Jesingerstraße",196,null,"Kirchheim/T. 1","Walter-Jacob-Halle","D",73230,"Kirchheim/Teck","Jesingerstraße",null,4,"Esslingen-Teck"]
[4021,"Sporthalle beim Ludwig-Uhland-Gymnasium;73230 Kirchheim/Teck,Hahnweidstraße 34",null,null,"Kirchheim/T. 2","Sporthalle beim Ludwig-Uhland-Gymnasium","D",73230,"Kirchheim/Teck","Hahnweidstraße 34","07021-55019",4,"Esslingen-Teck"]
[4022,"Sporthalle Stadtmitte;73230 Kirchheim/Teck,Jahnstraße 17",null,null,"Kirchheim/T. 3","Sporthalle Stadtmitte","D",73230,"Kirchheim/Teck","Jahnstraße 17",null,4,"Esslingen-Teck"]
[4023,"Sporthalle bei der Burgschule;73257 Köngen,Burgweg",null,null,"Köngen","Sporthalle bei der Burgschule","D",73257,"Köngen","Burgweg",null,4,"Esslingen-Teck"]
[4024,"Imanuel-Kant-Sporthalle;70771 Leinfelden,Stuttgarter Straße",null,null,"Leinfelden 1","Imanuel-Kant-Sporthalle","D",70771,"Leinfelden","Stuttgarter Straße","0711-79836517",4,"Esslingen-Teck"]
[4025,"Sporthalle beim Sportzentrum;70771 Leinfelden,Randweg",null,null,"Leinfelden 2","Sporthalle beim Sportzentrum","D",70771,"Leinfelden","Randweg","0711-7986277",4,"Esslingen-Teck"]
[4026,"Beutenlay-Sporthalle;72525 Münsingen,Beutenlaystraße",null,null,"Münsingen","Beutenlay-Sporthalle","D",72525,"Münsingen","Beutenlaystraße","07381-182220",4,"Esslingen-Teck"]
[4027,"Richard-Hirschmann-Halle;72654 Neckartenzlingen,Auwiesenstraße",null,null,"Neckartenzlingen","Richard-Hirschmann-Halle","D",72654,"Neckartenzlingen","Auwiesenstraße","07127-180155",4,"Esslingen-Teck"]
[4028,"214,3 km;Sporthalle 1;73760 Ostfildern-Nellingen,In den Anlagen 3",214.3,"2018-07-07","Nellingen 1","Sporthalle 1","D",73760,"Ostfildern-Nellingen","In den Anlagen 3","0711-343437",4,"Esslingen-Teck"]
[4031,"TB-Sporthalle beim Schulzentrum Halde;72639 Neuffen,Hohenzollernstraße 28",null,null,"Neuffen","TB-Sporthalle beim Schulzentrum Halde","D",72639,"Neuffen","Hohenzollernstraße 28",null,4,"Esslingen-Teck"]
[4032,"Egelsee-Sporthalle 1;73765 Neuhausen/Filder,Rupert-Mayer-Straße",null,null,"Neuhausen/F. 1","Egelsee-Sporthalle 1","D",73765,"Neuhausen/Filder","Rupert-Mayer-Straße","07158-64937",4,"Esslingen-Teck"]
[4033,"Egelsee-Sporthalle 2;73765 Neuhausen/Filder,Rupert-Mayer-Straße",null,null,"Neuhausen/F. 2","Egelsee-Sporthalle 2","D",73765,"Neuhausen/Filder","Rupert-Mayer-Straße","07158-64937",4,"Esslingen-Teck"]
[4034,"214 km;Neckar-Sporthalle;72622 Nürtingen,Mühlstraße 25",214,"2016-06-16","Nürtingen 1","Neckar-Sporthalle","D",72622,"Nürtingen","Mühlstraße 25","07022-926026",4,"Esslingen-Teck"]
[4035,"214 km;Theodor-Eisenlohr-Sporthalle;72622 Nürtingen,Mühlstraße 35",214,"2016-06-16","Nürtingen 2","Theodor-Eisenlohr-Sporthalle","D",72622,"Nürtingen","Mühlstraße 35","07022-37388",4,"Esslingen-Teck"]
[4037,"Eduard-Mörike-Halle;73230 Kirchheim-Oetlingen,Zum Rübenholz 1",null,null,"Oetlingen","Eduard-Mörike-Halle","D",73230,"Kirchheim-Oetlingen","Zum Rübenholz 1","07021-3594",4,"Esslingen-Teck"]
[4038,"Teckhalle;73277 Owen/Teck,Rinnenweg",null,null,"Owen/T.","Teckhalle","D",73277,"Owen/Teck","Rinnenweg","07021-958691",4,"Esslingen-Teck"]
[4039,"Gymnasiumhalle;73207 Plochingen,Tannenstraße 47",null,null,"Plochingen 1","Gymnasiumhalle","D",73207,"Plochingen","Tannenstraße 47",null,4,"Esslingen-Teck"]
[4040,"214 km;Schafhausäckerhalle;73207 Plochingen,Carl-Orff-Weg 4",214,null,"Plochingen 2","Schafhausäckerhalle","D",73207,"Plochingen","Carl-Orff-Weg 4","07153-700521",4,"Esslingen-Teck"]
[4041,"218 km;Brühlhalle;73262 Reichenbach,Karlstraße",218,"2018-05-05","Reichenbach","Brühlhalle","D",73262,"Reichenbach","Karlstraße","07153-500565",4,"Esslingen-Teck"]
[4042,"217,6 km;Sporthalle am Hallenbad;73760 Ostfildern-Ruit,Justinus-Kerner-Weg 44",217.6,"2018-07-07","Ruit","Sporthalle am Hallenbad","D",73760,"Ostfildern-Ruit","Justinus-Kerner-Weg 44","0711-413917",4,"Esslingen-Teck"]
[4044,"Sporthalle;73760 Ostfildern-Scharnhauser Park,Gerhard-Koch-Straße 6",null,null,"Scharnhauser Park","Sporthalle","D",73760,"Ostfildern-Scharnhauser Park","Gerhard-Koch-Straße 6","0711-3481713",4,"Esslingen-Teck"]
[4045,"215,7 km;Körschtalhalle;73760 Ostfildern-Scharnhausen,Körschtalstraße",215.7,"2018-07-11","Scharnhausen","Körschtalhalle","D",73760,"Ostfildern-Scharnhausen","Körschtalstraße","07158-3226",4,"Esslingen-Teck"]
[4046,"Sporthalle;73732 Esslingen-Serach,Barbarossastraße 85",null,null,"Serach","Sporthalle","D",73732,"Esslingen-Serach","Barbarossastraße 85","0711-371024",4,"Esslingen-Teck"]
[4047,"Sporthalle;70794 Filderstadt-Sielmingen,Seestraße",null,null,"Sielmingen","Sporthalle","D",70794,"Filderstadt-Sielmingen","Seestraße","07158-2187",4,"Esslingen-Teck"]
[4048,"Sport- und Festhalle;70771 Leinf.-Echterdingen-Stetten,Jahnstraße",null,null,"Stetten a.d.F.","Sport- und Festhalle","D",70771,"Leinf.-Echterdingen-Stetten","Jahnstraße","0711-1600735",4,"Esslingen-Teck"]
[4049,{"$f":"IF(C258=\"\",\"\",C258&\" km;\")&F258&\";\"&H258&\" \"&I258&\",\"&J258","v":"225,8 km;Sporthalle;73733 Esslingen-Sulzgries,Kornhalde"},225.8,"2018-07-14","Sulzgries","Sporthalle","D",73733,"Esslingen-Sulzgries","Kornhalde","0711-371358",4,"Esslingen-Teck"]
[4050,"207,9 km;Bettwiesenhalle;72669 Unterensingen,Schulstraße 43",207.9,"2018-07-11","Unterensingen","Bettwiesenhalle","D",72669,"Unterensingen","Schulstraße 43",null,4,"Esslingen-Teck"]
[4051,"Sporthalle;73252 Lenningen-Unterlenningen,Pouilly-en-Auxois-Platz 1",null,null,"Unterlenningen","Sporthalle","D",73252,"Lenningen-Unterlenningen","Pouilly-en-Auxois-Platz 1","07026-5595",4,"Esslingen-Teck"]
[4052,"Sporthalle;70563 Stuttgart-Vaihingen,Robert-Koch-Straße 90",null,null,"Vaihingen (S) 1","Sporthalle","D",70563,"Stuttgart-Vaihingen","Robert-Koch-Straße 90","0711-7351189",4,"Esslingen-Teck"]
[4053,"Sporthalle;73733 Esslingen,Weilstraße 201",null,null,"Weil (Essl.)","Sporthalle","D",73733,"Esslingen","Weilstraße 201","0711-3512-2684",4,"Esslingen-Teck"]
[4054,"Sporthalle Wühle;73235 Weilheim/Teck,Hegelstraße",null,null,"Weilheim/T.","Sporthalle Wühle","D",73235,"Weilheim/Teck","Hegelstraße","07023-10639",4,"Esslingen-Teck"]
[4057,"215 km;Neckartal-Sporthalle;73249 Wernau,Stadionweg 16",215,"2016-06-16","Wernau","Neckartal-Sporthalle","D",73249,"Wernau","Stadionweg 16","07153-9345-870",4,"Esslingen-Teck"]
[4058,"216 km;Sporthalle beim Sportzentrum;72649 Wolfschlugen,Nürtinger Straße 77",216,null,"Wolfschlugen 1","Sporthalle beim Sportzentrum","D",72649,"Wolfschlugen","Nürtinger Straße 77","07022-500535",4,"Esslingen-Teck"]
[4059,"Turn- und Festhalle;72649 Wolfschlugen,Ulrichstraße 9",null,null,"Wolfschlugen 2","Turn- und Festhalle","D",72649,"Wolfschlugen","Ulrichstraße 9","07022-9531628",4,"Esslingen-Teck"]
[4060,"Städt. Sporthalle beim Schulzentrum Zell;73730 Esslingen-Zell,Alleenstraße 1",null,null,"Zell 1","Städt. Sporthalle beim Schulzentrum Zell","D",73730,"Esslingen-Zell","Alleenstraße 1","0711-3512-3310 (Hausm.)",4,"Esslingen-Teck"]
[4061,"Sporthalle beim Berufschulzentrum;73730 Esslingen-Zell,Steinbeisstraße 17",null,null,"Zell 2","Sporthalle beim Berufschulzentrum","D",73730,"Esslingen-Zell","Steinbeisstraße 17","0711-3607100",4,"Esslingen-Teck"]
[4063,"Rohräckerhalle;73734 Esslingen-Zollberg,Traifelbergstraße",null,null,"Zollberg","Rohräckerhalle","D",73734,"Esslingen-Zollberg","Traifelbergstraße",null,4,"Esslingen-Teck"]
[4064,"Sporthalle;73666 Baltmannsweiler,Baacher Straße 2",null,null,"Baltmannsweiler","Sporthalle","D",73666,"Baltmannsweiler","Baacher Straße 2","07153-49039",4,"Esslingen-Teck"]
[4065,"Sporthalle Fanny-Leicht-Gymnasium;70563 Stuttgart,Fanny-Leicht-StraÃŸe 13",null,null,"Vaihingen (S) 2","Sporthalle Fanny-Leicht-Gymnasium","D",70563,"Stuttgart","Fanny-Leicht-StraÃŸe 13",null,4,"Esslingen-Teck"]
[4066,"Sportpark Goldäcker;70771 Leinfelden-Echterdingen,Leinfelder Straße 101",null,null,"Echterdingen 2","Sportpark Goldäcker","D",70771,"Leinfelden-Echterdingen","Leinfelder Straße 101",null,4,"Esslingen-Teck"]
[4070,"229 km;Sporthalle Römerstrasse;73732 Esslingen,Römerstrasse 11",229,"2016-12-11","Römerstrasse","Sporthalle Römerstrasse","D",73732,"Esslingen","Römerstrasse 11",null,4,"Esslingen-Teck"]
[5001,"Galgenberg-Sporthalle;73431 Aalen-Ost,Auf dem Galgenberg",null,null,"Aalen 1","Galgenberg-Sporthalle","D",73431,"Aalen-Ost","Auf dem Galgenberg","07361-35586",5,"Stauferland"]
[5002,"Greuthalle;73430 Aalen,Parkstraße 2",null,null,"Aalen 2","Greuthalle","D",73430,"Aalen","Parkstraße 2","07361-500241",5,"Stauferland"]
[5003,"Weidenfeldhalle;73430 Aalen,Steinbeisstraße 2",null,null,"Aalen 3","Weidenfeldhalle","D",73430,"Aalen","Steinbeisstraße 2","07361-6381",5,"Stauferland"]
[5004,"Karl-Weiland-Halle;73430 Aalen,Friedrichstraße 72",null,null,"Aalen 4","Karl-Weiland-Halle","D",73430,"Aalen","Friedrichstraße 72","07361-961303",5,"Stauferland"]
[5007,"207 km;Uhlandhalle;73529 Schwäb.Gmünd-Bettringen,Wolf.-Hirth-Straße 50",207,"2016-11-23","Bettringen 2","Uhlandhalle","D",73529,"Schwäb.Gmünd-Bettringen","Wolf.-Hirth-Straße 50","07171-86719",5,"Stauferland"]
[5008,"Alb-Sporthalle;89558 Böhmenkirch,Beim Sportgelände",null,null,"Böhmenkirch","Alb-Sporthalle","D",89558,"Böhmenkirch","Beim Sportgelände","07332-5199",5,"Stauferland"]
[5009,"Buchfeldhalle;89542 Herbrechtingen-Bolheim,Rottsteige",null,null,"Bolheim","Buchfeldhalle","D",89542,"Herbrechtingen-Bolheim","Rottsteige","07324-965516",5,"Stauferland"]
[5011,"Lindenhalle;89547 Gerstetten-Dettingen,Querstraße",null,null,"Dettingen/A.","Lindenhalle","D",89547,"Gerstetten-Dettingen","Querstraße","07324-980079",5,"Stauferland"]
[5012,"195 km;Lautertalhalle;73072 Donzdorf,An der Süßener Straße 14",195,null,"Donzdorf 1","Lautertalhalle","D",73072,"Donzdorf","An der Süßener Straße 14","07162-23393",5,"Stauferland"]
[5014,"Öschhalle 2;73054 Eislingen/Fils,Staufeneckstraße 41",null,null,"Eislingen 1","Öschhalle 2","D",73054,"Eislingen/Fils","Staufeneckstraße 41","07161-811965",5,"Stauferland"]
[5015,"Öschhalle 1;73054 Eislingen/Fils,Talstraße 54",null,null,"Eislingen 2","Öschhalle 1","D",73054,"Eislingen/Fils","Talstraße 54","07161-811965",5,"Stauferland"]
[5016,"Rundsporthalle;73479 Ellwangen,Langres",null,null,"Ellwangen 1","Rundsporthalle","D",73479,"Ellwangen","Langres","07961-4422",5,"Stauferland"]
[5017,"171 km;Michelberghalle;73312 Geislingen/Steige,Staubstraße 50",171,"2016-06-16","Geislingen 1","Michelberghalle","D",73312,"Geislingen/Steige","Staubstraße 50","07331-66320",5,"Stauferland"]
[5018,"Wölkhalle;73312 Geislingen/Steige,Rheinlandstraße 80",null,null,"Geislingen 2","Wölkhalle","D",73312,"Geislingen/Steige","Rheinlandstraße 80","07331-3007-152",5,"Stauferland"]
[5019,"Georg-Fink-Halle;89547 Gerstetten,Friedrichstraße",null,null,"Gerstetten","Georg-Fink-Halle","D",89547,"Gerstetten","Friedrichstraße","07323-4055",5,"Stauferland"]
[5020,"Schwagehalle;89537 Giengen/Brenz,Gluckstraße",null,null,"Giengen/Br. 1","Schwagehalle","D",89537,"Giengen/Brenz","Gluckstraße","07322-952-280",5,"Stauferland"]
[5021,"Stadthalle;89537 Giengen/Brenz,Beethovenstraße",null,null,"Giengen/Br. 2","Stadthalle","D",89537,"Giengen/Brenz","Beethovenstraße","07322-952-269",5,"Stauferland"]
[5022,"176 km;Hohensteinhalle;73333 Gingen/Fils,Lindenstraße 65",176,"2016-10-26","Gingen/Fils","Hohensteinhalle","D",73333,"Gingen/Fils","Lindenstraße 65","07162-43021",5,"Stauferland"]
[5023,"207 km;Hohenstaufenhalle;73033 Göppingen,Nördlicher Ring 87",207,"2016-06-16","Göppingen 1","Hohenstaufenhalle","D",73033,"Göppingen","Nördlicher Ring 87","07161-24995",5,"Stauferland"]
[5024,"207 km;Oede-Sporthalle1;73035 Göppingen,Chr.-Grüninger-Straße 2",207,"2016-06-16","Göppingen 2","Oede-Sporthalle1","D",73035,"Göppingen","Chr.-Grüninger-Straße 2","07161-613-274",5,"Stauferland"]
[5025,"207 km;Parkhaushalle;73033 Göppingen,Bahnhofstraße 25",207,"2016-06-16","Göppingen 3","Parkhaushalle","D",73033,"Göppingen","Bahnhofstraße 25","07161-686685",5,"Stauferland"]
[5026,"Sporthalle beim Berufschulzentrum;73529 Schwäb.Gmünd-Hardt,Heidenheimer Straße 1",null,null,"Hardt (GD)","Sporthalle beim Berufschulzentrum","D",73529,"Schwäb.Gmünd-Hardt","Heidenheimer Straße 1","07171-8040",5,"Stauferland"]
[5027,"Karl-Rau-Halle;89518 Heidenheim,Lortzingstraße",null,null,"Heidenheim 1","Karl-Rau-Halle","D",89518,"Heidenheim","Lortzingstraße","07321-327534 / 327560",5,"Stauferland"]
[5028,"Landkreishalle;89518 Heidenheim,Heckentalstraße",null,null,"Heidenheim 2","Landkreishalle","D",89518,"Heidenheim","Heckentalstraße",null,5,"Stauferland"]
[5029,"Sporthalle beim Werkgymnasium;89522 Heidenheim,Römerstraße 110",null,null,"Heidenheim 3","Sporthalle beim Werkgymnasium","D",89522,"Heidenheim","Römerstraße 110","07321-23011",5,"Stauferland"]
[5030,"205 km;Voralbhalle;73092 Heiningen,Krautgarten 1",205,null,"Heiningen","Voralbhalle","D",73092,"Heiningen","Krautgarten 1","07161-40917",5,"Stauferland"]
[5031,"179 km;Bibrishalle;89542 Herbrechtingen,Brückenstraße",179,null,"Herbrechtingen","Bibrishalle","D",89542,"Herbrechtingen","Brückenstraße","07324-955281",5,"Stauferland"]
[5032,"Sporthalle;73540 Heubach,Adlerstraße 55",null,null,"Heubach","Sporthalle","D",73540,"Heubach","Adlerstraße 55","07173-180831 / 180830",5,"Stauferland"]
[5033,"Limeshalle;73460 Hüttlingen,Schulstraße",null,null,"Hüttlingen","Limeshalle","D",73460,"Hüttlingen","Schulstraße","07361-74857",5,"Stauferland"]
[5034,"183 km;Herwartsteinhalle;89551 Königsbronn,Springenstraße",183,null,"Königsbronn","Herwartsteinhalle","D",89551,"Königsbronn","Springenstraße","07328-8225",5,"Stauferland"]
[5035,"176 km;Ankenhalle;73329 Kuchen,Jahnstraße",176,"2016-06-16","Kuchen","Ankenhalle","D",73329,"Kuchen","Jahnstraße","07331-8059",5,"Stauferland"]
[5036,"Mackilohalle;73563 Mögglingen,Heubacher Straße",null,null,"Mögglingen","Mackilohalle","D",73563,"Mögglingen","Heubacher Straße","07174-5800",5,"Stauferland"]
[5037,"Schwörzhalle;73447 Oberkochen,Beim Stadion",null,null,"Oberkochen","Schwörzhalle","D",73447,"Oberkochen","Beim Stadion","07364-8686",5,"Stauferland"]
[5038,"Sporthalle bei der Realschule;73098 Rechberghausen,Ebene 16",null,null,"Rechberghausen","Sporthalle bei der Realschule","D",73098,"Rechberghausen","Ebene 16","07161-51311",5,"Stauferland"]
[5040,"178 km;Ballspielhalle;89520 Heidenheim-Schnaitheim,In den Seewiesen",178,null,"Schnaitheim","Ballspielhalle","D",89520,"Heidenheim-Schnaitheim","In den Seewiesen","07321-63653",5,"Stauferland"]
[5041,"206,3 km;Große Sporthalle;73525 Schwäbisch Gmünd,Katharinenstraße 33",206.3,"2018-07-11","Schw. Gmünd","Große Sporthalle","D",73525,"Schwäbisch Gmünd","Katharinenstraße 33","07171-2007",5,"Stauferland"]
[5042,"176 km;Hermann-Eberhardt-Halle;89567 Sontheim,Neustraße",176,"2016-10-26","Sontheim","Hermann-Eberhardt-Halle","D",89567,"Sontheim","Neustraße","07325-1768",5,"Stauferland"]
[5043,"181 km;Wentalhalle Steinheim a.A.;89555 Steinheim/Albuch,Jahnstraße 7",181,null,"Steinheim/A.","Wentalhalle Steinheim a.A.","D",89555,"Steinheim/Albuch","Jahnstraße 7","07329-5319",5,"Stauferland"]
[5044,"Römerhalle;73529 Schwäb.Gmünd-Straßdorf,Wallenstraße 29",null,null,"Straßdorf","Römerhalle","D",73529,"Schwäb.Gmünd-Straßdorf","Wallenstraße 29","07171-41949",5,"Stauferland"]
[5045,"Bizethalle;73079 Süßen,Schulstraße 11",null,null,"Süßen","Bizethalle","D",73079,"Süßen","Schulstraße 11","07162-961658",5,"Stauferland"]
[5046,"205 km;Haldenberghalle;73066 Uhingen,Panoramastraße 10",205,"2016-11-23","Uhingen","Haldenberghalle","D",73066,"Uhingen","Panoramastraße 10","07161-93871-51",5,"Stauferland"]
[5047,"Sporthalle;73432 Aalen-Unterkochen,Roßbrunnenweg",null,null,"Unterkochen","Sporthalle","D",73432,"Aalen-Unterkochen","Roßbrunnenweg","07361-8111",5,"Stauferland"]
[5048,"Schwarzhornhalle;73550 Waldstetten,Brunnengasse 34",null,null,"Waldstetten","Schwarzhornhalle","D",73550,"Waldstetten","Brunnengasse 34","07171-44924",5,"Stauferland"]
[5049,"211 km;Forstberghalle;73117 Wangen (GP),Schorndorfer Straße",211,null,"Wangen","Forstberghalle","D",73117,"Wangen (GP)","Schorndorfer Straße","07161-22907",5,"Stauferland"]
[5050,"201 km;Talsporthalle;73433 Aalen-Wasseralfingen,Hofwiesenstraße 51",201,null,"Wasseralfingen 1","Talsporthalle","D",73433,"Aalen-Wasseralfingen","Hofwiesenstraße 51","07361-377952",5,"Stauferland"]
[5051,"Kaiserberghalle;73550 Waldstetten-Wißgoldingen,Schillerstraße 20",null,null,"Wißgoldingen","Kaiserberghalle","D",73550,"Waldstetten-Wißgoldingen","Schillerstraße 20","07162-27299",5,"Stauferland"]
[5052,"Buchenberghalle;73479 Ellwangen,Freigasse 20",null,null,"Ellwangen 2","Buchenberghalle","D",73479,"Ellwangen","Freigasse 20","0170-6705182 (Hm.)",5,"Stauferland"]
[5053,"192,2 km;Kreuzberghalle;73111 Lauterstein-Nenningen,Donzdorfer Straße 3",192.2,"2018-07-11","Nenningen","Kreuzberghalle","D",73111,"Lauterstein-Nenningen","Donzdorfer Straße 3","07332-924582",5,"Stauferland"]
[5054,{"$f":"IF(C322=\"\",\"\",C322&\" km;\")&F322&\";\"&H322&\" \"&I322&\",\"&J322","v":"Sporthalle;73278 Schlierbach,Dobelweg 23"},null,null,"Schlierbach","Sporthalle","D",73278,"Schlierbach","Dobelweg 23","07021-8077-517",5,"Stauferland"]
[5055,"201 km;Sporthalle Am Schäle;73433 Aalen-Wasseralfingen,Hofwiesenstraße 55",201,null,"Wasseralfingen 2","Sporthalle Am Schäle","D",73433,"Aalen-Wasseralfingen","Hofwiesenstraße 55","07361-527639",5,"Stauferland"]
[5056,"209 km;EWS-Arena 2;73033 Göppingen,",209,null,"Göppingen 4","EWS-Arena 2","D",73033,"Göppingen",null,null,5,"Stauferland"]
[5059,"202 km;Fein Halle;73529 Schwäbisch Gmünd-Bargau,Himmelrechstrasse 7",202,"2019-06-26","Bargau","Fein Halle","D ",73529,"Schwäbisch Gmünd-Bargau","Himmelrechstrasse 7",null,null,"Stauferland"]
[6001,"Sporthalle Buchhalde;71134 Aidlingen,Buchhaldenstraße 4",null,null,"Aidlingen","Sporthalle Buchhalde","D",71134,"Aidlingen","Buchhaldenstraße 4","07034-4892",6,"Achalm-Nagold"]
[6002,"Peter-Creuzberger-Halle;71155 Altdorf,Furtweg 24",null,null,"Altdorf","Peter-Creuzberger-Halle","D",71155,"Altdorf","Furtweg 24","07031-605912",6,"Achalm-Nagold"]
[6003,"Gymnasiumhalle Jugenddorf;72213 Altensteig,Grenzweg",null,null,"Altensteig 1","Gymnasiumhalle Jugenddorf","D",72213,"Altensteig","Grenzweg","07453-8066",6,"Achalm-Nagold"]
[6005,"Eichwaldhalle;72213 Altensteig,Grenzweg",null,null,"Altensteig 3","Eichwaldhalle","D",72213,"Altensteig","Grenzweg","07453-3123",6,"Achalm-Nagold"]
[6006,"Sporthalle;75382 Althengstett,Simmozheimer Straße",null,null,"Althengstett","Sporthalle","D",75382,"Althengstett","Simmozheimer Straße","07051-13411",6,"Achalm-Nagold"]
[6007,"Sporthalle Im Gries;72770 Reutlingen-Betzingen,Hofmannstraße 8",null,null,"Betzingen","Sporthalle Im Gries","D",72770,"Reutlingen-Betzingen","Hofmannstraße 8","07121-53709",6,"Achalm-Nagold"]
[6008,"Hermann-Raiser-Sporthalle;71034 Böblingen,Kremser Straße 1",null,null,"Böblingen 1","Hermann-Raiser-Sporthalle","D",71034,"Böblingen","Kremser Straße 1","07031-669440",6,"Achalm-Nagold"]
[6010,"Murkenbachhalle 1;71032 Böblingen,Murkenbachweg 8",null,null,"Böblingen 3","Murkenbachhalle 1","D",71032,"Böblingen","Murkenbachweg 8","07031-669442",6,"Achalm-Nagold"]
[6011,"Murkenbachhalle 2;71032 Böblingen,Murkenbachweg 10",null,null,"Böblingen 4","Murkenbachhalle 2","D",71032,"Böblingen","Murkenbachweg 10","07031-669443",6,"Achalm-Nagold"]
[6012,"Sporthalle Diezenhalde;71034 Böblingen,Freiburger Allee 50",null,null,"Böblingen 5","Sporthalle Diezenhalde","D",71034,"Böblingen","Freiburger Allee 50","07031-669-678",6,"Achalm-Nagold"]
[6013,"Gäuhalle;71149 Bondorf,Alte Herrenberger Straße",null,null,"Bondorf","Gäuhalle","D",71149,"Bondorf","Alte Herrenberger Straße","07457-1507",6,"Achalm-Nagold"]
[6014,"Badstraßenhalle;75365 Calw,Badstraße",null,null,"Calw","Badstraßenhalle","D",75365,"Calw","Badstraße","07051-4668",6,"Achalm-Nagold"]
[6015,"Sporthalle des Landkreises;72072 Tübingen-Derendingen,Waldhörnlestraße",null,null,"Derendingen 1","Sporthalle des Landkreises","D",72072,"Tübingen-Derendingen","Waldhörnlestraße","07071-978-285",6,"Achalm-Nagold"]
[6016,"Sporthalle 2 des Landkreises;72072 Tübingen-Derendingen,Waldhörnlestraße",null,null,"Derendingen 2","Sporthalle 2 des Landkreises","D",72072,"Tübingen-Derendingen","Waldhörnlestraße","07071-978-285",6,"Achalm-Nagold"]
[6017,"Sporthalle;72280 Dornstetten,Schulzentrum",null,null,"Dornstetten","Sporthalle","D",72280,"Dornstetten","Schulzentrum","07443-3607",6,"Achalm-Nagold"]
[6018,"Sporthalle;71139 Ehningen,In den Schalkwiesen",null,null,"Ehningen","Sporthalle","D",71139,"Ehningen","In den Schalkwiesen","07034-8415",6,"Achalm-Nagold"]
[6019,"Günter-Zeller-Sporthalle;72800 Eningen u. A.,Sulzwiesenstraße",null,null,"Eningen/u.A. 1","Günter-Zeller-Sporthalle","D",72800,"Eningen u. A.","Sulzwiesenstraße","07121-8804-20",6,"Achalm-Nagold"]
[6020,"Schwarzwaldhalle;71116 Gärtringen,Steingrubenweg",null,null,"Gärtringen 1","Schwarzwaldhalle","D",71116,"Gärtringen","Steingrubenweg","07034-26934",6,"Achalm-Nagold"]
[6021,"Theodor-Heuss-Halle;71116 Gärtringen,Schickardtstraße",null,null,"Gärtringen 2","Theodor-Heuss-Halle","D",71116,"Gärtringen","Schickardtstraße","07034-21770",6,"Achalm-Nagold"]
[6022,"Freibühlhalle;72829 Engstingen-Großengstingen,Churstraße 38",null,null,"Großengstingen","Freibühlhalle","D",72829,"Engstingen-Großengstingen","Churstraße 38","07129-3246",6,"Achalm-Nagold"]
[6024,"Sporthalle;71083 Herrenberg-Haslach,Im Häring",null,null,"Haslach","Sporthalle","D",71083,"Herrenberg-Haslach","Im Häring","07032-22285",6,"Achalm-Nagold"]
[6025,"Sporthalle;71296 Heimsheim,An der Uhlandschule",null,null,"Heimsheim","Sporthalle","D",71296,"Heimsheim","An der Uhlandschule","07033-3837",6,"Achalm-Nagold"]
[6026,"Längenholzhalle;71083 Herrenberg,Marienstraße",null,null,"Herrenberg 1","Längenholzhalle","D",71083,"Herrenberg","Marienstraße","07032-949938",6,"Achalm-Nagold"]
[6027,"Landkreishalle;71083 Herrenberg,Marienstraße",null,null,"Herrenberg 2","Landkreishalle","D",71083,"Herrenberg","Marienstraße","07032-14386",6,"Achalm-Nagold"]
[6028,"Markweghalle;71083 Herrenberg,Schießtäle",null,null,"Herrenberg 3","Markweghalle","D",71083,"Herrenberg","Schießtäle","07032-924386",6,"Achalm-Nagold"]
[6031,"Berkensporthalle;71088 Holzgerlingen,Schillerstraße",null,null,"Holzgerlingen 1","Berkensporthalle","D",71088,"Holzgerlingen","Schillerstraße","07031-680818",6,"Achalm-Nagold"]
[6032,"Schönbuchsporthalle;71088 Holzgerlingen,Weihdorfer Straße",null,null,"Holzgerlingen 2","Schönbuchsporthalle","D",71088,"Holzgerlingen","Weihdorfer Straße","07031-41033250",6,"Achalm-Nagold"]
[6033,"Hohenberghalle;72160 Horb am Neckar,Süd-Ring 3",null,null,"Horb/Neckar 1","Hohenberghalle","D",72160,"Horb am Neckar","Süd-Ring 3","07451-3820",6,"Achalm-Nagold"]
[6034,"Große Stadionhalle;71260 Horb am Neckar,Stadionstraße 27",null,null,"Horb/Neckar 2","Große Stadionhalle","D",71260,"Horb am Neckar","Stadionstraße 27","07451-620672",6,"Achalm-Nagold"]
[6035,"Sporthalle;71083 Herrenberg-Kuppingen,Keltenstraße",null,null,"Kuppingen","Sporthalle","D",71083,"Herrenberg-Kuppingen","Keltenstraße","07032-31266",6,"Achalm-Nagold"]
[6036,"Alte Sporthalle beim Kreisberufschulzentrum;71229 Leonberg,Fockentalweg",null,null,"Leonberg 1","Alte Sporthalle beim Kreisberufschulzentrum","D",71229,"Leonberg","Fockentalweg","07152-932-165 / 932-167",6,"Achalm-Nagold"]
[6037,"Sporthalle beim Sportzentrum;71229 Leonberg,Steinstraße 18",null,null,"Leonberg 2","Sporthalle beim Sportzentrum","D",71229,"Leonberg","Steinstraße 18","07152-204-412 / 204-413",6,"Achalm-Nagold"]
[6038,"Sporthalle;71106 Magstadt,Alte Stuttgarter Straße",null,null,"Magstadt","Sporthalle","D",71106,"Magstadt","Alte Stuttgarter Straße","07159-42509",6,"Achalm-Nagold"]
[6039,"Ösch-Sporthalle 1;72555 Metzingen,Öschweg",null,null,"Metzingen 1","Ösch-Sporthalle 1","D",72555,"Metzingen","Öschweg","07123-925335",6,"Achalm-Nagold"]
[6041,"Steinlachhalle;72116 Mössingen,Goethestraße",null,null,"Mössingen 1","Steinlachhalle","D",72116,"Mössingen","Goethestraße","07473-271899",6,"Achalm-Nagold"]
[6042,"Jahnhalle 2;72116 Mössingen,Goethestraße",null,null,"Mössingen 2","Jahnhalle 2","D",72116,"Mössingen","Goethestraße","07473-271865",6,"Achalm-Nagold"]
[6043,"Bächlenhalle;72202 Nagold,Max-Eyth-Straße 25",null,null,"Nagold 1","Bächlenhalle","D",72202,"Nagold","Max-Eyth-Straße 25","07452-66083",6,"Achalm-Nagold"]
[6044,"Sporthalle Otto-Hahn-Gymnasium;72202 Nagold,Unterm Wehr",null,null,"Nagold 2","Sporthalle Otto-Hahn-Gymnasium","D",72202,"Nagold","Unterm Wehr","07452-846544",6,"Achalm-Nagold"]
[6045,"Sporthalle;71126 Gäufelden-Nebringen,Schollerstraße",null,null,"Nebringen","Sporthalle","D",71126,"Gäufelden-Nebringen","Schollerstraße","07032-2014-21",6,"Achalm-Nagold"]
[6046,"Sporthalle;75387 Neubulach,Bühlstraße",null,null,"Neubulach","Sporthalle","D",75387,"Neubulach","Bühlstraße","07053-6396",6,"Achalm-Nagold"]
[6047,"Hofbühlhalle;72555 Metzingen-Neuhausen,Wolfsgrubstraße",null,null,"Neuhausen/Erms","Hofbühlhalle","D",72555,"Metzingen-Neuhausen","Wolfsgrubstraße","07123-21177",6,"Achalm-Nagold"]
[6048,"Sporthalle;72285 Pfalzgrafenweiler,Burgstraße",null,null,"Pfalzgrafenweiler","Sporthalle","D",72285,"Pfalzgrafenweiler","Burgstraße","07445-2698 / -1656",6,"Achalm-Nagold"]
[6049,"Kurt-App-Halle;72793 Pfullingen,Kurze Straße",null,null,"Pfullingen","Kurt-App-Halle","D",72793,"Pfullingen","Kurze Straße","07121-703228",6,"Achalm-Nagold"]
[6050,"Rankbachhalle;71272 Renningen,Rankbachstraße 49",null,null,"Renningen 1","Rankbachhalle","D",71272,"Renningen","Rankbachstraße 49","07159-161170",6,"Achalm-Nagold"]
[6051,"Stadionhalle;71272 Renningen,Gottfried-Bauer-Straße",null,null,"Renningen 2","Stadionhalle","D",71272,"Renningen","Gottfried-Bauer-Straße","07159-55569",6,"Achalm-Nagold"]
[6052,"Isolde-Kurz-Gymnasium;72764 Reutlingen,Charlottenstraße",null,null,"Reutlingen 1","Isolde-Kurz-Gymnasium","D",72764,"Reutlingen","Charlottenstraße","07121-42638",6,"Achalm-Nagold"]
[6053,"Oskar-Kalbfell-Sporthalle;72764 Reutlingen,Kanzleistraße 30",null,null,"Reutlingen 2","Oskar-Kalbfell-Sporthalle","D",72764,"Reutlingen","Kanzleistraße 30","07121-320365",6,"Achalm-Nagold"]
[6054,"Sporthalle Rennwiesen;72762 Reutlingen,Moltkestraße 41",null,null,"Reutlingen 3","Sporthalle Rennwiesen","D",72762,"Reutlingen","Moltkestraße 41","07121-240247",6,"Achalm-Nagold"]
[6056,"Sporthalle Bildungszentrum Nord;72768 Reutlingen-Rommelsbach,Lammstraße 51",null,null,"Rommelsbach","Sporthalle Bildungszentrum Nord","D",72768,"Reutlingen-Rommelsbach","Lammstraße 51","07121-610221",6,"Achalm-Nagold"]
[6057,"Hohenberg-Sporthalle;72108 Rottenburg,Jahnstraße",null,null,"Rottenburg 1","Hohenberg-Sporthalle","D",72108,"Rottenburg","Jahnstraße","07472-165-257",6,"Achalm-Nagold"]
[6058,"Sporthalle Kreuzerfeld;72108 Rottenburg,Gelber Kreidebusen",null,null,"Rottenburg 2","Sporthalle Kreuzerfeld","D",72108,"Rottenburg","Gelber Kreidebusen","07472-165-361",6,"Achalm-Nagold"]
[6059,"Sporthalle Bühl;71277 Rutesheim,Robert-Bosch-Straße",null,null,"Rutesheim","Sporthalle Bühl","D",71277,"Rutesheim","Robert-Bosch-Straße","07152-500268",6,"Achalm-Nagold"]
[6060,"Sporthalle;71101 Schönaich,Im Hasenbühl",null,null,"Schönaich","Sporthalle","D",71101,"Schönaich","Im Hasenbühl","07031-55969",6,"Achalm-Nagold"]
[6061,"Eschenriedhalle;71067 Sindelfingen,Eschenriedstraße 4",null,null,"Sindelfingen 1","Eschenriedhalle","D",71067,"Sindelfingen","Eschenriedstraße 4","07031-94585",6,"Achalm-Nagold"]
[6062,"Sommerhofenhalle;71067 Sindelfingen,Hohenzollernstraße 53",null,null,"Sindelfingen 2","Sommerhofenhalle","D",71067,"Sindelfingen","Hohenzollernstraße 53","07031-7088339",6,"Achalm-Nagold"]
[6063,"Sporthalle Stadtmitte;71063 Sindelfingen,Böblinger Straße 24",null,null,"Sindelfingen 3","Sporthalle Stadtmitte","D",71063,"Sindelfingen","Böblinger Straße 24","07031-94632",6,"Achalm-Nagold"]
[6064,"Schulturnhalle beim Goldberggymnasium;71065 Sindelfingen,Frankenstraße 15",null,null,"Sindelfingen 4","Schulturnhalle beim Goldberggymnasium","D",71065,"Sindelfingen","Frankenstraße 15","07031-957418",6,"Achalm-Nagold"]
[6065,"Gemeindehalle;75365 Calw-Stammheim,Jahnstraße",null,null,"Stammheim (Calw)","Gemeindehalle","D",75365,"Calw-Stammheim","Jahnstraße","07051-2990",6,"Achalm-Nagold"]
[6067,"Sporthalle;72760 Reutlingen-Storlach,Mittnachtstraße 205",null,null,"Storlach 2","Sporthalle","D",72760,"Reutlingen-Storlach","Mittnachtstraße 205","07121-334418",6,"Achalm-Nagold"]
[6069,"Ernst-Braun-Halle;72805 Lichtenstein-Unterhausen,Panoramastraße",null,null,"Unterhausen","Ernst-Braun-Halle","D",72805,"Lichtenstein-Unterhausen","Panoramastraße","07129-69673",6,"Achalm-Nagold"]
[6070,{"$f":"IF(C386=\"\",\"\",C386&\" km;\")&F386&\";\"&H386&\" \"&I386&\",\"&J386","v":"Sporthalle;71063 Sindelfingen-Unterrieden,Rudolf-Harbig-Straße 40"},null,null,"Unterrieden","Sporthalle","D",71063,"Sindelfingen-Unterrieden","Rudolf-Harbig-Straße 40","01520-2929652",6,"Achalm-Nagold"]
[6071,"Sporthalle;72076 Tübingen-Waldhäuser Ost,Berliner Ring",null,null,"Waldhäuser Ost","Sporthalle","D",72076,"Tübingen-Waldhäuser Ost","Berliner Ring","07071-968124",6,"Achalm-Nagold"]
[6072,"Gemeindehalle;71093 Weil im Schönbuch,In der Röte 90",null,null,"Weil im Schönbuch 1","Gemeindehalle","D",71093,"Weil im Schönbuch","In der Röte 90","07157-62775",6,"Achalm-Nagold"]
[6073,"Sporthalle beim Berufschulzentrum;75365 Calw-Wimberg,Oberriedterstraße",null,null,"Wimberg","Sporthalle beim Berufschulzentrum","D",75365,"Calw-Wimberg","Oberriedterstraße","07051-5201",6,"Achalm-Nagold"]
[6076,"Otto-Locher-Sporthalle;72108 Rottenburg,Jahnstraße 31",null,null,"Rottenburg 3","Otto-Locher-Sporthalle","D",72108,"Rottenburg","Jahnstraße 31","07472-282527",6,"Achalm-Nagold"]
[6077,"Murgtalhalle;72270 Baiersbronn,Kohbachweg",null,null,"Baiersbronn","Murgtalhalle","D",72270,"Baiersbronn","Kohbachweg","07442-60257",6,"Achalm-Nagold"]
[6078,"Neue Sporthalle beim Kreisberufschulzentrum;71229 Leonberg,Fockentalweg",null,null,"Leonberg 3","Neue Sporthalle beim Kreisberufschulzentrum","D",71229,"Leonberg","Fockentalweg","07152-932-165 / 932-167",6,"Achalm-Nagold"]
[6079,"Sporthalle der Ostertag-Realschule;71229 Leonberg,Tiroler Straße 30",null,null,"Leonberg 4","Sporthalle der Ostertag-Realschule","D",71229,"Leonberg","Tiroler Straße 30",null,6,"Achalm-Nagold"]
[6080,"Grabenrainsporthalle;71088 Holzgerlingen,Ahornstraße",null,null,"Holzgerlingen 3","Grabenrainsporthalle","D",71088,"Holzgerlingen","Ahornstraße",null,6,"Achalm-Nagold"]
[6081,"Weiler Sportzentrum;71093 Weil im Schönbuch,In der Röte 94/2",null,null,"Weil im Schönbuch 2","Weiler Sportzentrum","D",71093,"Weil im Schönbuch","In der Röte 94/2",null,6,"Achalm-Nagold"]
[6082,"Sporthalle Sulzberg;72275 Alpirsbach,Oberer Sulzberg 52",null,null,"Alpirsbach","Sporthalle Sulzberg","D",72275,"Alpirsbach","Oberer Sulzberg 52","07444-9518255",6,"Achalm-Nagold"]
[6083,"TÜ-Arena;72072 Tübingen,An der Europastraße",null,null,"Tübingen 2","TÜ-Arena","D",72072,"Tübingen","An der Europastraße","07071-410168",6,"Achalm-Nagold"]
[6084,"Ösch-Sporthalle 2;72555 Metzingen,Noyonallee 20",null,null,"Metzingen 3","Ösch-Sporthalle 2","D",72555,"Metzingen","Noyonallee 20","07123-925335",6,"Achalm-Nagold"]
[6085,"Stadionhalle;72250 Freudenstadt,Ludwig-Jahn-Straße 56",null,null,"Freudenstadt 1","Stadionhalle","D",72250,"Freudenstadt","Ludwig-Jahn-Straße 56","07441-919514820",6,"Achalm-Nagold"]
[6086,"David Fahrner Halle;72250 Freudenstadt,Landhausstraße 4",null,null,"Freudenstadt 2","David Fahrner Halle","D",72250,"Freudenstadt","Landhausstraße 4",null,6,"Achalm-Nagold"]
[6087,"Sporthalle Arbachtal;72800 Eningen u.A.,Pfullinger Straße 5",null,null,"Eningen/u.A. 2","Sporthalle Arbachtal","D",72800,"Eningen u.A.","Pfullinger Straße 5",null,6,"Achalm-Nagold"]
[6088,"Reuchlin-Sporthalle;75378 Bad Liebenzell,Pforzheimer Straße 8",null,null,"Bad Liebenzell","Reuchlin-Sporthalle","D",75378,"Bad Liebenzell","Pforzheimer Straße 8","07052-933462",6,"Achalm-Nagold"]
[7001,"Sporthalle;78554 Aldingen (TUT),Heubergstraße 29",null,null,"Aldingen/TUT","Sporthalle","D",78554,"Aldingen (TUT)","Heubergstraße 29","07424-901120",7,"Neckar-Zollern"]
[7003,"Kreissporthalle;72336 Balingen,Steinachstraße 19",null,null,"Balingen 1","Kreissporthalle","D",72336,"Balingen","Steinachstraße 19","07433-92-1791 / -1792",7,"Neckar-Zollern"]
[7004,"162 km;Längenfeldhalle;72336 Balingen,Gymnasiumstraße 32",162,"2018-07-11","Balingen 2","Längenfeldhalle","D",72336,"Balingen","Gymnasiumstraße 32","07433-900036",7,"Neckar-Zollern"]
[7005,"Sporthalle bei der Realschule;72336 Balingen,Teckstraße 20",null,null,"Balingen 3","Sporthalle bei der Realschule","D",72336,"Balingen","Teckstraße 20","07433-900026",7,"Neckar-Zollern"]
[7006,"Sporthalle;72475 Bitz,Zollernstraße",null,null,"Bitz","Sporthalle","D",72475,"Bitz","Zollernstraße","07431-989615",7,"Neckar-Zollern"]
[7007,"Sporthalle;72393 Burladingen,Albstraße 13",null,null,"Burladingen","Sporthalle","D",72393,"Burladingen","Albstraße 13","07475-89252",7,"Neckar-Zollern"]
[7008,"Sporthalle;72359 Dotternhausen,Schulstraße 16",null,null,"Dotternhausen","Sporthalle","D",72359,"Dotternhausen","Schulstraße 16","07427-940528",7,"Neckar-Zollern"]
[7009,"136 km;Mazmannhalle;72458 Albstadt-Ebingen,Gymnasiumstraße 9",136,"2018-07-11","Ebingen 1","Mazmannhalle","D",72458,"Albstadt-Ebingen","Gymnasiumstraße 9","07431-52171",7,"Neckar-Zollern"]
[7010,"Sporthalle beim Berufschulzentrum;72458 Albstadt-Ebingen,Kantstraße",null,null,"Ebingen 2","Sporthalle beim Berufschulzentrum","D",72458,"Albstadt-Ebingen","Kantstraße","07431-121137",7,"Neckar-Zollern"]
[7011,"Sepp-Hipp-Halle;78567 Fridingen/Donau,Spitalweg",null,null,"Fridingen","Sepp-Hipp-Halle","D",78567,"Fridingen/Donau","Spitalweg","07463-83717",7,"Neckar-Zollern"]
[7012,"Sporthalle beim Sportgelände;78665 Frittlingen,",null,null,"Frittlingen 1","Sporthalle beim Sportgelände","D",78665,"Frittlingen",null,"07426-3592",7,"Neckar-Zollern"]
[7013,"Sporthalle;72336 Balingen-Frommern,Beethovenstraße",null,null,"Frommern","Sporthalle","D",72336,"Balingen-Frommern","Beethovenstraße",null,7,"Neckar-Zollern"]
[7014,"Schloßparkhalle;72351 Geislingen bei Balingen,Schloßplatz 1",null,null,"Geislingen (Bal)","Schloßparkhalle","D",72351,"Geislingen bei Balingen","Schloßplatz 1","07433-21585",7,"Neckar-Zollern"]
[7015,"Kreissporthalle;72379 Hechingen,Am Schloßberg 15",null,null,"Hechingen 1","Kreissporthalle","D",72379,"Hechingen","Am Schloßberg 15","07471-924-458 / -459",7,"Neckar-Zollern"]
[7017,"Heuberghalle;72469 Meßstetten,Wildensteinstraße 23",null,null,"Meßstetten","Heuberghalle","D",72469,"Meßstetten","Wildensteinstraße 23","07431-62960",7,"Neckar-Zollern"]
[7018,"Sporthalle;78570 Mühlheim/Donau,Schillerstraße 18",null,null,"Mühlheim/Donau","Sporthalle","D",78570,"Mühlheim/Donau","Schillerstraße 18",null,7,"Neckar-Zollern"]
[7019,"Sporthalle;78532 Tuttlingen-Nendingen,",null,null,"Nendingen 1","Sporthalle","D",78532,"Tuttlingen-Nendingen",null,"07461-5899",7,"Neckar-Zollern"]
[7020,"Homburghalle;78579 Neuhausen o.Eck,Homburgstraße",null,null,"Neuhausen o.E.","Homburghalle","D",78579,"Neuhausen o.Eck","Homburgstraße","07467-709",7,"Neckar-Zollern"]
[7021,"Neckarhalle;78727 Oberndorf/Neckar,Austraße",null,null,"Oberndorf","Neckarhalle","D",78727,"Oberndorf/Neckar","Austraße","07423-77336",7,"Neckar-Zollern"]
[7022,"Raichberghalle;72461 Albstadt-Onstmettingen,J.-Raster-Straße 2",null,null,"Onstmettingen","Raichberghalle","D",72461,"Albstadt-Onstmettingen","J.-Raster-Straße 2","07432-21111",7,"Neckar-Zollern"]
[7023,"Doppelsporthalle 1;78628 Rottweil/Neckar,Heerstraße",null,null,"Rottweil 1","Doppelsporthalle 1","D",78628,"Rottweil/Neckar","Heerstraße","0741-494296",7,"Neckar-Zollern"]
[7024,"Kreissporthalle;78628 Rottweil/Neckar,Heerstraße",null,null,"Rottweil 2","Kreissporthalle","D",78628,"Rottweil/Neckar","Heerstraße",null,7,"Neckar-Zollern"]
[7025,"Doppelsporthalle 2;78626 Rottweil,Heerstraße",null,null,"Rottweil 3","Doppelsporthalle 2","D",78626,"Rottweil","Heerstraße","0741-494296",7,"Neckar-Zollern"]
[7026,"Carl-Diehl-Halle;78713 Schramberg,Bahnhofstraße 2",null,null,"Karl-Diehl-Halle","Carl-Diehl-Halle","D",78713,"Schramberg","Bahnhofstraße 2","07422-245581",7,"Neckar-Zollern"]
[7027,"Kellenbachhalle;78647 Trossingen-Schura,",null,null,"Schura","Kellenbachhalle","D",78647,"Trossingen-Schura",null,"07425-21291",7,"Neckar-Zollern"]
[7028,"Alleensporthalle;78054 Schwenningen/Neckar,Alleenstraße 53",null,null,"Schwenningen 1","Alleensporthalle","D",78054,"Schwenningen/Neckar","Alleenstraße 53","07720-310015",7,"Neckar-Zollern"]
[7029,"Deutenberghalle 1;78054 Schwenningen/Neckar,Spittelstraße 10",null,null,"Schwenningen 2","Deutenberghalle 1","D",78054,"Schwenningen/Neckar","Spittelstraße 10","07720-821260",7,"Neckar-Zollern"]
[7030,"Deutenberghalle 2;78054 Schwenningen,Spittelstraße 10",null,null,"Schwenningen 3","Deutenberghalle 2","D",78054,"Schwenningen","Spittelstraße 10","07720-821260",7,"Neckar-Zollern"]
[7031,"Gymnasiumhalle;72488 Sigmaringen,Hohenzollernstraße 14",null,null,"Sigmaringen 1","Gymnasiumhalle","D",72488,"Sigmaringen","Hohenzollernstraße 14","07571-106188",7,"Neckar-Zollern"]
[7032,"Kreissporthalle;72488 Sigmaringen,Hohenzollernstraße 41",null,null,"Sigmaringen 2","Kreissporthalle","D",72488,"Sigmaringen","Hohenzollernstraße 41",null,7,"Neckar-Zollern"]
[7033,"136 km;Sporthalle am Stadion;78549 Spaichingen,Schuraer Straße 7",136,null,"Spaichingen 1","Sporthalle am Stadion","D",78549,"Spaichingen","Schuraer Straße 7","07424-4778",7,"Neckar-Zollern"]
[7035,"Kreissporthalle;78713 Schramberg-Sulgen,Rottweiler Straße",null,null,"Sulgen","Kreissporthalle","D",78713,"Schramberg-Sulgen","Rottweiler Straße","07422-6070",7,"Neckar-Zollern"]
[7036,"Stadionhalle Sulz;72172 Sulz am Neckar,Jahnstraße",null,null,"Sulz a.N.","Stadionhalle Sulz","D",72172,"Sulz am Neckar","Jahnstraße","07454-3001",7,"Neckar-Zollern"]
[7037,"Sporthalle Langenwand;72461 Albstadt-Tailfingen,Vogelsangstraße 30",null,null,"Tailfingen 1","Sporthalle Langenwand","D",72461,"Albstadt-Tailfingen","Vogelsangstraße 30","07432-4629",7,"Neckar-Zollern"]
[7038,"Sporthalle Lutherschule;72461 Albstadt-Tailfingen,Erich-Kästner-Straße 30",null,null,"Tailfingen 2","Sporthalle Lutherschule","D",72461,"Albstadt-Tailfingen","Erich-Kästner-Straße 30","07432-12600",7,"Neckar-Zollern"]
[7039,"Zollern-Alb-Halle;72461 Albstadt-Tailfingen,Obere Bachstraße",null,null,"Tailfingen 3","Zollern-Alb-Halle","D",72461,"Albstadt-Tailfingen","Obere Bachstraße",null,7,"Neckar-Zollern"]
[7040,"Hohenlupfen-Sporthalle;78607 Talheim,Beim Sportgelände",null,null,"Talheim","Hohenlupfen-Sporthalle","D",78607,"Talheim","Beim Sportgelände","07464-4226",7,"Neckar-Zollern"]
[7041,"Solweghalle;78647 Trossingen,Solweg",null,null,"Trossingen 1","Solweghalle","D",78647,"Trossingen","Solweg","07425-1689",7,"Neckar-Zollern"]
[7042,"Sporthalle;78609 Tuningen,Talstraße 13",null,null,"Tuningen","Sporthalle","D",78609,"Tuningen","Talstraße 13","07464-2015",7,"Neckar-Zollern"]
[7043,"Gymnasiumhalle;78532 Tuttlingen,Beim Gymnasium",null,null,"Tuttlingen 1","Gymnasiumhalle","D",78532,"Tuttlingen","Beim Gymnasium",null,7,"Neckar-Zollern"]
[7044,"Kreissporthalle;78532 Tuttlingen,Berufsschulzentrum",null,null,"Tuttlingen 2","Kreissporthalle","D",78532,"Tuttlingen","Berufsschulzentrum","07461-926755",7,"Neckar-Zollern"]
[7045,"Mühlau-Halle;78532 Tuttlingen,Beim Hallenbad",null,null,"Tuttlingen 3","Mühlau-Halle","D",78532,"Tuttlingen","Beim Hallenbad","07461-78469",7,"Neckar-Zollern"]
[7046,"Sporthalle beim Gymnasium Hoptbühl;78048 VS-Villingen,Stationenweg",null,null,"Villingen","Sporthalle beim Gymnasium Hoptbühl","D",78048,"VS-Villingen","Stationenweg","07721-821700",7,"Neckar-Zollern"]
[7047,"Eltahalle;78573 Wurmlingen,",null,null,"Wurmlingen","Eltahalle","D",78573,"Wurmlingen",null,"07461-75939",7,"Neckar-Zollern"]
[7048,"Schillersporthalle;78549 Spaichingen,Schillerstraße",null,null,"Spaichingen 2","Schillersporthalle","D",78549,"Spaichingen","Schillerstraße",null,7,"Neckar-Zollern"]
[7049,"Sporthalle;72355 Schömberg,Schillerstraße 35",null,null,"Schömberg","Sporthalle","D",72355,"Schömberg","Schillerstraße 35",null,7,"Neckar-Zollern"]
[7050,"Fritz-Kiehn-Halle;78647 Trossingen,Achauerstraße 45",null,null,"Trossingen 2","Fritz-Kiehn-Halle","D",78647,"Trossingen","Achauerstraße 45","07425-7560",7,"Neckar-Zollern"]
[7051,{"$f":"IF(C450=\"\",\"\",C450&\" km;\")&F450&\";\"&H450&\" \"&I450&\",\"&J450","v":"Sporthalle Hag;72348 Rosenfeld,Leidringer Straße 45"},null,null,"Rosenfeld","Sporthalle Hag","D",72348,"Rosenfeld","Leidringer Straße 45","07428-1466",7,"Neckar-Zollern"]
[7052,"Sparkassen-ARENA;72336 Balingen,Am Stetten 1",null,null,"Balingen 4","Sparkassen-ARENA","D",72336,"Balingen","Am Stetten 1","07433-9978135",7,"Neckar-Zollern"]
[7053,"Ludwig-Uhland-Sporthalle;78532 Tuttlingen,Werderstraße 15",null,null,"Tuttlingen 4","Ludwig-Uhland-Sporthalle","D",78532,"Tuttlingen","Werderstraße 15",null,7,"Neckar-Zollern"]
[7054,"Leintalhalle;78665 Frittlingen,Leintalstraße 9",null,null,"Frittlingen 2","Leintalhalle","D",78665,"Frittlingen","Leintalstraße 9",null,7,"Neckar-Zollern"]
[8001,"27,8 km;Sporthalle;88131 Lindau-Aeschach,Reutiner Straße 1",27.8,"2012-07-15","Aeschach","Sporthalle","D",88131,"Lindau-Aeschach","Reutiner Straße 1","08382-275129",8,"Bodensee-Donau"]
[8002,"51,7 km;Rotachhalle;88048 Friedrichshafen-Ailingen,Jettenhauser Straße 35",51.7,"2015-08-24","Ailingen","Rotachhalle","D",88048,"Friedrichshafen-Ailingen","Jettenhauser Straße 35","07541-5808",8,"Bodensee-Donau"]
[8003,"163,4 km;Aurainhalle;73340 Amstetten,Lonetalstraße",163.4,"2018-07-11","Amstetten","Aurainhalle","D",73340,"Amstetten","Lonetalstraße","07331-300-651",8,"Bodensee-Donau"]
[8004,"110 km;Sporthalle bei der Hauptschule;88422 Bad Buchau,Am Bahndamm 1",110,"2015-08-24","Bad Buchau","Sporthalle bei der Hauptschule","D",88422,"Bad Buchau","Am Bahndamm 1","07582-93290",8,"Bodensee-Donau"]
[8005,"95 km;ABC-Sporthalle;88348 Bad Saulgau,Schützenstraße",95,"2012-07-15","Bad Saulgau 1","ABC-Sporthalle","D",88348,"Bad Saulgau","Schützenstraße","07581-20781",8,"Bodensee-Donau"]
[8008,"74,2 km;Frauenberg-Gymnasium;88399 Bad Waldsee,Döchtbühlweg 2",74.2,"2016-10-26","Bad Waldsee","Frauenberg-Gymnasium","D",88399,"Bad Waldsee","Döchtbühlweg 2","07524-100",8,"Bodensee-Donau"]
[8009,"106 km;Malihalle;88400 Biberach,Adenauerallee 30",106,"2012-07-15","Biberach 1","Malihalle","D",88400,"Biberach","Adenauerallee 30","07351-51363",8,"Bodensee-Donau"]
[8010,"106 km;Sporthalle beim Berufschulzentrum;88400 Biberach,Leipziger Straße 11",106,"2012-07-15","Biberach 2","Sporthalle beim Berufschulzentrum","D",88400,"Biberach","Leipziger Straße 11","07351-74567",8,"Bodensee-Donau"]
[8011,"106 km;Sporthalle Dollingerschule;88400 Biberach,Dollingerschule",106,"2012-07-15","Biberach 3","Sporthalle Dollingerschule","D",88400,"Biberach","Dollingerschule","07351-51372",8,"Bodensee-Donau"]
[8012,"107 km;Sporthalle Pestalozzi-Gymnasium;88400 Biberach,Breslaustraße 8",107,"2012-07-15","Biberach 4","Sporthalle Pestalozzi-Gymnasium","D",88400,"Biberach","Breslaustraße 8","07351-51417",8,"Bodensee-Donau"]
[8013,"156 km;Dieter-Baumann-Sporthalle;89143 Blaubeuren,Dodelweg",156,"2012-07-15","Blaubeuren","Dieter-Baumann-Sporthalle","D",89143,"Blaubeuren","Dodelweg","07344-919730",8,"Bodensee-Donau"]
[8015,"119 km;Sporthalle;89165 Dietenheim,Promenadenweg",119,"2012-07-15","Dietenheim","Sporthalle","D",89165,"Dietenheim","Promenadenweg","07347-7513",8,"Bodensee-Donau"]
[8016,"5,4 km;Messehalle 2;6850 Dornbirn,Messestraße 4",5.4,"2012-07-15","Dornbirn 1","Messehalle 2","A",6850,"Dornbirn","Messestraße 4","0043-5572-305320",8,"Bodensee-Donau"]
[8017,"5,5 km;Sporthalle Lustenauer Straße;6850 Dornbirn,Lustenauer Straße",5.5,"2012-07-15","Dornbirn 2","Sporthalle Lustenauer Straße","A",6850,"Dornbirn","Lustenauer Straße","0043-5572-21601",8,"Bodensee-Donau"]
[8018,"6,5 km;Sporthalle Landessportschule;6850 Dornbirn,Höchsterstraße 82",6.5,"2012-07-15","Dornbirn 3","Sporthalle Landessportschule","A",6850,"Dornbirn","Höchsterstraße 82","0043-5572-644650",8,"Bodensee-Donau"]
[8019,"5,4 km;Messehalle 10;6850 Dornbirn,Messegelände",5.4,"2012-07-15","Dornbirn 4","Messehalle 10","A",6850,"Dornbirn","Messegelände","0043-5572-305320",8,"Bodensee-Donau"]
[8021,"136,7 km;Sporthalle Längenfeld;89584 Ehingen/D.,Wittumweg 19",136.69999999999999,"2018-07-14","Ehingen/D. 1","Sporthalle Längenfeld","D",89584,"Ehingen/D.","Wittumweg 19","07391-8655",8,"Bodensee-Donau"]
[8022,"138 km;Wenzelsteinhalle;89584 Ehingen/D.,Am Wenzelstein",138,"2012-07-15","Ehingen/D. 2","Wenzelsteinhalle","D",89584,"Ehingen/D.","Am Wenzelstein","07391-6191",8,"Bodensee-Donau"]
[8024,"144 km;Lixsporthalle;89134 Blaustein-Ehrenstein,Boschstraße",144,"2012-07-15","Ehrenstein","Lixsporthalle","D",89134,"Blaustein-Ehrenstein","Boschstraße","07304-80259",8,"Bodensee-Donau"]
[8025,"54,8 km;Sporthalle;88048 Friedrichshafen-Fischbach,Koberstraße",54.8,"2012-07-15","Fischbach","Sporthalle","D",88048,"Friedrichshafen-Fischbach","Koberstraße","07541-42447",8,"Bodensee-Donau"]
[8026,"53,9 km;Bodenseesporthalle;88045 Friedrichshafen,Katharinenstraße 28",53.9,"2016-10-26","Fr'hafen 1","Bodenseesporthalle","D",88045,"Friedrichshafen","Katharinenstraße 28","07541-203283",8,"Bodensee-Donau"]
[8028,"47,9 km;Sporthalle beim Berufschulzentrum;88045 Friedrichshafen,Steinbeisstraße 20",47.9,"2012-07-15","Fr'hafen 3","Sporthalle beim Berufschulzentrum","D",88045,"Friedrichshafen","Steinbeisstraße 20","07541-200320",8,"Bodensee-Donau"]
[8029,"52,1 km;Sporthalle VfB-Stadion;88045 Friedrichshafen,Teuringer Straße 2",52.1,"2012-07-15","Fr'hafen 4","Sporthalle VfB-Stadion","D",88045,"Friedrichshafen","Teuringer Straße 2","07541-57457",8,"Bodensee-Donau"]
[8030,"27,9 km;Oberauhalle;6800 Feldkirch-Gisingen,Hämmerlestraße 2",27.9,"2012-07-15","Gisingen","Oberauhalle","A",6800,"Feldkirch-Gisingen","Hämmerlestraße 2",null,8,"Bodensee-Donau"]
[8031,"141 km;Neue Sporthalle;89079 Ulm-Gögglingen,Riedlenstraße 12",141,"2012-07-15","Gögglingen","Neue Sporthalle","D",89079,"Ulm-Gögglingen","Riedlenstraße 12","07305-933797",8,"Bodensee-Donau"]
[8032,"9 km;Sporthalle Mittelweiherburg;6971 Hard,Flurstraße 12",9,"2012-07-15","Hard 1","Sporthalle Mittelweiherburg","A",6971,"Hard","Flurstraße 12","0043-5574-78031",8,"Bodensee-Donau"]
[8033,"3 km;Sporthalle Hauptschule;6890 Lustenau-Hasenfeld,Hasenfeldstraße 5",3,"2012-07-15","Hasenfeld","Sporthalle Hauptschule","A",6890,"Lustenau-Hasenfeld","Hasenfeldstraße 5",null,8,"Bodensee-Donau"]
[8034,"7,8 km;Sporthalle Herrenried;6845 Hohenems,Schubertstraße 12",7.8,"2012-07-15","Hohenems 1","Sporthalle Herrenried","A",6845,"Hohenems","Schubertstraße 12","0043-5576-72856",8,"Bodensee-Donau"]
[8035,"116 km;Vöhlin-Sporthalle;89257 Illertissen,Dietenheimer Straße",116,"2012-07-15","Illertissen 1","Vöhlin-Sporthalle","D",89257,"Illertissen","Dietenheimer Straße","07307-7735",8,"Bodensee-Donau"]
[8036,"117 km;Halle beim Kolleg der Schulbrüder;89257 Illertissen,Bruckhofstraße",117,"2012-07-15","Illertissen 2","Halle beim Kolleg der Schulbrüder","D",89257,"Illertissen","Bruckhofstraße",null,8,"Bodensee-Donau"]
[8037,"118 km;Sporthalle;89257 Illertissen-Au,Josef-Forster-Straße",118,"2012-07-15","Illertissen 3","Sporthalle","D",89257,"Illertissen-Au","Josef-Forster-Straße","07303-42370",8,"Bodensee-Donau"]
[8038,"57,9 km;Rotmoos-Sporthalle;88316 Isny,Rainstraße",57.9,"2018-07-07","Isny 1","Rotmoos-Sporthalle","D",88316,"Isny","Rainstraße","07562-3450",8,"Bodensee-Donau"]
[8039,"58,8 km;Festhalle;88048 Friedrichshafen-Kluftern,Markdorfer Straße 108",58.8,"2012-07-15","Kluftern","Festhalle","D",88048,"Friedrichshafen-Kluftern","Markdorfer Straße 108","07544-8077",8,"Bodensee-Donau"]
[8040,"18,7 km;Sporthalle;6842 Koblach,Rütti 11",18.7,"2012-07-15","Koblach","Sporthalle","A",6842,"Koblach","Rütti 11",null,8,"Bodensee-Donau"]
[8041,"36,9 km;Parkturnhalle;88079 Kressbronn,Maicher Straße 15",36.9,"2012-07-15","Kressbronn 1","Parkturnhalle","D",88079,"Kressbronn","Maicher Straße 15","07543-6580",8,"Bodensee-Donau"]
[8042,"171 km;Jahnhalle;89150 Laichingen,Jahnstraße 5",171,"2012-07-15","Laichingen 1","Jahnhalle","D",89150,"Laichingen","Jahnstraße 5","07333-8545",8,"Bodensee-Donau"]
[8043,"44,3 km;Argentalhalle;88069 Tettnang-Laimnau,Germanenstraße",44.3,"2012-07-15","Laimnau","Argentalhalle","D",88069,"Tettnang-Laimnau","Germanenstraße","07543-6159",8,"Bodensee-Donau"]
[8044,"43,3 km;Turn- und Festhalle;88085 Langenargen,Amthausstraße",43.3,"2012-07-15","Langenargen 1","Turn- und Festhalle","D",88085,"Langenargen","Amthausstraße","07543-931833",8,"Bodensee-Donau"]
[8045,"162 km;Pfleghofhalle;89129 Langenau,Freistegstraße 4",162,"2012-07-15","Langenau","Pfleghofhalle","D",89129,"Langenau","Freistegstraße 4","07345-962429",8,"Bodensee-Donau"]
[8046,"127 km;Herrenmahdhalle;88471 Laupheim,Laubachweg",127,"2012-07-15","Laupheim 1","Herrenmahdhalle","D",88471,"Laupheim","Laubachweg","07392-1505-17",8,"Bodensee-Donau"]
[8047,"137 km;Rottumhalle;88471 Laupheim,Laubachweg",137,"2012-07-15","Laupheim 2","Rottumhalle","D",88471,"Laupheim","Laubachweg","07392-1505-27",8,"Bodensee-Donau"]
[8048,"151 km;Fliegerhorsthalle;89340 Leipheim,Günzburger Straße 70",151,"2012-07-15","Leipheim 1","Fliegerhorsthalle","D",89340,"Leipheim","Günzburger Straße 70","082-2172011",8,"Bodensee-Donau"]
[8049,"57,9 km;Sporthalle Am Seelhausweg;88299 Leutkirch,Am Seelhausweg",57.9,"2016-10-26","Leutkirch 1","Sporthalle Am Seelhausweg","D",88299,"Leutkirch","Am Seelhausweg","07561-87159",8,"Bodensee-Donau"]
[8050,"65,3 km;Gymnasium-Sporthalle;88299 Leutkirch,Beim Gymnasium",65.3,"2012-07-15","Leutkirch 2","Gymnasium-Sporthalle","D",88299,"Leutkirch","Beim Gymnasium","07561-2051",8,"Bodensee-Donau"]
[8051,"27,7 km;Sporthalle Fachoberschule;88131 Lindau,Reutiner Straße 10",27.7,"2012-07-15","Lindau","Sporthalle Fachoberschule","D",88131,"Lindau","Reutiner Straße 10",null,8,"Bodensee-Donau"]
[8052,"39,3 km;Dreifachhalle;88161 Lindenberg,Sonnenhalde 55-59",39.299999999999997,"2016-10-26","Lindenberg","Dreifachhalle","D",88161,"Lindenberg","Sonnenhalde 55-59",null,8,"Bodensee-Donau"]
[8053,"160 km;Mehrzweckhalle;89173 Lonsee,Hauptstraße",160,"2012-07-15","Lonsee","Mehrzweckhalle","D",89173,"Lonsee","Hauptstraße","07336-8129",8,"Bodensee-Donau"]
[8054,"133 km;Sporthalle Realschule Muthenhölzle;89231 Neu-Ulm-Ludwigsfeld,Albert-Schweizer-Straße 16",133,"2012-07-15","Ludwigsfeld","Sporthalle Realschule Muthenhölzle","D",89231,"Neu-Ulm-Ludwigsfeld","Albert-Schweizer-Straße 16","0731-82802",8,"Bodensee-Donau"]
[8055,"0 km;Sporthalle Gymnasium;6890 Lustenau,Mühlefeldstraße 1",0,"2012-07-15","Lustenau","Sporthalle Gymnasium","A",6890,"Lustenau","Mühlefeldstraße 1",null,8,"Bodensee-Donau"]
[8056,"47,6 km;Carl-Gührer-Halle;88069 Tettnang-Manzenberg,beim Stadion Manzenberg",47.6,"2012-07-15","Manzenberg","Carl-Gührer-Halle","D",88069,"Tettnang-Manzenberg","beim Stadion Manzenberg","07542-52220",8,"Bodensee-Donau"]
[8057,"44,1 km;Wilhelm-Schussen-Halle;88097 Eriskirch-Mariabrunn,Mariabrunner Straße 1",44.1,"2012-07-15","Mariabrunn","Wilhelm-Schussen-Halle","D",88097,"Eriskirch-Mariabrunn","Mariabrunner Straße 1","07541-81773",8,"Bodensee-Donau"]
[8059,"18 km;Sporthalle;6900 Bregenz-Mehrerau,Kloster Mehrerau",18,"2012-07-15","Mehrerau","Sporthalle","A",6900,"Bregenz-Mehrerau","Kloster Mehrerau",null,8,"Bodensee-Donau"]
[8060,"50,8 km;Mehrzweckhalle;88069 Tettnang-Obereisenbach,An der Schule 7",50.8,"2012-07-15","Obereisenbach","Mehrzweckhalle","D",88069,"Tettnang-Obereisenbach","An der Schule 7","07542-939709",8,"Bodensee-Donau"]
[8061,"106 km;Turnhalle Herrschaftsbrühl;88416 Ochsenhausen,Brühlstraße",106,"2012-07-15","Ochsenhausen","Turnhalle Herrschaftsbrühl","D",88416,"Ochsenhausen","Brühlstraße","07352-20160",8,"Bodensee-Donau"]
[8062,"139 km;Sporthalle Offenhauser Gries;89231 Neu-Ulm-Offenhausen,Kantstraß",139,"2012-07-15","Offenhausen","Sporthalle Offenhauser Gries","D",89231,"Neu-Ulm-Offenhausen","Kantstraß","0731-75270",8,"Bodensee-Donau"]
[8063,"140 km;Sporthalle 1 beim Schulzentrum;89233 Neu Ulm-Pfuhl,Heerstraße 111",140,"2012-07-15","Pfuhl 1","Sporthalle 1 beim Schulzentrum","D",89233,"Neu Ulm-Pfuhl","Heerstraße 111","0731-719417",8,"Bodensee-Donau"]
[8064,"140 km;Sporthalle 2 beim Schulzentrum;89233 Neu Ulm-Pfuhl,Heerstraße 111",140,"2012-07-15","Pfuhl 2","Sporthalle 2 beim Schulzentrum","D",89233,"Neu Ulm-Pfuhl","Heerstraße 111","0731-719417",8,"Bodensee-Donau"]
[8065,"63,1 km;Gymnasiumhalle;88212 Ravensburg,Am Gymnasium",63.1,"2012-07-15","Ravensburg 1","Gymnasiumhalle","D",88212,"Ravensburg","Am Gymnasium","0751-8883100",8,"Bodensee-Donau"]
[8066,"63,5 km;Kuppelnauhalle;88212 Ravensburg,Schützenstraße 14",63.5,"2012-07-15","Ravensburg 2","Kuppelnauhalle","D",88212,"Ravensburg","Schützenstraße 14","0751-31211",8,"Bodensee-Donau"]
[8067,"63,1 km;Burachhalle beim Berufschulzentrum;88212 Ravensburg,Buracher Höhe",63.1,"2012-07-15","Ravensburg 3","Burachhalle beim Berufschulzentrum","D",88212,"Ravensburg","Buracher Höhe",null,8,"Bodensee-Donau"]
[8068,{"$f":"IF(C514=\"\",\"\",C514&\" km;\")&F514&\";\"&H514&\" \"&I514&\",\"&J514","v":"31,1 km;Sporthalle;6800 Feldkirch-Reichenfeld,Lichtensteinerstraße 35"},31.1,"2012-07-15","Reichenfeld","Sporthalle","A",6800,"Feldkirch-Reichenfeld","Lichtensteinerstraße 35","0043-5522-81410-12",8,"Bodensee-Donau"]
[8069,"116 km;Durlesbachhalle;88399 Bad Waldsee-Reute,Bei der Schule-Reute",116,"2012-07-15","Reute","Durlesbachhalle","D",88399,"Bad Waldsee-Reute","Bei der Schule-Reute","07524-8780",8,"Bodensee-Donau"]
[8070,"117 km;Sporthalle Kreisgymnasium;88499 Riedlingen,Beim Kreisgymnasium",117,"2012-07-15","Riedlingen","Sporthalle Kreisgymnasium","D",88499,"Riedlingen","Beim Kreisgymnasium","07371-2005",8,"Bodensee-Donau"]
[8071,"117 km;Sporthalle Realschule;88499 Riedlingen,Goethestraße 36",117,"2012-07-15","Riedlingen 2","Sporthalle Realschule","D",88499,"Riedlingen","Goethestraße 36","07371-18359",8,"Bodensee-Donau"]
[8073,"126 km;Mühlbachhalle;88433 Schemmerhofen,Hauptstraße 28",126,"2012-07-15","Schemmerhofen","Mühlbachhalle","D",88433,"Schemmerhofen","Hauptstraße 28","07356-3990",8,"Bodensee-Donau"]
[8074,"10,4 km;Turnhalle;6900 Bregenz-Schendlingen,Wuhrwaldstraße 28",10.4,"2012-07-15","Schendlingen","Turnhalle","A",6900,"Bregenz-Schendlingen","Wuhrwaldstraße 28","0043-5574-72711",8,"Bodensee-Donau"]
[8075,"140 km;Ratiopharm-Sporthalle;89081 Ulm-Söflingen,Harthauser Straße 99",140,"2012-07-15","Söflingen","Ratiopharm-Sporthalle","D",89081,"Ulm-Söflingen","Harthauser Straße 99",null,8,"Bodensee-Donau"]
[8076,"33,1 km;Sporthalle Kreuzbleiche;9000 St. Gallen,Bogenstraße 10",33.1,"2012-07-15","St. Gallen 1","Sporthalle Kreuzbleiche","CH",9000,"St. Gallen","Bogenstraße 10","0041-71-2743050",8,"Bodensee-Donau"]
[8077,"29,9 km;Turnhalle Steinach;9000 St. Gallen,Parkstraße 2",29.9,"2012-07-15","St. Gallen 2","Turnhalle Steinach","CH",9000,"St. Gallen","Parkstraße 2",null,8,"Bodensee-Donau"]
[8078,"30 km;Turnhalle Volksbad;9000 St. Gallen,Volksbadstraße 3",30,"2012-07-15","St. Gallen 3","Turnhalle Volksbad","CH",9000,"St. Gallen","Volksbadstraße 3","0041-75-2359732",8,"Bodensee-Donau"]
[8079,"46,5 km;Stadthalle;88069 Tettnang,Manzenbergstraße",46.5,"2012-07-15","Tettnang","Stadthalle","D",88069,"Tettnang","Manzenbergstraße","07542-52550",8,"Bodensee-Donau"]
[8080,"139 km;Ballspielhalle in der Weststadt;89077 Ulm,Moltkestraße 10",139,"2012-07-15","Ulm 1","Ballspielhalle in der Weststadt","D",89077,"Ulm","Moltkestraße 10","0731-1613467",8,"Bodensee-Donau"]
[8081,"139 km;Sporthalle Am Valckenburgufer;89073 Ulm,Valckenburgufer",139,"2012-07-15","Ulm 2","Sporthalle Am Valckenburgufer","D",89073,"Ulm","Valckenburgufer","0731-24024",8,"Bodensee-Donau"]
[8082,"139 km;Sporthalle Sportzentrum Kuhberg;89077 Ulm,Eggingerweg 53",139,"2012-07-15","Ulm 3","Sporthalle Sportzentrum Kuhberg","D",89077,"Ulm","Eggingerweg 53","0731-161-3461",8,"Bodensee-Donau"]
[8083,"139 km;Blauringhalle;89077 Ulm,Böblingerstraße 31",139,"2012-07-15","Ulm 4","Blauringhalle","D",89077,"Ulm","Böblingerstraße 31","0731-1613466",8,"Bodensee-Donau"]
[8084,"142 km;Brühlhalle;89275 Elchingen-Unterelchingen,Nersingerstraße",142,"2012-07-15","Unterelchingen","Brühlhalle","D",89275,"Elchingen-Unterelchingen","Nersingerstraße","07308-2050",8,"Bodensee-Donau"]
[8085,"119 km;Turn und Festhalle;88524 Uttenweiler,Sailerstraße",119,"2012-07-15","Uttenweiler","Turn und Festhalle","D",88524,"Uttenweiler","Sailerstraße","07574-607",8,"Bodensee-Donau"]
[8086,"56,2 km;Schulturnhalle;88267 Vogt,Mozartstraße",56.2,"2016-10-26","Vogt 1","Schulturnhalle","D",88267,"Vogt","Mozartstraße","07529-20936",8,"Bodensee-Donau"]
[8087,"128 km;Sporthalle Sportpark;89269 Vöhringen,Sportparkstraße",128,"2016-10-26","Vöhringen 1","Sporthalle Sportpark","D",89269,"Vöhringen","Sportparkstraße","07306-950020",8,"Bodensee-Donau"]
[8088,"125 km;Ballspielhalle Sportpark;89269 Vöhringen,Sportparkstraße 8",125,"2012-07-15","Vöhringen 2","Ballspielhalle Sportpark","D",89269,"Vöhringen","Sportparkstraße 8","07306-4600",8,"Bodensee-Donau"]
[8089,"46,6 km;Argenhalle;88239 Wangen/A.,Aumühleweg 19",46.6,"2012-07-15","Wangen/A. 1","Argenhalle","D",88239,"Wangen/A.","Aumühleweg 19","07522-912687",8,"Bodensee-Donau"]
[8090,"46,8 km;Ebnethalle;88239 Wangen/Allgäu,Danneckerweg 50",46.8,"2012-07-15","Wangen/A. 2","Ebnethalle","D",88239,"Wangen/Allgäu","Danneckerweg 50","07522-930424",8,"Bodensee-Donau"]
[8091,"66,4 km;Talschulsporthalle;88250 Weingarten,Jacob-Reiner-Straße",66.400000000000006,"2012-07-15","Weingarten 1","Talschulsporthalle","D",88250,"Weingarten","Jacob-Reiner-Straße","0751-5619-2280",8,"Bodensee-Donau"]
[8092,"69,2 km;Großsporthalle;88250 Weingarten,Brechenmacherstraße 19",69.2,"2016-10-26","Weingarten 2","Großsporthalle","D",88250,"Weingarten","Brechenmacherstraße 19","0751-5619-2140",8,"Bodensee-Donau"]
[8093,"139 km;Tannenplatzhalle;89079 Ulm-Wiblingen,Buchauer Straße 7",139,"2012-07-15","Wiblingen 1","Tannenplatzhalle","D",89079,"Ulm-Wiblingen","Buchauer Straße 7","0731-1613472",8,"Bodensee-Donau"]
[8094,"139 km;Halle an der Friedrichshafener Straße;89079 Ulm-Wiblingen,Friedrichshafener Straße",139,"2012-07-15","Wiblingen 2","Halle an der Friedrichshafener Straße","D",89079,"Ulm-Wiblingen","Friedrichshafener Straße","0731-161-3473",8,"Bodensee-Donau"]
[8095,"128 km;Dreifachturnhalle;89250 Senden-Wullenstetten,Holsteiner Straße",128,"2012-07-15","Wullenstet","Dreifachturnhalle","D",89250,"Senden-Wullenstetten","Holsteiner Straße","07309-2171",8,"Bodensee-Donau"]
[8096,"101 km;Sporthalle im Kronried;88348 Bad Saulgau,Schützenstraße 63",101,"2012-07-15","Bad Saulgau 3","Sporthalle im Kronried","D",88348,"Bad Saulgau","Schützenstraße 63",null,8,"Bodensee-Donau"]
[8097,"141 km;Franziska-Ziehank-Halle Ichenhausen;89335 Ichenhausen,Pestalozzistraße 2",141,"2012-07-15","Ichenhause","Franziska-Ziehank-Halle Ichenhausen","D",89335,"Ichenhausen","Pestalozzistraße 2","08223-5529",8,"Bodensee-Donau"]
[8098,"151 km;Güssen-Halle;89340 Leipheim,A.-Weiß-Straße 3",151,"2012-07-15","Leipheim 2","Güssen-Halle","D",89340,"Leipheim","A.-Weiß-Straße 3","08221-7379",8,"Bodensee-Donau"]
[8099,"125 km;Halle Schulzentrum;86381 Krumbach,Talstraße 76",125,"2012-07-15","Krumbach","Halle Schulzentrum","D",86381,"Krumbach","Talstraße 76","08282-1200",8,"Bodensee-Donau"]
[8100,"47,4 km;Sporthalle im Sportzentrum;88085 Langenargen,In den Sportanlagen 3",47.4,"2016-10-26","Langenargen 2","Sporthalle im Sportzentrum","D",88085,"Langenargen","In den Sportanlagen 3","07543-4444",8,"Bodensee-Donau"]
[8101,"173 km;Sporthalle bei der Grundschule;89331 Burgau,Remsharter Straße 2",173,"2012-07-15","Burgau","Sporthalle bei der Grundschule","D",89331,"Burgau","Remsharter Straße 2","08222-5242",8,"Bodensee-Donau"]
[8102,"158 km;Sporthalle;89312 Günzburg,Rebaystraße 24",158,"2012-07-15","Günzburg","Sporthalle","D",89312,"Günzburg","Rebaystraße 24","08221-4151",8,"Bodensee-Donau"]
[8103,"115 km;Sporthalle;88433 Aßmannshardt,Im Täle 50",115,"2012-07-15","Alberweiler","Sporthalle","D",88433,"Aßmannshardt","Im Täle 50",null,8,"Bodensee-Donau"]
[8104,"123 km;Sporthalle in der Schule;89165 Regglisweiler,Schulstraße 7",123,"2012-07-15","Regglisweiler","Sporthalle in der Schule","D",89165,"Regglisweiler","Schulstraße 7","07347-919363",8,"Bodensee-Donau"]
[8105,"56,3 km;Rainhalle;88316 Isny,Rainstraße",56.3,"2012-07-15","Isny 2","Rainhalle","D",88316,"Isny","Rainstraße","07560-3450",8,"Bodensee-Donau"]
[8106,"144 km;Sporthalle;89081 Ulm-Lehr,Talstraße 51",144,"2012-07-15","Ulm Nord","Sporthalle","D",89081,"Ulm-Lehr","Talstraße 51","0731-15900601",8,"Bodensee-Donau"]
[8107,"16,7 km;Sporthalle Rieden-Vorkloster;6900 Bregenz,Burggräflergasse 11",16.7,"2012-07-15","Bregenz","Sporthalle Rieden-Vorkloster","A",6900,"Bregenz","Burggräflergasse 11",null,8,"Bodensee-Donau"]
[8108,"173 km;Kreissporthalle;89423 Gundelfingen,Stadionstraße 3",173,"2012-07-15","Gundelfingen","Kreissporthalle","D",89423,"Gundelfingen","Stadionstraße 3","09073-3350",8,"Bodensee-Donau"]
[8109,"11 km;Sporthalle am See;6971 Hard,",11,"2012-07-15","Hard 2","Sporthalle am See","A",6971,"Hard",null,"0043-5574",8,"Bodensee-Donau"]
[8110,"148 km;Sporthalle auf der Egert;89179 Beimerstetten,Auf der Egert 7",148,"2012-07-15","Beimerstetten","Sporthalle auf der Egert","D",89179,"Beimerstetten","Auf der Egert 7","07348-408239",8,"Bodensee-Donau"]
[8111,"170 km;Daniel-Schwenkmezger-Halle;89150 Laichingen,Im Käppeler",170,"2012-07-15","Laichingen 2","Daniel-Schwenkmezger-Halle","D",89150,"Laichingen","Im Käppeler","07333-953467",8,"Bodensee-Donau"]
[8112,"0 km;Sporthalle Markt;6845 Hohenems,J.-Haniball-Straße 11",0,"2016-10-26","Hohenems 2","Sporthalle Markt","A",6845,"Hohenems","J.-Haniball-Straße 11",null,8,"Bodensee-Donau"]
[8113,"66 km;Schulturnhalle Weststadt;88213 Ravensburg,Höllwaldstraße 14",66,"2012-07-15","Ravensburg 4","Schulturnhalle Weststadt","D",88213,"Ravensburg","Höllwaldstraße 14","0751-9545",8,"Bodensee-Donau"]
[8114,"12 km;HS Lauterach;6923 Lauterach,Montfortplatz 16",12,"2012-07-15","Lauterach","HS Lauterach","A",6923,"Lauterach","Montfortplatz 16",null,8,"Bodensee-Donau"]
[8115,"87,8 km;Sporthalle beim Schulzentrum;88425 Bad Schussenried,Drümmelbergstraße 22",87.8,"2012-07-15","Bad Schussenried","Sporthalle beim Schulzentrum","D",88425,"Bad Schussenried","Drümmelbergstraße 22",null,8,"Bodensee-Donau"]
[8116,"63,1 km;Turnhalle beim Bildungszentrum St. Konrad;88212 Ravensburg,Am Sonnebüchel 45",63.1,"2012-07-15","Weingarten 3","Turnhalle beim Bildungszentrum St. Konrad","D",88212,"Ravensburg","Am Sonnebüchel 45","0751-8883166",8,"Bodensee-Donau"]
[8117,"5,4 km;Messe-Ballsporthalle 1;6850 Dornbirn,Messestraße 4",5.4,"2012-07-15","Dornbirn 5","Messe-Ballsporthalle 1","A",6850,"Dornbirn","Messestraße 4","0043-5572-305237",8,"Bodensee-Donau"]
[8118,"36,8 km;Seesporthalle;88079 Kressbronn,Maicher Straße 33",36.799999999999997,"2012-07-15","Kressbronn 2","Seesporthalle","D",88079,"Kressbronn","Maicher Straße 33","07543-963740",8,"Bodensee-Donau"]
[8119,"54,5 km;Halle im Fun Sport und Spiel;88267 Vogt,Schachenstraße 11",54.5,"2012-07-15","Vogt 2","Halle im Fun Sport und Spiel","D",88267,"Vogt","Schachenstraße 11","07529-9743-25",8,"Bodensee-Donau"]
[8120,"106 km;Sporthalle;88416 Ochsenhausen,Riedstraße 44",106,"2012-07-15","Ochsenhausen 2","Sporthalle","D",88416,"Ochsenhausen","Riedstraße 44",null,8,"Bodensee-Donau"]
[8121,"44,2 km;Sporthalle;88097 Eriskirch,Greuther Straße 1/1",44.2,"2012-07-15","Eriskirch","Sporthalle","D",88097,"Eriskirch","Greuther Straße 1/1","0177-5162303",8,"Bodensee-Donau"]
[8128,"60,2 km;Brunisachhalle;88048 Friedrichshafen,Markdorfer Straße 108",60.2,"2016-10-26","Friedrichshafen","Brunisachhalle","D",88048,"Friedrichshafen","Markdorfer Straße 108",null,8,"Bodensee-Donau"]
[8129,"65 km;Fohlenstrasse 19;88048 Friedrichshafen,Fohlenstrasse 19",65,"2018-05-05","Ailingen","Fohlenstrasse 19","D",88048,"Friedrichshafen","Fohlenstrasse 19",null,8,"Bodensee-Donau"]
[8131,{"$f":"IF(C569=\"\",\"\",C569&\" km;\")&F569&\";\"&H569&\" \"&I569&\",\"&J569","v":"47 km;Grund und Mittelschule;87354 Oberstaufen,Kalzenhoferstrasse 55"},47,"2022-08-15","Oberstaufen","Grund und Mittelschule","D",87354,"Oberstaufen","Kalzenhoferstrasse 55",null,8,"Bodensee-Donau"]
[8133,"139 km;Gustaf Benz Halle; Neu-Ulm,",139,"2019-08-07","Neu-Ulm","Gustaf Benz Halle","D",null,"Neu-Ulm",null,null,8,"Bodensee-Donau"]
[9001,"Langenberg-Sporthalle;69488 Birkenau,Bergstraße 17",null,null,"Birkenau","Langenberg-Sporthalle","D",69488,"Birkenau","Bergstraße 17","06201-3913916",0,"Handball Baden-Württemberg"]
[9002,"Heinrich-Beck-Halle;69493 Hirschberg-Leutershausen,Hölderlinstraße 24",null,null,"Leutershau","Heinrich-Beck-Halle","D",69493,"Hirschberg-Leutershausen","Hölderlinstraße 24","06201-507837",0,"Handball Baden-Württemberg"]
[9003,"Großsporthalle;68535 Edingen-Neckarhausen,Robert-Walter-Straße 1",null,null,"Neckarhausen","Großsporthalle","D",68535,"Edingen-Neckarhausen","Robert-Walter-Straße 1","06203-808233",0,"Handball Baden-Württemberg"]
[9004,"Konrad-Duden-Sporthalle;68219 Mannheim-Rheinau,Kronenberger Straße 45-55",null,null,"Rheinau","Konrad-Duden-Sporthalle","D",68219,"Mannheim-Rheinau","Kronenberger Straße 45-55",null,0,"Handball Baden-Württemberg"]
[9005,"Sporthalle TSV Friedberg;86316 Friedberg,Hans-Böller-Straße 3",null,null,"Friedberg 1","Sporthalle TSV Friedberg","D",86316,"Friedberg","Hans-Böller-Straße 3",null,0,"Handball Baden-Württemberg"]
[9006,"Stadthalle;86316 Friedberg,Aichacher Straße 7",null,null,"Friedberg 2","Stadthalle","D",86316,"Friedberg","Aichacher Straße 7",null,0,"Handball Baden-Württemberg"]
[9007,"Rebland-Halle;69254 Malsch,Unterer Jagdweg 69",null,null,"Malsch","Rebland-Halle","D",69254,"Malsch","Unterer Jagdweg 69","07253-24150",0,"Handball Baden-Württemberg"]
[9008,"Richard-Möll-Halle;68239 Mannheim,Innerer Heckweg 4",null,null,"Mannheim 1","Richard-Möll-Halle","D",68239,"Mannheim","Innerer Heckweg 4",null,0,"Handball Baden-Württemberg"]
[9009,"Sporthalle beim Fritz-Erler-Gymnasium;75172 Pforzheim,Westliche Karl-Friedrich-Straße 215",null,null,"Pforzheim 1","Sporthalle beim Fritz-Erler-Gymnasium","D",75172,"Pforzheim","Westliche Karl-Friedrich-Straße 215","07231-392996",0,"Handball Baden-Württemberg"]
[9010,{"$f":"IF(C580=\"\",\"\",C580&\" km;\")&F580&\";\"&H580&\" \"&I580&\",\"&J580","v":"Olympiahalle;69226 Nußloch,Kurpfalzstraße 75"},null,null,"Nußloch","Olympiahalle","D",69226,"Nußloch","Kurpfalzstraße 75","06224-171276",0,"Handball Baden-Württemberg"]
[9016,"Nordbadenhalle 2;68542 Heddesheim,Ahornstraße 70",null,null,"Heddesheim","Nordbadenhalle 2","D",68542,"Heddesheim","Ahornstraße 70","06203-4039688",0,"Handball Baden-Württemberg"]
[9017,"Nordbadenhalle 1;68542 Heddesheim,Ahornstraße 72",null,null,"Heddesheim","Nordbadenhalle 1","D",68542,"Heddesheim","Ahornstraße 72","06203-4039687",0,"Handball Baden-Württemberg"]
[9020,"Sporthalle der Parkringschule;68789 St. Leon-Rot,Wiesenstraße 6",null,null,"St. Leon 1","Sporthalle der Parkringschule","D",68789,"St. Leon-Rot","Wiesenstraße 6","06227-864615",0,"Handball Baden-Württemberg"]
[9023,"Konrad-Adenauer-Sporthalle;75181 Pforzheim,Kaulbachstraße 32",null,null,"Pforzheim 2","Konrad-Adenauer-Sporthalle","D",75181,"Pforzheim","Kaulbachstraße 32","07231-392556",0,"Handball Baden-Württemberg"]
[9024,"Realschul-Sporthalle;82024 Taufkirchen,Köglweg 104",null,null,"Taufkirchen 1","Realschul-Sporthalle","D",82024,"Taufkirchen","Köglweg 104","089-6128472",0,"Handball Baden-Württemberg"]
[9025,"Sporthalle im Sportpark;85540 Haar,Höglweg 3",null,null,"Haar","Sporthalle im Sportpark","D",85540,"Haar","Höglweg 3","089-6884650",0,"Handball Baden-Württemberg"]
[9026,"Sporthalle TV Fürth;90768 Fürth,Coubertinstraße 9-11",null,null,"Fürth","Sporthalle TV Fürth","D",90768,"Fürth","Coubertinstraße 9-11","0911-720120",0,"Handball Baden-Württemberg"]
[9027,"Gymnasium-Sporthalle;85591 Vaterstetten,Johann-Strauß-Straße 42",null,null,"Vaterstetten","Gymnasium-Sporthalle","D",85591,"Vaterstetten","Johann-Strauß-Straße 42","089-36340",0,"Handball Baden-Württemberg"]
[9029,"Rundsporthalle;76829 Landau,Prießnitzweg",null,null,"Landau 1","Rundsporthalle","D",76829,"Landau","Prießnitzweg","06341-86969",0,"Handball Baden-Württemberg"]
[9030,"Sporthalle Schulzentrum Ost;76829 Landau,Schneiderstraße 69",null,null,"Landau 2","Sporthalle Schulzentrum Ost","D",76829,"Landau","Schneiderstraße 69",null,0,"Handball Baden-Württemberg"]
[9031,"Hans-Michel-Halle;69502 Hemsbach,Hüttenfelderstraße",null,null,"Hemsbach","Hans-Michel-Halle","D",69502,"Hemsbach","Hüttenfelderstraße",null,0,"Handball Baden-Württemberg"]
[9032,"Rudolf-Harbig-Halle;68766 Hockenheim,Arndstraße 1",null,null,"Hockenheim 1","Rudolf-Harbig-Halle","D",68766,"Hockenheim","Arndstraße 1","06205-21665",0,"Handball Baden-Württemberg"]
[9033,"Jahnhalle;68766 Hockenheim,Waldstraße 1",null,null,"Hockenheim 2","Jahnhalle","D",68766,"Hockenheim","Waldstraße 1","06205-14324",0,"Handball Baden-Württemberg"]
[9034,"Mehrzweckhalle;76709 Kronau,Jahnstraße 10",null,null,"Kronau 1","Mehrzweckhalle","D",76709,"Kronau","Jahnstraße 10",null,0,"Handball Baden-Württemberg"]
[9035,"Stadthalle;76684 Östringen,Johann-Sebastian-Bach-Straße",null,null,"Östringen","Stadthalle","D",76684,"Östringen","Johann-Sebastian-Bach-Straße",null,0,"Handball Baden-Württemberg"]
[9036,"Nordstadthalle;68723 Schwetzingen,Grenzhöferstraße",null,null,"Schwetzingen 1","Nordstadthalle","D",68723,"Schwetzingen","Grenzhöferstraße","06202-925663",0,"Handball Baden-Württemberg"]
[9037,"Sporthalle am Schulzentrum;87724 Ottobeuren,Bergstraße 88",null,null,"Ottobeuren","Sporthalle am Schulzentrum","D",87724,"Ottobeuren","Bergstraße 88","08332-922444 oder -9",0,"Handball Baden-Württemberg"]
[9038,"Sporthalle an der Bleiche;91541 Rothenburg o.d.T.,Dinkelsbühler Straße 5",null,null,"Rothenburg","Sporthalle an der Bleiche","D",91541,"Rothenburg o.d.T.","Dinkelsbühler Straße 5","09861-4922",0,"Handball Baden-Württemberg"]
[9039,"Hardthalle;68809 Neulußheim,Kornstraße 63",null,null,"Neulußheim","Hardthalle","D",68809,"Neulußheim","Kornstraße 63",null,0,"Handball Baden-Württemberg"]
[9040,"Bürgermeister-Goebels-Halle;97616 Bad Neustadt,",null,null,"Bad Neusta","Bürgermeister-Goebels-Halle","D",97616,"Bad Neustadt",null,"09771-91036",0,"Handball Baden-Württemberg"]
[9043,"Gymnasiumhalle;74899 Sinsheim,Schubertstraße",null,null,"Sinsheim","Gymnasiumhalle","D",74899,"Sinsheim","Schubertstraße",null,0,"Handball Baden-Württemberg"]
[9045,"Sporthalle im Benckiser Park;75172 Pforzheim,Zerrennerstraße",null,null,"Pforzheim 3","Sporthalle im Benckiser Park","D",75172,"Pforzheim","Zerrennerstraße",null,0,"Handball Baden-Württemberg"]
[9052,"Sporthalle beim Hallenbad;76646 Bruchsal,Schwetzinger Straße",null,null,"Bruchsal","Sporthalle beim Hallenbad","D",76646,"Bruchsal","Schwetzinger Straße","07251-84362",0,"Handball Baden-Württemberg"]
[9053,"Sporthalle;76646 Bruchsal-Untergrombach,Joß-Fritz-Straße 3",null,null,"Untergrombach","Sporthalle","D",76646,"Bruchsal-Untergrombach","Joß-Fritz-Straße 3","07257-4630",0,"Handball Baden-Württemberg"]
[9054,"Karl-Heinz-Hiersemann-Sporthalle;91054 Erlangen,Schillerstraße 58",null,null,"Erlangen","Karl-Heinz-Hiersemann-Sporthalle","D",91054,"Erlangen","Schillerstraße 58","09131-862853",0,"Handball Baden-Württemberg"]
[9055,"Parzival-Sporthalle;63916 Amorbach,Friedensweg 1",null,null,"Amorbach","Parzival-Sporthalle","D",63916,"Amorbach","Friedensweg 1","09373-4536",0,"Handball Baden-Württemberg"]
[9057,"Willi-Sauer-Sporthalle;97241 Bergtheim,Oberpleichfelder Straße 21",null,null,"Bergtheim","Willi-Sauer-Sporthalle","D",97241,"Bergtheim","Oberpleichfelder Straße 21","09367-3924",0,"Handball Baden-Württemberg"]
[9058,"Neurotthalle;78775 Ketsch,Mannheimer Straße",null,null,"Ketsch","Neurotthalle","D",78775,"Ketsch","Mannheimer Straße","06202-63149",0,"Handball Baden-Württemberg"]
[9059,"BZ-Halle (Marion-Doenhoff-Realschule);68782 Brühl,Am Viehtriebweg",null,null,"Brühl 1","BZ-Halle (Marion-Doenhoff-Realschule)","D",68782,"Brühl","Am Viehtriebweg","06202-702822",0,"Handball Baden-Württemberg"]
[9063,"Sporthalle des Schulzentrums;69190 Walldorf,Schwetzinger Straße 95",null,null,"Walldorf","Sporthalle des Schulzentrums","D",69190,"Walldorf","Schwetzinger Straße 95",null,0,"Handball Baden-Württemberg"]
[9064,"Sporthalle der Realschule;68782 Brühl,Wiesenplatzweg 7",null,null,"Brühl 2","Sporthalle der Realschule","D",68782,"Brühl","Wiesenplatzweg 7","06202-770660",0,"Handball Baden-Württemberg"]
[9065,"Sachsenhalle;69493 Hirschberg-Großsachsen,Brunnengasse 21",null,null,"Großsachsen","Sachsenhalle","D",69493,"Hirschberg-Großsachsen","Brunnengasse 21","06201-57060",0,"Handball Baden-Württemberg"]
[9067,"Schulsporthalle der Heimschule Lender;77880 Sasbach,Friedhofstraße 19",null,null,"Sasbach","Schulsporthalle der Heimschule Lender","D",77880,"Sasbach","Friedhofstraße 19",null,0,"Handball Baden-Württemberg"]
[9069,"Parthelandhalle;4683 Naunhof,Wiesenstraße 42",null,null,"Naunhof 1","Parthelandhalle","D",4683,"Naunhof","Wiesenstraße 42","034293-46325",0,"Handball Baden-Württemberg"]
[9070,"Sporthalle der Mittelschule;4683 Naunhof,Lutherstraße 3a",null,null,"Naunhof 2","Sporthalle der Mittelschule","D",4683,"Naunhof","Lutherstraße 3a",null,0,"Handball Baden-Württemberg"]
[9071,"Sporthalle ESV Regensburg;93051 Regensburg,Dechbettener Brücke 2",null,null,"Regensburg","Sporthalle ESV Regensburg","D",93051,"Regensburg","Dechbettener Brücke 2","0941-33791",0,"Handball Baden-Württemberg"]
[9072,"WM-Sporthalle;1589 Riesa,Am Sportzentrum 1",null,null,"Riesa","WM-Sporthalle","D",1589,"Riesa","Am Sportzentrum 1","03525-632191",0,"Handball Baden-Württemberg"]
[9073,"Sporthalle am BSZ;1662 Meißen,Goethestraße 21",null,null,"Meißen","Sporthalle am BSZ","D",1662,"Meißen","Goethestraße 21",null,0,"Handball Baden-Württemberg"]
[9074,"Rosentalsporthalle;4758 Oschatz,Berufschulstraße 3",null,null,"Oschatz","Rosentalsporthalle","D",4758,"Oschatz","Berufschulstraße 3","03435-933900",0,"Handball Baden-Württemberg"]
[9075,"Albert-Loderer-Sporthalle;86179 Augsburg,Landsberger Straße 3",null,null,"Augsburg","Albert-Loderer-Sporthalle","D",86179,"Augsburg","Landsberger Straße 3",null,0,"Handball Baden-Württemberg"]
[9076,"Oberfrankenhalle;96448 Bayreuth,Am Sportpark 3",null,null,"Bayreuth 1","Oberfrankenhalle","D",96448,"Bayreuth","Am Sportpark 3","0921-251910",0,"Handball Baden-Württemberg"]
[9077,"Schulzentrum Ost;95448 Bayreuth,Äüßere Badstraße 26",null,null,"Bayreuth 2","Schulzentrum Ost","D",95448,"Bayreuth","Äüßere Badstraße 26","0921-3360863",0,"Handball Baden-Württemberg"]
[9078,"Dreifachsporthalle Anger;96450 Coburg,Schützenstraße 2a",null,null,"Coburg","Dreifachsporthalle Anger","D",96450,"Coburg","Schützenstraße 2a","09561-891448",0,"Handball Baden-Württemberg"]
[9079,"Mehrzweckhalle;1277 Dresden,Bodenbacher Straße 154",null,null,"Dresden 1","Mehrzweckhalle","D",1277,"Dresden","Bodenbacher Straße 154","0351-2123837",0,"Handball Baden-Württemberg"]
[9080,"Halle an der Mittelschule Johann Georg Palitz;1239 Dresden,Gamigstraße 28",null,null,"Dresden 2","Halle an der Mittelschule Johann Georg Palitz","D",1239,"Dresden","Gamigstraße 28","0351-2842049",0,"Handball Baden-Württemberg"]
[9081,"Sporthalle am Ehrenbürggymnasium;91301 Forchheim,Ruhalmstraße 10",null,null,"Forchheim 1","Sporthalle am Ehrenbürggymnasium","D",91301,"Forchheim","Ruhalmstraße 10",null,0,"Handball Baden-Württemberg"]
[9082,"Sporthalle  an der Realschule;91301 Forchheim,Pestalozzistraße 2",null,null,"Forchheim 2","Sporthalle  an der Realschule","D",91301,"Forchheim","Pestalozzistraße 2",null,0,"Handball Baden-Württemberg"]
[9083,"Sachsenlandhalle;8371 Glauchau,Sachsenallee 63",null,null,"Glauchau","Sachsenlandhalle","D",8371,"Glauchau","Sachsenallee 63","03763-13606",0,"Handball Baden-Württemberg"]
[9084,"Sporthalle im Schulzentrum;84359 Simbach,Obersimbach 27",null,null,"Simbach","Sporthalle im Schulzentrum","D",84359,"Simbach","Obersimbach 27","0171-2079913",0,"Handball Baden-Württemberg"]
[9087,"Baden-Arena;77656 Offenburg,Schutterwälder Straße 3",null,null,"Offenburg","Baden-Arena","D",77656,"Offenburg","Schutterwälder Straße 3",null,0,"Handball Baden-Württemberg"]
[9088,"Herbert-Lucy-Sporthalle;68305 Mannheim,Alsenweg",null,null,"Mannheim 2","Herbert-Lucy-Sporthalle","D",68305,"Mannheim","Alsenweg",null,0,"Handball Baden-Württemberg"]
[9089,"Sporthalle;72270 Klosterreichenbach,",null,null,"Klosterreichenbach","Sporthalle","D",72270,"Klosterreichenbach",null,"07442-50148",0,"Handball Baden-Württemberg"]
[9091,"Sportcenter Markranstädt;4420 Markranstädt,Leipziger Straße 47",null,null,"Markranstädt 1","Sportcenter Markranstädt","D",4420,"Markranstädt","Leipziger Straße 47",null,0,"Handball Baden-Württemberg"]
[9092,"Stadthalle;4420 Markranstädt,Leipziger Straße 4",null,null,"Markranstädt 2","Stadthalle","D",4420,"Markranstädt","Leipziger Straße 4",null,0,"Handball Baden-Württemberg"]
[9093,"Realschulhalle;76351 Linkenheim-Hochstetten,Virchowstraße 1",null,null,"Hochstetten","Realschulhalle","D",76351,"Linkenheim-Hochstetten","Virchowstraße 1",null,0,"Handball Baden-Württemberg"]
[9094,"Sporthalle Brüderstraße;4103 Leipzig,Brüderstraße",null,null,"Leipzig 1","Sporthalle Brüderstraße","D",4103,"Leipzig","Brüderstraße","0341-9600490",0,"Handball Baden-Württemberg"]
[9095,"Wittelsbacher Halle;82256 Fürstenfeldbruck,Bahnhofstraße 15",null,null,"Fürstenfeldbruck","Wittelsbacher Halle","D",82256,"Fürstenfeldbruck","Bahnhofstraße 15","08141-92930",0,"Handball Baden-Württemberg"]
[9096,"ARENA Leipzig;4105 Leipzig,Am Sportforum 1",null,null,"Leipzig 2","ARENA Leipzig","D",4105,"Leipzig","Am Sportforum 1","0341-2341130",0,"Handball Baden-Württemberg"]
[9097,"Sporthalle des 1. FC Nürnberg;90480 Nürnberg,Valznerweiherstraße 200",null,null,"Nürnberg","Sporthalle des 1. FC Nürnberg","D",90480,"Nürnberg","Valznerweiherstraße 200","0911-9407926",0,"Handball Baden-Württemberg"]
[9098,"Realschulhalle;85737 Ismaning,An der Torfbahn",null,null,"Ismaning 1","Realschulhalle","D",85737,"Ismaning","An der Torfbahn","089-96265",0,"Handball Baden-Württemberg"]
[9099,"Osterfeldhalle;85737 Ismaning,Oskar-Neeste-Straße 2",null,null,"Ismaning 2","Osterfeldhalle","D",85737,"Ismaning","Oskar-Neeste-Straße 2",null,0,"Handball Baden-Württemberg"]
[9101,"Ernst-Grube-Universitätssporthalle;4109 Leipzig,Jahnallee 59",null,null,"Leipzig 4","Ernst-Grube-Universitätssporthalle","D",4109,"Leipzig","Jahnallee 59","0341-9731614",0,"Handball Baden-Württemberg"]
[9102,"Sporthalle Mindlestal;72458 Steißlingen,Im Mindlestal",null,null,"Steißlingen","Sporthalle Mindlestal","D",72458,"Steißlingen","Im Mindlestal",null,0,"Handball Baden-Württemberg"]
[9103,{"$f":"IF(C644=\"\",\"\",C644&\" km;\")&F644&\";\"&H644&\" \"&I644&\",\"&J644","v":"Sportzentrum Harres;68789 St. Leon-Rot,An der Autobahn 60"},null,null,"St. Leon 2","Sportzentrum Harres","D",68789,"St. Leon-Rot","An der Autobahn 60",null,0,"Handball Baden-Württemberg"]
[9104,"Trainingshalle;76709 Kronau,Im Sportzentrum 2",null,null,"Kronau 2","Trainingshalle","D",76709,"Kronau","Im Sportzentrum 2",null,0,"Handball Baden-Württemberg"]
[9105,"Jahn-Sporthalle;4288 Leipzig,Im Angerteich 2",null,null,"Leipzig 3","Jahn-Sporthalle","D",4288,"Leipzig","Im Angerteich 2","034297-1402900",0,"Handball Baden-Württemberg"]
[9106,"Stadtsporthalle;4720 Döbeln,Straße des Friedens 9",null,null,"Döbeln","Stadtsporthalle","D",4720,"Döbeln","Straße des Friedens 9","03431-578325",0,"Handball Baden-Württemberg"]
[9107,"Hebelhalle;68723 Schwetzingen,Goethestraße",null,null,"Schwetzingen 2","Hebelhalle","D",68723,"Schwetzingen","Goethestraße","06202-200517",0,"Handball Baden-Württemberg"]
[9108,"Stadionhalle;69168 Wiesloch,Parkstraße 5",null,null,"Wiesloch","Stadionhalle","D",69168,"Wiesloch","Parkstraße 5",null,0,"Handball Baden-Württemberg"]
[9109,"Sporthalle Sonnenstein;1796 Pirna,Struppener Straße",null,null,"Pirna","Sporthalle Sonnenstein","D",1796,"Pirna","Struppener Straße","03501-762229",0,"Handball Baden-Württemberg"]
[9110,"Sportforum;1844 Neustadt/Sachsen,Maxim-Gorki-Straße",null,null,"Neustadt/Sachsen","Sportforum","D",1844,"Neustadt/Sachsen","Maxim-Gorki-Straße","03596-509518",0,"Handball Baden-Württemberg"]
[9111,"Mainfeldhalle;96247 Michelau,Am Sportzentrum 10",null,null,"Michelau","Mainfeldhalle","D",96247,"Michelau","Am Sportzentrum 10","09571-83425",0,"Handball Baden-Württemberg"]
[10001,"Hornisgrindehalle;77855 Achern,Berliner Straße 3",null,null,"Achern 1","Hornisgrindehalle","D",77855,"Achern","Berliner Straße 3","07841-629525",11,"Rastatt"]
[10002,"Ortenauhalle;77855 Achern,Kirchstraße 43",null,null,"Achern 2","Ortenauhalle","D",77855,"Achern","Kirchstraße 43","07841-26121",11,"Rastatt"]
[10003,"Sporthalle im Schulzentrum West;76532 Baden-Baden-Oos,Rheinstraße 152",null,null,"Baden-Baden 1","Sporthalle im Schulzentrum West","D",76532,"Baden-Baden-Oos","Rheinstraße 152","07221-17400",11,"Rastatt"]
[10005,"Südbad. Sportschule Halle 2;76534 Baden-Baden,Yburgstraße 115",null,null,"Baden-Baden 3","Südbad. Sportschule Halle 2","D",76534,"Baden-Baden","Yburgstraße 115","07223-511960",11,"Rastatt"]
[10006,"Mehrzweckhalle;76467 Bietigheim,Schulstraße",null,null,"Bietigheim/Baden","Mehrzweckhalle","D",76467,"Bietigheim","Schulstraße","07245-86377",11,"Rastatt"]
[10007,"Schwarzwaldhalle;77815 Bühl,beim Schwimmbad",null,null,"Bühl","Schwarzwaldhalle","D",77815,"Bühl","beim Schwimmbad","07223-901009",11,"Rastatt"]
[10008,"Hardtsporthalle;76448 Durmersheim,Trifstraße 11",null,null,"Durmersheim","Hardtsporthalle","D",76448,"Durmersheim","Trifstraße 11","07245-938145",11,"Rastatt"]
[10009,"Schulsporthalle;76596 Forbach,Hauptstraße 72",null,null,"Forbach","Schulsporthalle","D",76596,"Forbach","Hauptstraße 72","07228-960466",11,"Rastatt"]
[10010,"Traischbachsporthalle;76571 Gaggenau,Waldstraße 38",null,null,"Gaggenau","Traischbachsporthalle","D",76571,"Gaggenau","Waldstraße 38","07225-3541",11,"Rastatt"]
[10011,"Realschulsporthalle;76571 Gaggenau-Bad Rotenfels,Mühlstraße 25",null,null,"Bad Rotenfels","Realschulsporthalle","D",76571,"Gaggenau-Bad Rotenfels","Mühlstraße 25","07225-960318",11,"Rastatt"]
[10012,"Stadionhalle;76593 Gernsbach,von-Drais-Straße 1 b",null,null,"Gernsbach","Stadionhalle","D",76593,"Gernsbach","von-Drais-Straße 1 b","07224-933815",11,"Rastatt"]
[10013,"Schulsporthalle;76456 Kuppenheim,Wörtelstraße 23",null,null,"Kuppenheim","Schulsporthalle","D",76456,"Kuppenheim","Wörtelstraße 23",null,11,"Rastatt"]
[10014,"Wolf-Eberstein-Halle;76461 Muggensturm,Wolf-Eberstein-Straße",null,null,"Muggensturm","Wolf-Eberstein-Halle","D",76461,"Muggensturm","Wolf-Eberstein-Straße","07222-989140",11,"Rastatt"]
[10015,"Schwarzwaldhalle;77883 Ottenhöfen,Hasenwald 6",null,null,"Ottenhöfen","Schwarzwaldhalle","D",77883,"Ottenhöfen","Hasenwald 6","07842-1466",11,"Rastatt"]
[10016,"Sporthalle;77833 Ottersweier,Friedhofstraße 28",null,null,"Ottersweier","Sporthalle","D",77833,"Ottersweier","Friedhofstraße 28","07223-23725",11,"Rastatt"]
[10017,"Carl-Diem-Halle;76437 Rastatt,Lützower Straße 8",null,null,"Rastatt 1","Carl-Diem-Halle","D",76437,"Rastatt","Lützower Straße 8","07222-33162",11,"Rastatt"]
[10018,"Sporthalle Tulla-Gymnasium;76437 Rastatt,Danziger Straße 1",null,null,"Rastatt 2","Sporthalle Tulla-Gymnasium","D",76437,"Rastatt","Danziger Straße 1",null,11,"Rastatt"]
[10019,"Sporthalle Niederbühl;76437 Rastatt-Niederbühl,Wiesenweg 51",null,null,"Niederbühl","Sporthalle Niederbühl","D",76437,"Rastatt-Niederbühl","Wiesenweg 51","07222-52893",11,"Rastatt"]
[10020,"Rhein-Rench Halle;77866 Rheinau-Helmlingen,Dorfstraße 83",null,null,"Helmlingen","Rhein-Rench Halle","D",77866,"Rheinau-Helmlingen","Dorfstraße 83","07227-8118",11,"Rastatt"]
[10021,"Sport- und Schwimmhalle Greffern;77836 Rheinmünster-Greffern,Pappelweg 7",null,null,"Greffern","Sport- und Schwimmhalle Greffern","D",77836,"Rheinmünster-Greffern","Pappelweg 7","07227-2510",11,"Rastatt"]
[10022,"Rheintalhalle;76532 Sandweier,Rheintalstraße",null,null,"Sandweier","Rheintalhalle","D",76532,"Sandweier","Rheintalstraße","07221-66502",11,"Rastatt"]
[10023,"Fremersberghalle;76547 Sinzheim,Müllhofener Straße 11",null,null,"Sinzheim","Fremersberghalle","D",76547,"Sinzheim","Müllhofener Straße 11","07221-83646",11,"Rastatt"]
[10024,"Sporthalle;77948 Friesenheim,Friedhofstraße 5",null,null,"Friesenheim","Sporthalle","D",77948,"Friesenheim","Friedhofstraße 5",null,12,"Offenburg"]
[10025,"Kinzigtalhalle;77723 Gengenbach,Brombachstraße",null,null,"Gengenbach","Kinzigtalhalle","D",77723,"Gengenbach","Brombachstraße","07803-930257",12,"Offenburg"]
[10026,"Hohberghalle-Niederschopfheim;77749 Hohberg,Im Langasserfeld",null,null,"Hohberg","Hohberghalle-Niederschopfheim","D",77749,"Hohberg","Im Langasserfeld","07808-26 42",12,"Offenburg"]
[10027,"Kreissporthalle;77694 Kehl am Rhein,Vogesenallee",null,null,"Kehl 1","Kreissporthalle","D",77694,"Kehl am Rhein","Vogesenallee","07851-99169143",12,"Offenburg"]
[10028,"Rheintal-Sporthalle;77933 Lahr,Rheinstraße 15",null,null,"Lahr 1","Rheintal-Sporthalle","D",77933,"Lahr","Rheinstraße 15","07821-43120",12,"Offenburg"]
[10029,"Mauerfeldhalle;77933 Lahr,im Mauerfeld/Hallenbad",null,null,"Lahr 2","Mauerfeldhalle","D",77933,"Lahr","im Mauerfeld/Hallenbad",null,12,"Offenburg"]
[10030,"Sulzberghalle;77933 Lahr-Sulz,Ziegelbrunnenstraße 47",null,null,"Lahr-Sulz","Sulzberghalle","D",77933,"Lahr-Sulz","Ziegelbrunnenstraße 47","07821-37544",12,"Offenburg"]
[10031,"Sporthalle;77974 Meißenheim,Blumenstraße",null,null,"Meißenheim","Sporthalle","D",77974,"Meißenheim","Blumenstraße","07824-3741",12,"Offenburg"]
[10032,"Mehrzweckhalle Altenheim;77743 Neuried-Altenheim,Viehweider Weg",null,null,"Altenheim","Mehrzweckhalle Altenheim","D",77743,"Neuried-Altenheim","Viehweider Weg","07807-1200",12,"Offenburg"]
[10033,"Riedhalle;77743 Neuried-Ichenheim,Kohlgasse",null,null,"Ichenheim","Riedhalle","D",77743,"Neuried-Ichenheim","Kohlgasse","07807-97390",12,"Offenburg"]
[10034,"Sporthalle;77704 Oberkirch,Butschbacherstraße",null,null,"Oberkirch","Sporthalle","D",77704,"Oberkirch","Butschbacherstraße","07802-82218",12,"Offenburg"]
[10035,"Otto-Kempf-Sporthalle;77656 Offenburg-Elgersweier,Sandackerweg",null,null,"Elgersweier","Otto-Kempf-Sporthalle","D",77656,"Offenburg-Elgersweier","Sandackerweg","0781-9692588",12,"Offenburg"]
[10036,"Sporthalle Schiller-Gymnasium;77654 Offenburg,Zeller Straße",null,null,"Offenburg 1","Sporthalle Schiller-Gymnasium","D",77654,"Offenburg","Zeller Straße",null,12,"Offenburg"]
[10037,"Sporthalle Zunsweier;77656 Offenburg-Zunsweier,Kleingäßle",null,null,"Zunsweier","Sporthalle Zunsweier","D",77656,"Offenburg-Zunsweier","Kleingäßle","0781-962616",12,"Offenburg"]
[10038,"Brumatthalle;77797 Ohlsbach,Alte Gasse 1",null,null,"Ohlsbach","Brumatthalle","D",77797,"Ohlsbach","Alte Gasse 1","07803-601257",12,"Offenburg"]
[10039,"Günther-Bimmerle-Halle;77728 Oppenau,beim Schwimmbad",null,null,"Oppenau","Günther-Bimmerle-Halle","D",77728,"Oppenau","beim Schwimmbad","07804-2431",12,"Offenburg"]
[10040,"Mürburghalle 1;77746 Schutterwald,Im Kirchfeld 26",null,null,"Schutterwald 1","Mürburghalle 1","D",77746,"Schutterwald","Im Kirchfeld 26","0781-52959",12,"Offenburg"]
[10041,"Mürburghalle 2;77746 Schutterwald,Im Kirchfeld 26",null,null,"Schutterwald 2","Mürburghalle 2","D",77746,"Schutterwald","Im Kirchfeld 26","0781-52959",12,"Offenburg"]
[10042,"Burkhard-Michael Halle;77963 Schwanau-Nonnenweier,Wörtelweg 12",null,null,"Nonnenweier","Burkhard-Michael Halle","D",77963,"Schwanau-Nonnenweier","Wörtelweg 12","07824-2391",12,"Offenburg"]
[10043,"Rheinauenhalle;77963 Schwanau-Ottenheim,Weiblingsweg 2",null,null,"Ottenheim","Rheinauenhalle","D",77963,"Schwanau-Ottenheim","Weiblingsweg 2","07824-645714",12,"Offenburg"]
[10044,"Sporthalle;77960 Seelbach,Ludwig-Auerbach-Straße 2",null,null,"Seelbach","Sporthalle","D",77960,"Seelbach","Ludwig-Auerbach-Straße 2","07823-96291",12,"Offenburg"]
[10045,"Hanauerlandhalle;77731 Willstätt,Hornisgrindestraße 2",null,null,"Willstätt 1","Hanauerlandhalle","D",77731,"Willstätt","Hornisgrindestraße 2","0171-8291216",12,"Offenburg"]
[10046,"Schwarzwaldhalle;77736 Zell-Unterharmersbach,Rebhalde 7",null,null,"Unterharmersbach","Schwarzwaldhalle","D",77736,"Zell-Unterharmersbach","Rebhalde 7","07835-8582",12,"Offenburg"]
[10047,"Münchgrundhalle;77955 Ettenheim-Altdorf,Joseph-Greber-Straße 5",null,null,"Altdorf","Münchgrundhalle","D",77955,"Ettenheim-Altdorf","Joseph-Greber-Straße 5","07822-2034",13,"Freiburg"]
[10048,"Adam-Treiber-Halle;79268 Bötzingen,Haupstraße",null,null,"Bötzingen","Adam-Treiber-Halle","D",79268,"Bötzingen","Haupstraße",null,13,"Freiburg"]
[10049,"Sporthalle;79211 Denzlingen,Stuttgarterstraße 15",null,null,"Denzlingen","Sporthalle","D",79211,"Denzlingen","Stuttgarterstraße 15",null,13,"Freiburg"]
[10050,"Karl-Faller-Halle;79312 Emmendingen,Steinstraße 2",null,null,"Emmendingen","Karl-Faller-Halle","D",79312,"Emmendingen","Steinstraße 2","07641-49306",13,"Freiburg"]
[10051,"Herbert-König Sporthalle;77955 Ettenheim,Leistnerstraße 12",null,null,"Ettenheim","Herbert-König Sporthalle","D",77955,"Ettenheim","Leistnerstraße 12","07822-2066",13,"Freiburg"]
[10052,"Wentzingerhalle;79110 Freiburg,Falkenbergerstraße 21",null,null,"Freiburg 1","Wentzingerhalle","D",79110,"Freiburg","Falkenbergerstraße 21",null,13,"Freiburg"]
[10053,"Gerhard-Graf-Halle;79098 Freiburg,Friedrichring",null,null,"Freiburg 2","Gerhard-Graf-Halle","D",79098,"Freiburg","Friedrichring","0177-1662229",13,"Freiburg"]
[10054,"Jahnhalle;79108 Freiburg,Lameystraße 2",null,null,"Zähringen","Jahnhalle","D",79108,"Freiburg","Lameystraße 2","0761-54369",13,"Freiburg"]
[10055,"Burdahalle;79117 Freiburg,Schwarzwaldstraße 181",null,null,"Freiburg 3","Burdahalle","D",79117,"Freiburg","Schwarzwaldstraße 181",null,13,"Freiburg"]
[10056,"Sporthalle Staudinger;79115 Freiburg,Staudingerstraße 10",null,null,"Freiburg 4","Sporthalle Staudinger","D",79115,"Freiburg","Staudingerstraße 10",null,13,"Freiburg"]
[10057,{"$f":"IF(C708=\"\",\"\",C708&\" km;\")&F708&\";\"&H708&\" \"&I708&\",\"&J708","v":"Sporthalle Gymnasium;79194 Gundelfingen,Kandelstraße"},null,null,"Gundelfingen","Sporthalle Gymnasium","D",79194,"Gundelfingen","Kandelstraße",null,13,"Freiburg"]
[10058,"Breisgauhalle;79336 Herbolzheim,Moltkestraße",null,null,"Herbolzheim","Breisgauhalle","D",79336,"Herbolzheim","Moltkestraße","07643-762",13,"Freiburg"]
[10059,"Üsenberghalle;79341 Kenzingen,Breslauer Straße",null,null,"Kenzingen","Üsenberghalle","D",79341,"Kenzingen","Breslauer Straße","07644-928966",13,"Freiburg"]
[10060,"Sporthalle Buchheim;79232 March,Sportplatzstraße",null,null,"March","Sporthalle Buchheim","D",79232,"March","Sportplatzstraße",null,13,"Freiburg"]
[10061,"Sporthalle 2;79379 Müllheim,Bismarckstraße 10",null,null,"Müllheim","Sporthalle 2","D",79379,"Müllheim","Bismarckstraße 10",null,13,"Freiburg"]
[10062,"Sporthalle 2;79395 Neuenburg,Zähringerstraße 6",null,null,"Neuenburg","Sporthalle 2","D",79395,"Neuenburg","Zähringerstraße 6",null,13,"Freiburg"]
[10063,"Rheinmatthalle;79365 Rheinhausen,Hauptstraße 100",null,null,"Oberhausen","Rheinmatthalle","D",79365,"Rheinhausen","Hauptstraße 100","07643-8238",13,"Freiburg"]
[10064,"Kahlenberghalle;77975 Ringsheim,Schulstraße",null,null,"Ringsheim","Kahlenberghalle","D",77975,"Ringsheim","Schulstraße","07822-30380",13,"Freiburg"]
[10065,"Sporthalle;79219 Staufen,Kirchelweg 1",null,null,"Staufen","Sporthalle","D",79219,"Staufen","Kirchelweg 1",null,13,"Freiburg"]
[10066,"Ludwig-Jahn-Halle;79331 Teningen,Ludwig-Jahn-Straße 5",null,null,"Teningen","Ludwig-Jahn-Halle","D",79331,"Teningen","Ludwig-Jahn-Straße 5","07641-935053",13,"Freiburg"]
[10067,"Kastelberghalle;79183 Waldkirch,Freiburgerstraße",null,null,"Waldkirch","Kastelberghalle","D",79183,"Waldkirch","Freiburgerstraße",null,13,"Freiburg"]
[10068,"Sporthalle Badmatte;79713 Bad Säckingen,Bergseestraße",null,null,"Bad Säckingen 1","Sporthalle Badmatte","D",79713,"Bad Säckingen","Bergseestraße","07761-3660",14,"Oberrhein"]
[10069,"Hochrheinhalle;79639 Grenzach-Wyhlen,Hutmattenstraße 20",null,null,"Grenzach 1","Hochrheinhalle","D",79639,"Grenzach-Wyhlen","Hutmattenstraße 20","07624-91510",14,"Oberrhein"]
[10070,"Zielmattenhalle;79639 Grenzach-Wyhlen,Scheffelstraße",null,null,"Grenzach 2","Zielmattenhalle","D",79639,"Grenzach-Wyhlen","Scheffelstraße","07624-9141526",14,"Oberrhein"]
[10071,"Sporthalle;79787 Lauchringen,Hohrainstraße",null,null,"Lauchringen","Sporthalle","D",79787,"Lauchringen","Hohrainstraße","07741-609561",14,"Oberrhein"]
[10072,"Wintersbuckhalle;79539 Lörrach,Wintersbuckstraße 17",null,null,"Lörrach 1","Wintersbuckhalle","D",79539,"Lörrach","Wintersbuckstraße 17","07621-10438",14,"Oberrhein"]
[10073,"Sporthalle;79618 Rheinfelden,Fecampring 32",null,null,"Rheinfelden 1","Sporthalle","D",79618,"Rheinfelden","Fecampring 32","07623-62166",14,"Oberrhein"]
[10074,"Friedrich-Ebert-Sporthalle;79650 Schopfheim,Roggenbachstraße",null,null,"Schopfheim 1","Friedrich-Ebert-Sporthalle","D",79650,"Schopfheim","Roggenbachstraße",null,14,"Oberrhein"]
[10075,"Sporthalle;79585 Steinen,Köchlinstraße",null,null,"Steinen","Sporthalle","D",79585,"Steinen","Köchlinstraße",null,14,"Oberrhein"]
[10076,"Silberberghalle;79674 Todtnau,Meinrad-Thoma-Straße 18",null,null,"Todtnau","Silberberghalle","D",79674,"Todtnau","Meinrad-Thoma-Straße 18",null,13,"Freiburg"]
[10077,"Sporthalle;79761 Waldshut-Tiengen,Courteneystraße",null,null,"Waldshut-Tiengen 1","Sporthalle","D",79761,"Waldshut-Tiengen","Courteneystraße",null,14,"Oberrhein"]
[10078,"Sporthalle;79576 Weil am Rhein,Egerstraße",null,null,"Weil am Rhein 1","Sporthalle","D",79576,"Weil am Rhein","Egerstraße",null,14,"Oberrhein"]
[10079,"Sporthalle;79669 Zell im Wiesental,Scheffelstraße",null,null,"Zell im Wiesental","Sporthalle","D",79669,"Zell im Wiesental","Scheffelstraße","07625-337",14,"Oberrhein"]
[10080,"Curt-Liebich-Sporthalle;77793 Gutach,Hauptstraße",null,null,"Gutach","Curt-Liebich-Sporthalle","D",77793,"Gutach","Hauptstraße","07833-959792",15,"Schwarzwald"]
[10081,"Sporthalle;78132 Hornberg,Gustav-Fimpel-Straße2",null,null,"Hornberg","Sporthalle","D",78132,"Hornberg","Gustav-Fimpel-Straße2","07833-8436",15,"Schwarzwald"]
[10082,"Nachbarschaftssporthalle;77761 Schiltach,Schenkenzeller Straße 3 c",null,null,"Schiltach","Nachbarschaftssporthalle","D",77761,"Schiltach","Schenkenzeller Straße 3 c","07836-7727",15,"Schwarzwald"]
[10083,"Sporthalle Dom-Clemente;78136 Schonach,Jahnstraße 6",null,null,"Schonach","Sporthalle Dom-Clemente","D",78136,"Schonach","Jahnstraße 6","07722-968217",15,"Schwarzwald"]
[10084,"Rossbergsporthalle;78112 St. Georgen/Schw.,Im Hochwald 5",null,null,"St. Georgen/SW","Rossbergsporthalle","D",78112,"St. Georgen/Schw.","Im Hochwald 5","07724-2075",15,"Schwarzwald"]
[10085,"Jahnsporthalle;78098 Triberg,Luisenstraße",null,null,"Triberg","Jahnsporthalle","D",78098,"Triberg","Luisenstraße","07722-953233",15,"Schwarzwald"]
[10086,"Sporthalle Realschule;77709 Wolfach,Herlinsbachwe",null,null,"Wolfach","Sporthalle Realschule","D",77709,"Wolfach","Herlinsbachwe","07834-836750",15,"Schwarzwald"]
[10087,"Riesenberg Sporthalle;78476 Allensbach-Kaltbrunn,Zum Riesenberg",null,null,"Allensbach","Riesenberg Sporthalle","D",78476,"Allensbach-Kaltbrunn","Zum Riesenberg","07533-80176",16,"Hegau-Bodensee"]
[10088,"Eichberghalle;78176 Blumberg,Goethestraße 1",null,null,"Blumberg","Eichberghalle","D",78176,"Blumberg","Goethestraße 1","07702/476909",16,"Hegau-Bodensee"]
[10089,"Sporthalle;78351 Bodman,Im Weiler",null,null,"Bodman","Sporthalle","D",78351,"Bodman","Im Weiler","07773/920628",16,"Hegau-Bodensee"]
[10090,"Baarsporthalle;78166 Donaueschingen,Humboldstraße 1",null,null,"Donaueschingen 2","Baarsporthalle","D",78166,"Donaueschingen","Humboldstraße 1",null,16,"Hegau-Bodensee"]
[10091,"Eugen-Schädler-Halle;78259 Mühlhausen-Ehingen,Obere Tiefe",null,null,"Mühlhausen","Eugen-Schädler-Halle","D",78259,"Mühlhausen-Ehingen","Obere Tiefe","07733-7099",16,"Hegau-Bodensee"]
[10092,"Kresbachhalle;78253 Eigeltingen,Im Breitle",null,null,"Eigeltingen","Kresbachhalle","D",78253,"Eigeltingen","Im Breitle","07774-7319",16,"Hegau-Bodensee"]
[10093,"Großsporthalle;78234 Engen,Jahnstraße",null,null,"Engen","Großsporthalle","D",78234,"Engen","Jahnstraße","07733-501409",16,"Hegau-Bodensee"]
[10094,"Hochrheinhalle;78262 Gailingen am Hochrhein,Schulstraße",null,null,"Gailingen","Hochrheinhalle","D",78262,"Gailingen am Hochrhein","Schulstraße","07734-2911",16,"Hegau-Bodensee"]
[10095,"Goldbühlhalle;78244 Gottmadingen,An der Bundesstraße",null,null,"Gottmadingen","Goldbühlhalle","D",78244,"Gottmadingen","An der Bundesstraße","07731-977672",16,"Hegau-Bodensee"]
[10096,"Sporthalle Geschwister-Scholl Schule;78467 Konstanz-Wollmatingen,Schwaketenstraße 112",null,null,"Konstanz 2","Sporthalle Geschwister-Scholl Schule","D",78467,"Konstanz-Wollmatingen","Schwaketenstraße 112",null,16,"Hegau-Bodensee"]
[10097,"Schänzle-Sporthalle;78462 Konstanz,Winterersteig 23",null,null,"Konstanz 1","Schänzle-Sporthalle","D",78462,"Konstanz","Winterersteig 23",null,16,"Hegau-Bodensee"]
[10098,"Kapitän-Franz-Romer-Halle;78465 Konstanz-Dettingen,Schulweg",null,null,"Dettingen","Kapitän-Franz-Romer-Halle","D",78465,"Konstanz-Dettingen","Schulweg",null,16,"Hegau-Bodensee"]
[10099,"60,8 km;Sporthalle Bildungszentrum;88677 Markdorf,Bildungszentrum",60.8,"2012-07-15","Markdorf (8058)","Sporthalle Bildungszentrum","D",88677,"Markdorf","Bildungszentrum","07544-8011",0,"HVW"]
[10100,"Stadthalle;88605 Meßkirch,Conradin Kreutzer-Straße",null,null,"Meßkirch","Stadthalle","D",88605,"Meßkirch","Conradin Kreutzer-Straße",null,16,"Hegau-Bodensee"]
[10101,"Sporthalle;88630 Pfullendorf,Jakobsweg 3",null,null,"Pfullendorf","Sporthalle","D",88630,"Pfullendorf","Jakobsweg 3","07552-8175",16,"Hegau-Bodensee"]
[10102,"Unterseesporthalle;78315 Radolfzell,Markelfingerstraße 15",null,null,"Radolfzell 1","Unterseesporthalle","D",78315,"Radolfzell","Markelfingerstraße 15","07732-647850",16,"Hegau-Bodensee"]
[10103,"Ten-Brink Halle;78239 Riealsingen,Ten-Brink-Straße",null,null,"Riealsingen","Ten-Brink Halle","D",78239,"Riealsingen","Ten-Brink-Straße",null,16,"Hegau-Bodensee"]
[10104,"Sporthalle Bildungszentrum Salem;88682 Salem,Schloßseeallee 45",null,null,"Salem","Sporthalle Bildungszentrum Salem","D",88682,"Salem","Schloßseeallee 45",null,16,"Hegau-Bodensee"]
[10105,"Kreissporthalle;78224 Singen,Herderstraße",null,null,"Singen 2","Kreissporthalle","D",78224,"Singen","Herderstraße",null,16,"Hegau-Bodensee"]
[10106,"Münchried-Sporthalle;78224 Singen,Münchriedstraße 6",null,null,"Singen 1","Münchried-Sporthalle","D",78224,"Singen","Münchriedstraße 6","07731-85339",16,"Hegau-Bodensee"]
[10107,"Sportpark Mindlestal;78256 Steißlingen,Im Mindlestal",null,null,"Steißlingen","Sportpark Mindlestal","D",78256,"Steißlingen","Im Mindlestal","07738-688",16,"Hegau-Bodensee"]
[10108,"Alemannenhalle;72510 Stetten a.k.M.,Monthlery-Platz",null,null,"Stetten a.k.M. (7034)","Alemannenhalle","D",72510,"Stetten a.k.M.","Monthlery-Platz",null,16,"Hegau-Bodensee"]
[10109,"Jahn-Halle;78333 Stockach,Winterspurer 24",null,null,"Stockach","Jahn-Halle","D",78333,"Stockach","Winterspurer 24",null,16,"Hegau-Bodensee"]
[10110,"Realschulsporthalle;88662 Überlingen,St. Johannstraße",null,null,"Überlingen","Realschulsporthalle","D",88662,"Überlingen","St. Johannstraße","07551-1284",16,"Hegau-Bodensee"]
[10111,"Sporthalle;88690 Uhldingen-Mühlhofen,Kanalweg 1c",null,null,"Mühlhofen","Sporthalle","D",88690,"Uhldingen-Mühlhofen","Kanalweg 1c","07556-6250",16,"Hegau-Bodensee"]
[10112,"Mettnauhalle/KSH;78315 Radolfzell,Strandbadstraße",null,null,"Radolfzell 2","Mettnauhalle/KSH","D",78315,"Radolfzell","Strandbadstraße","07732-14844",16,"Hegau-Bodensee"]
[10113,"Kreissporthalle;78166 Donaueschingen,Beethovenstraße 2a",null,null,"Donaueschingen 1","Kreissporthalle","D",78166,"Donaueschingen","Beethovenstraße 2a",null,16,"Hegau-Bodensee"]
[10114,"Sporthalle ;77866 Rheinau,Schwimmbadstr. 6",null,null,"Freistett","Sporthalle ","D",77866,"Rheinau","Schwimmbadstr. 6","07844 97878",11,"Rastatt"]
[10115,"Trainingshalle;77731 Willstätt,Hornisgrindestraße 2",null,null,"Willstätt 2","Trainingshalle","D",77731,"Willstätt","Hornisgrindestraße 2","0171-8291216",12,"Offenburg"]
[10116,"KT-Arena;77694 Kehl am Rhein,Vogesenallee",null,null,"Kehl 2","KT-Arena","D",77694,"Kehl am Rhein","Vogesenallee",null,12,"Offenburg"]
[10117,"Vicemooshalle;79650 Schopfheim,Schlierbachstr. 21",null,null,"Schopfheim 2","Vicemooshalle","D",79650,"Schopfheim","Schlierbachstr. 21",null,14,"Oberrhein"]
[10118,"Pater-Alfred-Delp-Halle;79837 St. Blasien,Tusculumweg/Kolleg",null,null,"St. Blasien","Pater-Alfred-Delp-Halle","D",79837,"St. Blasien","Tusculumweg/Kolleg","07672-27203",14,"Oberrhein"]
[10119,"Sporthalle;79540 Lörrach-Brombach,Karl-Wenk-Straße 5",null,null,"Brombach","Sporthalle","D",79540,"Lörrach-Brombach","Karl-Wenk-Straße 5","07621-52211",14,"Oberrhein"]
[10120,"Mehrzweckhalle;79618 Rheinfelden-Karsau,Steigweg 2",null,null,"Rheinfelden 2","Mehrzweckhalle","D",79618,"Rheinfelden-Karsau","Steigweg 2","07623-5151",14,"Oberrhein"]
[10121,{"$f":"IF(C772=\"\",\"\",C772&\" km;\")&F772&\";\"&H772&\" \"&I772&\",\"&J772","v":"Kreissporthalle;79539 Lörrach,Wintersbuckstraße 5"},null,null,"Lörrach 2","Kreissporthalle","D",79539,"Lörrach","Wintersbuckstraße 5","07621-9566821",14,"Oberrhein"]
[10122,"Alemannenhalle;79589 Maulburg,Alemannenstraße",null,null,"Maulburg","Alemannenhalle","D",79589,"Maulburg","Alemannenstraße","07622-399136",14,"Oberrhein"]
[10123,"Murgtalhalle;79730 Murg,Am Bürgerplatz 2",null,null,"Murg","Murgtalhalle","D",79730,"Murg","Am Bürgerplatz 2","07763-4763",14,"Oberrhein"]
[10124,"Küssaburghalle;79790 Küssaberg-Rheinheim,Gemeindezentrum 5a",null,null,"Rheinheim","Küssaburghalle","D",79790,"Küssaberg-Rheinheim","Gemeindezentrum 5a","07741-600181",14,"Oberrhein"]
[10125,"Sporthalle Hindenburgschule;79713 Bad Säckingen,Werderstraße",null,null,"Bad Säckingen 2","Sporthalle Hindenburgschule","D",79713,"Bad Säckingen","Werderstraße",null,14,"Oberrhein"]
[10126,"Stadthalle;79761 Waldshut-Tiengen-Tiengen,Berliner Straße 2",null,null,"Waldshut-Tiengen 2","Stadthalle","D",79761,"Waldshut-Tiengen-Tiengen","Berliner Straße 2","07741-833500",14,"Oberrhein"]
[10127,"Hochrheinhalle;79761 Waldshut-Tiengen-Waldshut,Waldtorstraße 12",null,null,"Waldshut-Tiengen 3","Hochrheinhalle","D",79761,"Waldshut-Tiengen-Waldshut","Waldtorstraße 12",null,14,"Oberrhein"]
[10128,"Sporthalle Seeboden;79664 Wehr,Seebodenstraße 21",null,null,"Wehr","Sporthalle Seeboden","D",79664,"Wehr","Seebodenstraße 21","07762-9981",14,"Oberrhein"]
[10129,"Kanthalle;79576 Weil am Rhein,Kantstraße 2",null,null,"Weil am Rhein 2","Kanthalle","D",79576,"Weil am Rhein","Kantstraße 2",null,14,"Oberrhein"]
[10130,"Realschul-Turnhalle;79576 Weil am Rhein,Egerstraße 3",null,null,"Weil am Rhein 3","Realschul-Turnhalle","D",79576,"Weil am Rhein","Egerstraße 3",null,14,"Oberrhein"]
[10131,"Alemannenhalle;79793 Wutöschingen,Wutachstraße 5",null,null,"Wutöschingen","Alemannenhalle","D",79793,"Wutöschingen","Wutachstraße 5","07746-5400",14,"Oberrhein"]
[10132,"Sporthalle Löhrenacker;4147 Aesch (BL),Landskronstrasse 41",null,null,"Aesch","Sporthalle Löhrenacker","CH",4147,"Aesch (BL)","Landskronstrasse 41","+41 61 7513238",14,"Oberrhein"]
[10133,"Sporthalle Hagenbuchen;4144 Arlesheim,Schwimmbadweg",null,null,"Arlesheim","Sporthalle Hagenbuchen","CH",4144,"Arlesheim","Schwimmbadweg","+41 61 7031047",14,"Oberrhein"]
[10134,"Freies Gymnasium;4052 Basel,Scherkesselweg 30",null,null,"Basel 1","Freies Gymnasium","CH",4052,"Basel","Scherkesselweg 30","+41 61 3120088",14,"Oberrhein"]
[10135,"Gymnasium Bäumlihof;4058 Basel,Zu den drei Linden 80",null,null,"Basel 2","Gymnasium Bäumlihof","CH",4058,"Basel","Zu den drei Linden 80","+41 61 6063350",14,"Oberrhein"]
[10136,"Sporthalle Dreirosen;4053 Basel,Breisacherstrasse 134",null,null,"Basel 3","Sporthalle Dreirosen","CH",4053,"Basel","Breisacherstrasse 134","+41 61 6869129",14,"Oberrhein"]
[10137,"Sporthalle Pfaffenholz;4058 Basel,Im Burgfelderhof 60b",null,null,"Basel 4","Sporthalle Pfaffenholz","CH",4058,"Basel","Im Burgfelderhof 60b","+33 389 898230",14,"Oberrhein"]
[10138,"Sporthalle Rankhof;4058 Basel,Grenzacherstrasse 351",null,null,"Basel 5","Sporthalle Rankhof","CH",4058,"Basel","Grenzacherstrasse 351",null,14,"Oberrhein"]
[10139,"St.-Jakobs-Spielhalle;4052 Basel,Brüglingerstrasse 21",null,null,"Basel 6","St.-Jakobs-Spielhalle","CH",4052,"Basel","Brüglingerstrasse 21","+41 61 3178222",14,"Oberrhein"]
[10140,"St.-Jakobs-Halle, Feld 1;4052 Basel,Brüglingerstrasse 21",null,null,"Basel 7","St.-Jakobs-Halle, Feld 1","CH",4052,"Basel","Brüglingerstrasse 21","+41 61 3178222",14,"Oberrhein"]
[10141,"St.-Jakobs-Halle, Feld 2;4052 Basel,Brüglingerstrasse 21",null,null,"Basel 8","St.-Jakobs-Halle, Feld 2","CH",4052,"Basel","Brüglingerstrasse 21","+41 61 3178222",14,"Oberrhein"]
[10142,"St.-Jakobs-Halle, Feld 3;4052 Basel,Brüglingerstrasse 21",null,null,"Basel 9","St.-Jakobs-Halle, Feld 3","CH",4052,"Basel","Brüglingerstrasse 21","+41 61 3178222",14,"Oberrhein"]
[10143,"Spiegelfeld;4102 Binningen,Wassergrabenstrasse 21",null,null,"Binningen","Spiegelfeld","CH",4102,"Binningen","Wassergrabenstrasse 21","+41 61 4216945",14,"Oberrhein"]
[10144,"Sporthalle;4127 Birsfelden,Sternenfeldstrasse 9",null,null,"Birsfelden","Sporthalle","CH",4127,"Birsfelden","Sternenfeldstrasse 9","+41 61 3110698",14,"Oberrhein"]
[10145,"Sporthalle Lindenboden;5074 Eiken,Bachweg",null,null,"Eiken","Sporthalle Lindenboden","CH",5074,"Eiken","Bachweg","+41 62 8714230",14,"Oberrhein"]
[10146,"Sporthalle Frenke;4410 Liestal,Gitterlistrasse 5b",null,null,"Liestal","Sporthalle Frenke","CH",4410,"Liestal","Gitterlistrasse 5b","+41 61 9219107",14,"Oberrhein"]
[10147,"Turnhalle;4312 Magden,Schulstrasse 27",null,null,"Magden","Turnhalle","CH",4312,"Magden","Schulstrasse 27","+41 61 8411630",14,"Oberrhein"]
[10148,"Steinlihalle;4313 Möhlin,Fridolinsgasse",null,null,"Möhlin","Steinlihalle","CH",4313,"Möhlin","Fridolinsgasse","+41 61 8512498",14,"Oberrhein"]
[10149,"KUSPO;4142 Münchenstein,Loogstrasse 2",null,null,"Münchenstein","KUSPO","CH",4142,"Münchenstein","Loogstrasse 2","+41 61 4161180",14,"Oberrhein"]
[10150,"Sporthalle Kriegacker;4132 Muttenz,Gründenstrasse 32",null,null,"Muttenz 1","Sporthalle Kriegacker","CH",4132,"Muttenz","Gründenstrasse 32","+41 61 4618323",14,"Oberrhein"]
[10151,"Sporthalle Margelacker;4132 Muttenz,Reichensteinerstrasse 2",null,null,"Muttenz 2","Sporthalle Margelacker","CH",4132,"Muttenz","Reichensteinerstrasse 2","+41 61 4621303",14,"Oberrhein"]
[10152,"Thomasgarten;4104 Oberwil (BL),Im Thomasgarten 5",null,null,"Oberwil","Thomasgarten","CH",4104,"Oberwil (BL)","Im Thomasgarten 5","+41 61 4054286",14,"Oberrhein"]
[10153,"Kultur- und Sportzentrum;4133 Pratteln,Oberemattstrasse 13",null,null,"Pratteln","Kultur- und Sportzentrum","CH",4133,"Pratteln","Oberemattstrasse 13","+41 61 8211222",14,"Oberrhein"]
[10154,"Niederholz;4125 Riehen,Niederholzstrasse 95b",null,null,"Riehen","Niederholz","CH",4125,"Riehen","Niederholzstrasse 95b",null,14,"Oberrhein"]
[10155,"Sporthalle Tannenbrunn;4450 Sissach,Zunzgerstrasse 66",null,null,"Sissach","Sporthalle Tannenbrunn","CH",4450,"Sissach","Zunzgerstrasse 66","+41 61 9713371",14,"Oberrhein"]
[10156,"Bustelbach;4332 Stein (AG),Sportplatzweg",null,null,"Stein (AG)","Bustelbach","CH",4332,"Stein (AG)","Sportplatzweg","+41 62 8732063",14,"Oberrhein"]
[10157,"99er Sporthalle;4106 Therwil,Schulgasse 1",null,null,"Therwil","99er Sporthalle","CH",4106,"Therwil","Schulgasse 1","+41 61 6630760",14,"Oberrhein"]
[10158,"Geschwister-Scholl-Halle;77654 Offenburg,Rammerweierstr.",null,null,"Offenburg 2","Geschwister-Scholl-Halle","D",77654,"Offenburg","Rammerweierstr.",null,12,"Offenburg"]
[10159,"Okenhalle;77652 Offenburg,Freiburgerstr. ",null,null,"Offenburg 3","Okenhalle","D",77652,"Offenburg","Freiburgerstr. ",null,12,"Offenburg"]
[10160,"Nordwesthalle;77652 Offenburg,Otto-Hahn-Straße",null,null,"Offenburg 4","Nordwesthalle","D",77652,"Offenburg","Otto-Hahn-Straße",null,12,"Offenburg"]
[10161,"Kreisschulzentrum (Kreis);77654 Offenburg,Zähringer Str. 37-41",null,null,"Offenburg 5","Kreisschulzentrum (Kreis)","D",77654,"Offenburg","Zähringer Str. 37-41",null,12,"Offenburg"]
[10163,"Einsteinhalle;77694 Kehl am Rhein,Vogesenallee",null,null,"Kehl 3","Einsteinhalle","D",77694,"Kehl am Rhein","Vogesenallee",null,12,"Offenburg"]
[10164,"Sporthalle Hofweier;77749 Hohberg,Reisengasse",null,null,"Hofweier","Sporthalle Hofweier","D",77749,"Hohberg","Reisengasse",null,12,"Offenburg"]
[10165,"Offohalle;77948 Friesenheim,Prinzenstr.",null,null,"Schuttern","Offohalle","D",77948,"Friesenheim","Prinzenstr.","07821/61866",12,"Offenburg"]
[10166,"Mauerfeldhalle 2;77933 Lahr,Im Mauerfeld/Hallenbad",null,null,"Lahr 3","Mauerfeldhalle 2","D",77933,"Lahr","Im Mauerfeld/Hallenbad",null,12,"Offenburg"]
[10167,"Ortenauhalle (Kreishalle);77933 Lahr,Mauerweg 5",null,null,"Lahr 4","Ortenauhalle (Kreishalle)","D",77933,"Lahr","Mauerweg 5","07821/52751",12,"Offenburg"]
[10168,"Gymnasiumsporthalle;76448 Durmersheim,Weißenburger Str. 42",null,null,"Durmersheim 2","Gymnasiumsporthalle","D",76448,"Durmersheim","Weißenburger Str. 42","07245-2030",11,"Rastatt"]
[10173,"Mehrzweckhalle Memprechtshofen;77866 Rheinau-Memprechtshofen,",null,null,"Memprechtshofen","Mehrzweckhalle Memprechtshofen","D",77866,"Rheinau-Memprechtshofen",null,null,11,"Rastatt"]
[10174,"Schulsporthalle;76534 Baden-Baden-Steinbach,",null,null,"Steinbach 2","Schulsporthalle","D",76534,"Baden-Baden-Steinbach",null,null,11,"Rastatt"]
[10175,"Rheintalhalle Bühl;77815 Bühl,",null,null,"Kappelwindeck","Rheintalhalle Bühl","D",77815,"Bühl",null,null,11,"Rastatt"]
[10176,"Gymnasium;4242 Laufen,Steinackerweg 7",null,null,"Laufen","Gymnasium","CH",4242,"Laufen","Steinackerweg 7","+41 61 7611111",14,"Oberrhein"]
[10177,"Sporthalle Fiechten;4153 Reinach (BL),Fiechtenweg 72",null,null,"Reinach","Sporthalle Fiechten","CH",4153,"Reinach (BL)","Fiechtenweg 72","+41 61 7114398",14,"Oberrhein"]
[10178,"Sporthalle Engerfeld;4310 Rheinfelden (AG),Engerfeldstrasse 16-20",null,null,"Rheinfelden (AG)","Sporthalle Engerfeld","CH",4310,"Rheinfelden (AG)","Engerfeldstrasse 16-20",null,14,"Oberrhein"]
[10179,"Schänzle-Sporthalle 4;78462 Konstanz,Winterersteig 23",null,null,"Konstanz 4","Schänzle-Sporthalle 4","D",78462,"Konstanz","Winterersteig 23",null,16,"Hegau-Bodensee"]
["CH-1","Athletik Zentrum;9000 St. Gallen,Parkstrasse 2",null,null,"St. Gallen 4","Athletik Zentrum","CH",9000,"St. Gallen","Parkstrasse 2","0650-3341239","CH","Schweiz"]
["CH-2","Eulachhalle;8400 Winterthur,Wartstraße 73",null,null,"Winterthur","Eulachhalle","CH",8400,"Winterthur","Wartstraße 73","02266-65300"]
["K_1","Sporthalle St. Ruprecht;9020 Klagenfurt,Kneippgasse 30",null,null,"Sporthalle St. Ruprecht","Sporthalle St. Ruprecht","A",9020,"Klagenfurt","Kneippgasse 30","02262 / 752 03","Ö","Österreich"]
["K_2","Ballspielhalle Viktring;9073 Viktring,Schulstr. 1",null,null,"Ballspielhalle Viktring","Ballspielhalle Viktring","A",9073,"Viktring","Schulstr. 1","02952-333533","Ö","Österreich"]
["K_3","Ballspielhalle Ferlach;9170 Ferlach,Neubaugasse",null,null,"Ballspielhalle Ferlach","Ballspielhalle Ferlach","A",9170,"Ferlach","Neubaugasse","02282-2651-32","Ö","Österreich"]
["K_4","Ballspielhalle Villach-Lind;9500 Villach,Rudolf Kattnigstr. 4",null,null,"Ballspielhalle Villach-Lind","Ballspielhalle Villach-Lind","A",9500,"Villach","Rudolf Kattnigstr. 4","022363-26833","Ö","Österreich"]
["NÖ_1","Sportzentrum Alte Au;2000 Stockerau,Zum Spritzgarten",null,null,"Sportzentrum Alte Au","Sportzentrum Alte Au","A",2000,"Stockerau","Zum Spritzgarten","01-8694720","Ö","Österreich"]
["NÖ_10","Guggenberger Sporthalle;2100 Korneuburg,Windmühlgsse 1-3",null,null,"Guggenberger Sporthalle","Guggenberger Sporthalle","A",2100,"Korneuburg","Windmühlgsse 1-3","0622-373490","Ö","Österreich"]
["NÖ_2","Weinviertelarena;2020 Hollabrunn,Aumühlgasse 8",null,null,"Weinviertelarena","Weinviertelarena","A",2020,"Hollabrunn","Aumühlgasse 8","02272-61010","Ö","Österreich"]
["NÖ_3","Stadthalle Gänserndorf;2230 Gänserndorf,Hans Kudlich G. 28",null,null,"Stadthalle Gänserndorf","Stadthalle Gänserndorf","A",2230,"Gänserndorf","Hans Kudlich G. 28","02732-8371323","Ö","Österreich"]
["NÖ_4",{"$f":"IF(C836=\"\",\"\",C836&\" km;\")&F836&\";\"&H836&\" \"&I836&\",\"&J836","v":"BSFZ Südstadt;2344 Ma. Enzersdorf,J. Steinböckstr. 5"},null,null,"BSFZ Südstadt","BSFZ Südstadt","A",2344,"Ma. Enzersdorf","J. Steinböckstr. 5","02984-3333","Ö","Österreich"]
["NÖ_5","Sporthalle Schulsportzentrum;2380 Perchtoldsdorf,Roseggergasse",null,null,"Sporthalle Schulsportzentrum","Sporthalle Schulsportzentrum","A",2380,"Perchtoldsdorf","Roseggergasse",null,"Ö","Österreich"]
["NÖ_6","Dr. Fred SinowatzSchule;2700 Wr. Neustadt,Primelgasse 1",null,null,"Dr. Fed SinowatzSchule (Anemonensee) ","Dr. Fred SinowatzSchule","A",2700,"Wr. Neustadt","Primelgasse 1","0732-305265, 0664-6559131","Ö","Österreich"]
["NÖ_7","Bundsschulzentrum Tulln;3430 Tulln,Donaulände 72/1",null,null,"Bundsschulzentrum Tulln","Bundsschulzentrum Tulln","A",3430,"Tulln","Donaulände 72/1","0732-731533","Ö","Österreich"]
["NÖ_8","Sporthalle Krems;3500 Krems,Strandbadstr. 3",null,null,"Sporthalle Krems","Sporthalle Krems","A",3500,"Krems","Strandbadstr. 3","0316-583354","Ö","Österreich"]
["NÖ_9","Stadthalle Eggenburg;3730 Eggenburg,Kühnringerstr. 1",null,null,"Stadthalle Eggenburg","Stadthalle Eggenburg","A",3730,"Eggenburg","Kühnringerstr. 1","03142-61550-22","Ö","Österreich"]
["OÖ_1","Hüttnerschule;4020 Linz,Wieningerstr. 15",null,null,"Hüttnerschule","Hüttnerschule","A",4020,"Linz","Wieningerstr. 15","03144-2769","Ö","Österreich"]
["OÖ_2","SHS Kleinmünchen;4030 Linz,Meindlstr. 25",null,null,"SHS Kleinmünchen","SHS Kleinmünchen","A",4030,"Linz","Meindlstr. 25",null,"Ö","Österreich"]
["oÖ_3","Harbachschule;4040 Linz,In der Aichwiesen 16",null,null,"Harbachschule","Harbachschule","A",4040,"Linz","In der Aichwiesen 16","038-4062","Ö","Österreich"]
["ST_1","ASKÖ Halle;8020 Graz,Schlossstr. 20",null,null,"ASKÖ Halle","ASKÖ Halle","A",8020,"Graz","Schlossstr. 20","0512-286150","Ö","Österreich"]
["ST_2","Sporthalle Bärnbach;8572 Bärnbach,Rüsthausgasse 8",null,null,"Sporthalle Bärnbach","Sporthalle Bärnbach","A",8572,"Bärnbach","Rüsthausgasse 8","0512-33838461","Ö","Österreich"]
["ST_3","Sporthalle Köflach;8580 Köflach,Alter Rathausplatz 5",null,null,"Sporthalle Köflach","Sporthalle Köflach","A",8580,"Köflach","Alter Rathausplatz 5",null,"Ö","Österreich"]
["ST_4","Hannes Bammer Halle;8600 Bruck,Jahnstr. 4",null,null,"Hannes Bammer Halle","Hannes Bammer Halle","A",8600,"Bruck","Jahnstr. 4","05242-64393","Ö","Österreich"]
["ST_5","Sporthalle Leoben/Donawitz;8700 Leoben,Kerpelystr. 11",null,null,"Sporthalle Leoben/Donawitz","Sporthalle Leoben/Donawitz","A",8700,"Leoben","Kerpelystr. 11","05522-81410-12","Ö","Österreich"]
["T_1","Sporthalle Höttinge West;6020 Innsbruck,Viktor Franz Hess Str. 9",null,null,"Sporthalle Höttinge West","Sporthalle Höttinge West","A",6020,"Innsbruck","Viktor Franz Hess Str. 9","05572-305237","Ö","Österreich"]
["T_2","Landessportcenter Tirol;6020 Innsbruck,Olympiastr. 10",null,null,"Landessportcenter Tirol","Landessportcenter Tirol","A",6020,"Innsbruck","Olympiastr. 10","05577-8387120","Ö","Österreich"]
["T_3","Sporthalle Olympisches Dorf;6020 Innsbruck,Kajetan Sweet Str. 14",null,null,"Sporthalle Olympisches Dorf","Sporthalle Olympisches Dorf","A",6020,"Innsbruck","Kajetan Sweet Str. 14","05574-83312","Ö","Österreich"]
["T_4","Sporthalle Ost;6130 Schwaz,Johannes Messner Weg 12",null,null,"Sporthalle Ost","Sporthalle Ost","A",6130,"Schwaz","Johannes Messner Weg 12","05574-7000930","Ö","Österreich"]
["V_1","Reichenfeldhalle;6800 Feldkirch,Liechtensteinerstr. 35",null,null,"Reichenfeldhalle","Reichenfeldhalle","A",6800,"Feldkirch","Liechtensteinerstr. 35","01-5466702","Ö","Österreich"]
["V_2","9,1 km;Messesporthalle 2;6850 Dornbirn,Messestr. 4a",9.1,null,"Messesporthalle 2","Messesporthalle 2","A",6850,"Dornbirn","Messestr. 4a",null,"Ö","Österreich"]
["V_3","Sporthalle Gymnasium;6890 Lustenau,Mühlefeldstr. 1",null,null,"Sporthalle Gymnasium","Sporthalle Gymnasium","A",6890,"Lustenau","Mühlefeldstr. 1","01-7867326-1","Ö","Österreich"]
["V_4","16,7 km;HB-Arena Rieden Vorkloster;6900 Bregenz,Untere Burggräflerg. 11",16.7,null,"HB-Arena Rieden Vorkloster","HB-Arena Rieden Vorkloster","A",6900,"Bregenz","Untere Burggräflerg. 11",null,"Ö","Österreich"]
["V_5","11 km;Sporthalle am See;6971 Hard,Seestr. 60",11,null,"Sporthalle am See","Sporthalle am See","A",6971,"Hard","Seestr. 60","01-865209","Ö","Österreich"]
["W_1","Sporthalle Margareten;1050 Wien,Hollgasse 3",null,null,"Sporthalle Margareten","Sporthalle Margareten","A",1050,"Wien","Hollgasse 3"]
["W_2","Wr. Stadthalle B;1150 Wien,Vogelweidplatz 1",null,null,"Wr. Stadthalle B","Wr. Stadthalle B","A",1150,"Wien","Vogelweidplatz 1"]
["W_3","Fritz Grassinger Halle;1150 Wien,Tellgasse 3-5",null,null,"Fritz Grassinger Halle","Fritz Grassinger Halle","A",1150,"Wien","Tellgasse 3-5"]
["W_4","GRG 23;1230 Wien,Anton Baumgartenstr. 123",null,null,"GRG 23","GRG 23","A",1230,"Wien","Anton Baumgartenstr. 123"]
["W_5","Hans Lackner Halle;1230 Wien,Steinergasse 22",null,null,"Hans Lackner Halle","Hans Lackner Halle","A",1230,"Wien","Steinergasse 22"]

{"sheet":"Einstellungen","index":3,"n_rows":40,"n_cols":17,"rows_kept":40,"cut":false,"hidden":false,"merged":[]}
["Liga","Vorbereitung","Spielzeit","H_Von","H_Bis","R_Von","R_Bis"]
["M-BL",45,90,"2022-09-17","2022-12-22","2023-01-07","2023-04-30"]
["M-KLA-B",45,90,"2022-09-17","2022-12-22","2023-01-07","2023-04-30"]
["M-Pok-B",30,90,null,null,null,null,"1. Runde","10.09.2022 - 03.10.2022","2. Runde","29.10.2022 - 08.01.2023","3. Runde","04.02.2023 - 02.04.2023","4. Runde","2023-05-06","Final Four","05.05.2018 - 06.05.2010"]
["M-Pok",30,90]
["M-Cup GrA",30,90]
["M-Cup GrB",30,90]
["M-Cup-ER",20,90]
["F-BL",45,90,"2022-09-23","2023-01-07","2023-01-13","2023-04-22"]
["F-Pok-B",30,90,null,null,null,null,"1. Runde","10.09.2022 - 03.10.2022","2. Runde","10.09.2022 - 08.01.2023","3. Runde","04.02.2023 - 02.04.2023","4. Runde","2023-05-06","Final Four","06.05.2017 - 07.05.2017"]
["F-Pok",20,100]
["F-Cup",30,90]
["mJA-BL",45,90,"2022-09-17","2022-12-18","2022-12-17","2023-03-26"]
["mJB-BL",45,75,"2022-09-17","2022-12-18","2023-01-14","2023-04-02"]
["mJC-BL",45,75,"2022-09-17","2022-12-18","2023-01-14","2023-04-02","16 Spiele"]
["gJD-BK-2",45,65,"2022-09-17","2022-11-06","2022-10-29","2022-12-18","10 Spiele"]
["gJD-KLB-2",45,65,"2022-09-17","2022-11-06","2022-10-29","2022-12-18","mD!!"]
["gJD-KLC-2",45,65,"2017-09-17","2022-12-18","2022-12-17","2023-03-26","mD!!"]
["wJA-BL",45,90,"2022-09-23","2023-01-07","2023-01-13","2023-04-22"]
["wJB-BL",45,75,"2022-09-23","2023-01-07","2023-01-13","2023-04-22"]
["wJC-LL-2",45,65,"2022-09-09","2023-01-15","2022-11-04","2023-03-05"]
["wJC-BL",45,65,"2022-09-17","2022-12-18","2023-01-14","2023-04-02"]
["wJC-KLB-2",45,75,"2022-09-17","2022-11-06","2022-10-29","2022-12-18"]
["wJD-KL-2",45,65,"2022-09-17","2022-12-18","2022-12-17","2023-03-26","16 Spiele"]
["wJD-BK",45,65,"2018-01-13"]
["wu10",15,510]
["wu12-VL",20,60,"2017-09-15","2018-03-04"]
["wu12-VL-ER",20,60,null,null,"2018-03-18","2018-04-15"]
["wu14-VL",20,70,"2017-09-15","2018-02-20","2018-01-01","2017-04-29"]
["wu16-VL",20,70]
["wu18",20,75]
["mu10",15,510]
["mU12-VL-ER",20,60,null,null,"2018-03-18","2018-04-15"]
["mU12-VL-A",20,60,"2017-09-15","2018-02-20","2018-01-01","2018-03-04"]
["mu14-VL",20,70,"2017-09-15","2018-02-20","2018-01-01","2017-04-29"]
["mU16-VL-A",20,70,"2017-09-15","2018-02-20","2018-01-01","2018-03-11"]
["mU16-VL-ER",20,70,null,null,"2018-03-24","2018-04-15"]
["mu18",20,75]
["u8",15,510]
["Specials",0,90]

{"sheet":"HVW-Staffelinfo Termine","index":4,"n_rows":21,"n_cols":3,"rows_kept":21,"cut":false,"hidden":false,"merged":[]}
["Spielzeiträume"]
[]
["Die folgenden Zeiträume sind allgemein gültig für alle Staffeln."]
["Besondere Spielzeiträme für einzelne Staffeln sind bei diesen aufgeführt."]
[]
["1. Runde","Sa, 23.09.2017 - So, 07.01.2018"]
["2. Runde","Sa, 13.01.2018 - So, 22.04.2018"]
[]
["Anspielzeiten"]
[]
["Werktags","18:00:00","20:30:00"]
["Samstags","10:00:00","20:00:00"]
["Sonntags","10:00:00","17:30:00"]
[]
["Sondertage"]
[]
["An folgenden Tagen gelten abweichende Anspielzeiten:"]
[]
[null,"Sa, 02.12.2017 ","Frauen WM"]
[null,"So, 03.12.2017","Frauen WM"]
[null,"So, 17.12.2017, 10:00h - 11:00h","Frauen WM"]